Capital or Revenue,Directorate,SERCOP High Level Category,SERCOP Detailed Category,Transaction Number,Date,Service Area,Expenses Type,Amount,Supplier Name
Revenue,Childrens Services,Children's & Education Services,Children Looked After,5105652506,03.11.2017,Leaving Care Costs,Personal Allowances,57.90,REDACTED PERSONAL DATA
Revenue,Childrens Services,Children's & Education Services,Children Looked After,5105653166,10.11.2017,Leaving Care Costs,Personal Allowances,57.90,REDACTED PERSONAL DATA
Revenue,Childrens Services,Children's & Education Services,Children Looked After,5105653899,17.11.2017,Leaving Care Costs,Personal Allowances,57.90,REDACTED PERSONAL DATA
Revenue,Childrens Services,Children's & Education Services,Children Looked After,5105654702,24.11.2017,Leaving Care Costs,Personal Allowances,57.90,REDACTED PERSONAL DATA
Revenue,Childrens Services,Children's & Education Services,Children Looked After,5105655457,29.11.2017,Leaving Care Costs,Personal Allowances,57.90,REDACTED PERSONAL DATA
Revenue,Adult Services,Adult Social Care,Central Codes (to be reallocated),5105653321,10.11.2017,Adelaide Resource Centre,Consumable Cleaning Materials,216.00,A & M APPLIANCE CARE
Revenue,Adult Services,Adult Social Care,Central Codes (to be reallocated),5105652562,03.11.2017,Gouldings Resource Centre,Consumable Cleaning Materials,190.00,A & M APPLIANCE CARE
Revenue,Adult Services,Adult Social Care,Learning Disab Supp (to be reallocated),5105654844,29.11.2017,Overbrook,Minor Works,60.00,A & M APPLIANCE CARE
Revenue,Place,Cultural and Related Services,Open Spaces,5105652802,08.11.2017,IW Biological Record Centre,Consultants Fees,330.00,REDACTED PERSONAL DATA
Revenue,Resources,Central Services,Support Services,5105652930,08.11.2017,Litigation Costs,Legal Fees - Other Parties,400.00,"COLLEGE CHAMBERS, BARRISTERS"
Revenue,Resources,Central Services,Support Services,5105654782,24.11.2017,Litigation Costs,Legal Fees - Other Parties,"2,350.00","COLLEGE CHAMBERS, BARRISTERS"
Revenue,Resources,Central Services,Support Services,5105654784,24.11.2017,Litigation Costs,Legal Fees - Other Parties,400.00,"COLLEGE CHAMBERS, BARRISTERS"
Revenue,Resources,Central Services,Support Services,5105653350,10.11.2017,Litigation Costs,Legal Fees - Other Parties,400.00,"COLLEGE CHAMBERS, BARRISTERS"
Revenue,Resources,Central Services,Support Services,5105653351,10.11.2017,Litigation Costs,Legal Fees - Other Parties,500.00,"COLLEGE CHAMBERS, BARRISTERS"
Revenue,Childrens Services,Children's & Education Services,Other Education and Community Budget,5105653557,15.11.2017,Home to School SEN Transport (LA),Taxis - Contract Hire,169.00,AMAR CABS OF NEWPORT
Revenue,Childrens Services,Children's & Education Services,Other Education and Community Budget,5105653442,15.11.2017,Home to School SEN Transport (LA),Taxis - Contract Hire,496.00,AMAR EXCLUSIVES
Revenue,Place,Highways and Transport Services,Management and Support Services,5105654202,22.11.2017,Highways PFI Project,Vehicle Maintenance Costs,188.05,ISLANDWIDE WINDSCREENS
Revenue,Public Health,Public Health,Miscellaneous Public Health Services,5105654731,24.11.2017,British Lung Foundation,Training,"1,000.00",REDACTED PERSONAL DATA
Revenue,Childrens Services,Children's & Education Services,Management & Support Services,5105655478,29.11.2017,Specialist Teacher Advisors,Medical Fees and Staff Welfare,50.00,ANOTHER WAY AROUND
Revenue,Childrens Services,Children's & Education Services,Management & Support Services,5105655258,29.11.2017,Specialist Teacher Advisors,Consultants Fees,250.00,ANOTHER WAY AROUND
Revenue,Childrens Services,Children's & Education Services,Other Education and Community Budget,5105652810,08.11.2017,Home to School SEN Transport (LA),Taxis - Contract Hire,528.00,BEACON TAXIS
Revenue,Childrens Services,Children's & Education Services,Family Support Services,5105654233,24.11.2017,Short Breaks,Charges from Independent Providers,562.40,BEBE'CINNO
Revenue,Childrens Services,Children's & Education Services,Services for Young People,5105654230,29.11.2017,Youth Commissioning,Payments to Voluntary and Other Associations,296.00,BEBE'CINNO
Revenue,Childrens Services,Children's & Education Services,Services for Young People,5105655200,29.11.2017,Youth Commissioning,Payments to Voluntary and Other Associations,222.00,BEBE'CINNO
Revenue,Adult Services,Adult Social Care,Central Codes (to be reallocated),5105655223,29.11.2017,Mental Health Day Services,Property Services - Day to day Maintenance,445.00,C & J GROUND MAINTENANCE
Capital,Resources,Capital,Capital,5105647723,24.11.2017,Capital Receipts,Payment to Contractors - Capital,100.00,REDACTED PERSONAL DATA
Capital,Resources,Capital,Capital,5105647723,24.11.2017,Capital Receipts,Payment to Contractors - Capital,150.00,REDACTED PERSONAL DATA
Capital,Resources,Capital,Capital,5105648032,24.11.2017,Capital Receipts,Payment to Contractors - Capital,150.00,REDACTED PERSONAL DATA
Capital,Resources,Capital,Capital,5105648032,24.11.2017,Capital Receipts,Payment to Contractors - Capital,100.00,REDACTED PERSONAL DATA
Revenue,Place,Children's & Education Services,Family Support Services,5105648032,24.11.2017,Carisbrooke Contact Centre,Security of Buildings,150.00,REDACTED PERSONAL DATA
Revenue,Place,Children's & Education Services,Family Support Services,5105647723,24.11.2017,Carisbrooke Contact Centre,Security of Buildings,150.00,REDACTED PERSONAL DATA
Revenue,Regeneration,Central Services,Support Services,5105648032,24.11.2017,Non-operational buildings,Security of Buildings,100.00,REDACTED PERSONAL DATA
Revenue,Regeneration,Central Services,Support Services,5105647723,24.11.2017,Non-operational buildings,Security of Buildings,100.00,REDACTED PERSONAL DATA
Revenue,Regeneration,Cultural and Related Services,Culture and Heritage,5105648032,24.11.2017,"St Thomas Church, Ryde",Security of Buildings,100.00,REDACTED PERSONAL DATA
Revenue,Regeneration,Cultural and Related Services,Culture and Heritage,5105647723,24.11.2017,"St Thomas Church, Ryde",Security of Buildings,100.00,REDACTED PERSONAL DATA
Revenue,Childrens Services,Children's & Education Services,Other Education and Community Budget,5105652876,08.11.2017,Home to College Post 16 Transport,Taxis - Contract Hire,72.00,CAROLS TAXIS
Revenue,Childrens Services,Children's & Education Services,Other Education and Community Budget,5105652877,15.11.2017,Home to College Post 16 Transport,Taxis - Contract Hire,680.00,CAROLS TAXIS
Revenue,Childrens Services,Children's & Education Services,Other Education and Community Budget,5105653255,10.11.2017,Home to College Post 16 Transport,Taxis - Contract Hire,168.00,CAROLS TAXIS
Revenue,Childrens Services,Children's & Education Services,Other Education and Community Budget,5105654303,22.11.2017,Home to College Post 16 Transport,Taxis - Contract Hire,72.00,CAROLS TAXIS
Revenue,Childrens Services,Children's & Education Services,Other Education and Community Budget,5105654302,22.11.2017,Home to College Post 16 Transport,Taxis - Contract Hire,600.00,CAROLS TAXIS
Revenue,Childrens Services,Children's & Education Services,Other Education and Community Budget,5105654428,22.11.2017,Home to College Post 16 Transport,Taxis - Contract Hire,168.00,CAROLS TAXIS
Revenue,Childrens Services,Children's & Education Services,Other Education and Community Budget,5105653360,10.11.2017,Home to School SEN Transport (LA),Taxis - Contract Hire,765.00,CLARES CABS
Revenue,Place,Cultural and Related Services,Recreation and Sport,5105653614,15.11.2017,Beach Safety & Inspection / Beach Awards,Payment to Private Contractors,59.03,C N SERVICES
Revenue,Place,Environmental & Regulatory Services,Coast Protection,5105654083,17.11.2017,Coast Protection,Payment to Private Contractors,545.63,C N SERVICES
Revenue,Place,Cultural and Related Services,Open Spaces,5105654052,17.11.2017,Other Grounds Maintenance,Payment to Private Contractors,325.45,C N SERVICES
Revenue,Place,Cultural and Related Services,Open Spaces,5105653611,15.11.2017,Public Seats  (incl.Dedicated Seats),Payment to Private Contractors,183.99,C N SERVICES
Revenue,Place,Cultural and Related Services,Open Spaces,5105653614,15.11.2017,Public Shelters - Ryde,Payment to Private Contractors,368.69,C N SERVICES
Revenue,Place,Cultural and Related Services,Open Spaces,5105653620,15.11.2017,Play Areas Health & Safety work,Payment to Private Contractors,"1,475.50",C N SERVICES
Capital,Place,Capital,Capital,5105653610,15.11.2017,Rights Of Way Capital Programme,Payment to Contractors - Capital,248.50,C N SERVICES
Revenue,Place,Cultural and Related Services,Recreation and Sport,5105653614,15.11.2017,Slipways & Steps (Beaches),Payment to Private Contractors,480.39,C N SERVICES
Revenue,Place,Planning services,Planning Policy,5105653292,10.11.2017,Development Control,Consultants Fees,720.00,CORNERSTONE BARRISTERS
Revenue,Place,Environmental & Regulatory Services,Service Management and Support Services,5105653224,10.11.2017,Environment officers,Payment to Private Contractors,"1,167.50",REDACTED PERSONAL DATA
Revenue,Resources,Central Services,Support Services,5105652698,03.11.2017,Litigation Costs,Legal Fees - Other Parties,"2,850.00",REDACTED PERSONAL DATA
Revenue,Resources,Central Services,Support Services,5105652697,03.11.2017,Litigation Costs,Legal Fees - Other Parties,400.00,REDACTED PERSONAL DATA
Revenue,Childrens Services,Children's & Education Services,Management & Support Services,5105652712,03.11.2017,Education Direct Payments,Direct Payments,540.00,REDACTED PERSONAL DATA
Revenue,Childrens Services,Children's & Education Services,Management & Support Services,5105652713,03.11.2017,Education Direct Payments,Direct Payments,405.00,REDACTED PERSONAL DATA
Revenue,Adult Services,Adult Social Care,Social Care Activities,5105653316,10.11.2017,DoLS/MCA,Professional Services,187.67,DR ALEXIS BOWERS LTD
Revenue,Adult Services,Adult Social Care,Social Care Activities,5105651465,01.11.2017,DoLS/MCA,Professional Services,200.00,THE MEMORY SERVICE
Revenue,Adult Services,Adult Social Care,Social Care Activities,5105651464,01.11.2017,DoLS/MCA,Professional Services,200.00,THE MEMORY SERVICE
Revenue,Adult Services,Adult Social Care,Social Care Activities,5105651463,01.11.2017,DoLS/MCA,Professional Services,200.00,THE MEMORY SERVICE
Revenue,Adult Services,Adult Social Care,Social Care Activities,5105651450,01.11.2017,DoLS/MCA,Professional Services,200.00,THE MEMORY SERVICE
Revenue,Adult Services,Adult Social Care,Social Care Activities,5105651469,01.11.2017,DoLS/MCA,Professional Services,200.00,THE MEMORY SERVICE
Revenue,Adult Services,Adult Social Care,Social Care Activities,5105651467,01.11.2017,DoLS/MCA,Professional Services,200.00,THE MEMORY SERVICE
Revenue,Adult Services,Adult Social Care,Social Care Activities,5105652863,10.11.2017,DoLS/MCA,Professional Services,200.00,THE MEMORY SERVICE
Revenue,Adult Services,Adult Social Care,Social Care Activities,5105652864,10.11.2017,DoLS/MCA,Professional Services,200.00,THE MEMORY SERVICE
Revenue,Adult Services,Adult Social Care,Social Care Activities,5105653234,15.11.2017,DoLS/MCA,Professional Services,200.00,THE MEMORY SERVICE
Revenue,Adult Services,Adult Social Care,Social Care Activities,5105655174,29.11.2017,DoLS/MCA,Professional Services,200.00,THE MEMORY SERVICE
Revenue,Childrens Services,Adult Social Care,Information & Early Intervention,5105652809,10.11.2017,Adult Social Care - Workforce Development,Professional Services,130.00,EDGE TRAINING & CONS LTD
Revenue,Adult Services,Adult Social Care,Social Care Activities,5105651045,03.11.2017,DoLS/MCA,Training,780.00,EDGE TRAINING & CONS LTD
Revenue,Childrens Services,Children's & Education Services,Other Education and Community Budget,5105652966,10.11.2017,Statutory Assessment and Review Team,Consultants Fees,396.67,REDACTED PERSONAL DATA
Revenue,Childrens Services,Children's & Education Services,Other Education and Community Budget,5105654147,17.11.2017,Statutory Assessment and Review Team,Consultants Fees,458.75,REDACTED PERSONAL DATA
Revenue,Place,Cultural and Related Services,Recreation and Sport,5105652564,03.11.2017,The Heights,Stock Purchases,48.37,FULL SPREAD LIMITED
Revenue,Place,Cultural and Related Services,Recreation and Sport,5105652261,01.11.2017,The Heights,Stock Purchases,43.25,FULL SPREAD LIMITED
Revenue,Place,Cultural and Related Services,Recreation and Sport,5105655152,29.11.2017,The Heights,Stock Purchases,39.16,FULL SPREAD LIMITED
Revenue,Place,Cultural and Related Services,Recreation and Sport,5105655153,29.11.2017,The Heights,Stock Purchases,32.82,FULL SPREAD LIMITED
Revenue,Place,Cultural and Related Services,Recreation and Sport,5105655154,29.11.2017,The Heights,Stock Purchases,60.33,FULL SPREAD LIMITED
Revenue,Place,Cultural and Related Services,Recreation and Sport,5105654794,29.11.2017,The Heights,Stock Purchases,29.97,FULL SPREAD LIMITED
Revenue,Childrens Services,Children's & Education Services,Safeguarding Children/Young Peoples Svs,5105654227,22.11.2017,Court Work & Consultancy Services,Professional Services,264.15,GARY TAYLOR ASSOCIATES LIMITED
Revenue,Childrens Services,Children's & Education Services,Safeguarding Children/Young Peoples Svs,5105654856,24.11.2017,LSCB (Local Safeguarding Childrens Board),Conference Expenses,"1,000.00",GRAHAM MUSIC
Revenue,Childrens Services,Children's & Education Services,Other Education and Community Budget,5105653390,10.11.2017,Home to College Post 16 Transport,Taxis - Contract Hire,160.00,HAYLES TAXIS
Revenue,Childrens Services,Children's & Education Services,Other Education and Community Budget,5105653391,10.11.2017,Home to College Post 16 Transport,Taxis - Contract Hire,420.00,HAYLES TAXIS
Revenue,Childrens Services,Children's & Education Services,Other Education and Community Budget,5105654075,17.11.2017,Home to School Mainstream Transport,Taxis - Contract Hire,550.00,HAYLES TAXIS
Revenue,Childrens Services,Children's & Education Services,Other Education and Community Budget,5105654078,17.11.2017,Home to School SEN Transport (LA),Taxis - Contract Hire,450.00,HAYLES TAXIS
Revenue,Regeneration,Planning services,Economic Development,5105652252,01.11.2017,Director of Regeneration,Consultants Fees,-364.51,INNER CIRCLE CONSULTING LTD
Revenue,Regeneration,Planning services,Economic Development,5105652252,01.11.2017,Director of Regeneration,Consultants Fees,-125.00,INNER CIRCLE CONSULTING LTD
Revenue,Regeneration,Planning services,Economic Development,5105652251,01.11.2017,Director of Regeneration,Consultants Fees,125.00,INNER CIRCLE CONSULTING LTD
Revenue,Regeneration,Planning services,Economic Development,5105653236,10.11.2017,Director of Regeneration,Consultants Fees,"6,613.50",INNER CIRCLE CONSULTING LTD
Revenue,Regeneration,Planning services,Economic Development,5105652251,01.11.2017,Director of Regeneration,Consultants Fees,364.51,INNER CIRCLE CONSULTING LTD
Revenue,Regeneration,Planning services,Economic Development,5105653619,22.11.2017,One Public Estate,Consultants Fees,"4,661.55",INNER CIRCLE CONSULTING LTD
Capital,Place,Capital,Capital,5105653514,15.11.2017,Bus Infrastructure,External Design and Supervision Fees,640.00,ISLAND HIGHWAY & TRANSPORT
Capital,Adult Services,Capital,Capital,5105653335,29.11.2017,S106 Capital Projects,External Design and Supervision Fees,"1,640.00",ISLAND HIGHWAY & TRANSPORT
Revenue,Regeneration,Central Services,Support Services,5105653515,29.11.2017,Strategic Assets Team,Consultants Fees,792.00,ISLAND HIGHWAY & TRANSPORT
Revenue,Adult Services,Adult Social Care,Learning Disab Supp (to be reallocated),5105652228,01.11.2017,31 Carter Avenue,Cleaning Contracts,27.00,ISLANDWIDE WINDOW CLEANING
Revenue,Adult Services,Adult Social Care,Learning Disab Supp (to be reallocated),5105652228,01.11.2017,40 Venner Avenue,Cleaning Contracts,18.00,ISLANDWIDE WINDOW CLEANING
Revenue,Adult Services,Adult Social Care,Learning Disab Supp (to be reallocated),5105652228,01.11.2017,Overbrook,Cleaning Contracts,20.00,ISLANDWIDE WINDOW CLEANING
Revenue,Adult Services,Adult Social Care,Learning Disab Supp (to be reallocated),5105652228,01.11.2017,Plean Dene,Cleaning Contracts,85.00,ISLANDWIDE WINDOW CLEANING
Revenue,Adult Services,Adult Social Care,Learning Disab Supp (to be reallocated),5105652228,01.11.2017,Saxonbury,Cleaning Contracts,33.00,ISLANDWIDE WINDOW CLEANING
Revenue,Adult Services,Adult Social Care,Learning Disab Supp (to be reallocated),5105652228,01.11.2017,Seagulls,Cleaning Contracts,22.00,ISLANDWIDE WINDOW CLEANING
Revenue,Adult Services,Adult Social Care,Learning Disab Supp (to be reallocated),5105652228,01.11.2017,The Laurels,Cleaning Contracts,27.00,ISLANDWIDE WINDOW CLEANING
Revenue,Adult Services,Adult Social Care,Learning Disab Supp (to be reallocated),5105652228,01.11.2017,Westminster House,Cleaning Contracts,60.00,ISLANDWIDE WINDOW CLEANING
Revenue,Resources,Central Services,Support Services,5105653267,15.11.2017,ICT Contracts,Computer Maintenance,300.00,REDACTED PERSONAL DATA
Revenue,Place,Cultural and Related Services,Recreation and Sport,5105653394,10.11.2017,Medina Leisure Centre,Payment to Private Contractors,100.00,REDACTED PERSONAL DATA
Revenue,Place,Cultural and Related Services,Recreation and Sport,5105653394,10.11.2017,Medina Leisure Centre,Postage,239.36,REDACTED PERSONAL DATA
Revenue,Place,Cultural and Related Services,Recreation and Sport,5105654858,24.11.2017,Medina Leisure Centre,Licences,300.00,REDACTED PERSONAL DATA
Revenue,Place,Cultural and Related Services,Recreation and Sport,5105653394,10.11.2017,Medina Leisure Centre,Operational Equipment,"2,002.00",REDACTED PERSONAL DATA
Revenue,Place,Cultural and Related Services,Recreation and Sport,5105654858,24.11.2017,Medina Leisure Centre,Travel Expenses,58.80,REDACTED PERSONAL DATA
Revenue,Place,Cultural and Related Services,Recreation and Sport,5105653394,10.11.2017,The Heights,Payment to Private Contractors,100.00,REDACTED PERSONAL DATA
Revenue,Place,Cultural and Related Services,Recreation and Sport,5105653394,10.11.2017,The Heights,Postage,239.36,REDACTED PERSONAL DATA
Revenue,Place,Cultural and Related Services,Recreation and Sport,5105654858,24.11.2017,The Heights,Licences,300.00,REDACTED PERSONAL DATA
Revenue,Place,Cultural and Related Services,Recreation and Sport,5105653394,10.11.2017,The Heights,Operational Equipment,"2,002.00",REDACTED PERSONAL DATA
Revenue,Place,Cultural and Related Services,Recreation and Sport,5105654858,24.11.2017,The Heights,Travel Expenses,58.80,REDACTED PERSONAL DATA
Revenue,Resources,Central Services,Support Services,5105654534,24.11.2017,Litigation Costs,Legal Fees - Other Parties,400.00,"COLLEGE CHAMBERS, BARRISTERS"
Revenue,Adult Services,Adult Social Care,Commissioning & Service Delivery,5105653475,15.11.2017,Learning Disability Homes Management & Admin,Consultants Fees,518.10,JAYNE KILGALLEN INTERIM SOLUTIONS
Revenue,Adult Services,Adult Social Care,Commissioning & Service Delivery,5105653475,15.11.2017,Learning Disability Homes Management & Admin,Consultants Fees,"4,250.00",JAYNE KILGALLEN INTERIM SOLUTIONS
Revenue,Childrens Services,Children's & Education Services,Family Support Services,5105655507,29.11.2017,Short Breaks,Charges from Independent Providers,274.00,REDACTED PERSONAL DATA
Revenue,Childrens Services,Children's & Education Services,Family Support Services,5105655504,29.11.2017,Short Breaks,Charges from Independent Providers,342.50,REDACTED PERSONAL DATA
Revenue,Adult Services,Adult Social Care,Central Codes (to be reallocated),5105653443,15.11.2017,Community Outreach,Training,90.00,JOHN MARSH DRIVING INSTRUCTOR
Revenue,Childrens Services,Children's & Education Services,Children Looked After,5105654503,22.11.2017,Adoption Support Fund,Charges from Independent Providers,300.00,REDACTED PERSONAL DATA
Revenue,Childrens Services,Children's & Education Services,Children Looked After,5105651434,15.11.2017,Adoption Support Fund,Charges from Independent Providers,200.00,REDACTED PERSONAL DATA
Revenue,Childrens Services,Children's & Education Services,Other Education and Community Budget,5105653352,10.11.2017,Home to College Post 16 Transport,Taxis - Contract Hire,644.00,REDACTED PERSONAL DATA
Revenue,Resources,Central Services,Support Services,5105654228,22.11.2017,Litigation Costs,Legal Fees - Other Parties,400.00,REDACTED PERSONAL DATA
Revenue,Childrens Services,Children's & Education Services,Family Support Services,5105654539,24.11.2017,Short Breaks,Charges from Independent Providers,64.00,REDACTED PERSONAL DATA
Revenue,Childrens Services,Children's & Education Services,Family Support Services,5105652266,01.11.2017,Short Breaks,Charges from Independent Providers,64.00,REDACTED PERSONAL DATA
Revenue,Place,Environmental & Regulatory Services,Coast Protection,5105654244,22.11.2017,Castle Haven Coast Protection Scheme,Payment to Private Contractors,"4,439.00",REDACTED PERSONAL DATA
Capital,Place,Capital,Capital,5105652738,08.11.2017,Rights Of Way Capital Programme,Payment to Contractors - Capital,"2,000.00",REDACTED PERSONAL DATA
Capital,Place,Capital,Capital,5105653373,15.11.2017,Rights Of Way Capital Programme,Payment to Contractors - Capital,"4,000.00",REDACTED PERSONAL DATA
Revenue,Place,Cultural and Related Services,Open Spaces,5105654140,17.11.2017,Rights of Way Operations,Payment to Private Contractors,800.00,REDACTED PERSONAL DATA
Revenue,Place,Cultural and Related Services,Open Spaces,5105653375,10.11.2017,Rights of Way Operations,Payment to Private Contractors,400.00,REDACTED PERSONAL DATA
Revenue,Childrens Services,Children's & Education Services,Safeguarding Children/Young Peoples Svs,5105652791,15.11.2017,Safeguarding Training,Training,600.00,MISSING SOLUTIONS LTD
Revenue,Place,Cultural and Related Services,Open Spaces,5105654306,22.11.2017,Rights of Way Operations,Payment to Private Contractors,70.00,NIGEL EARLEY SERVICES LTD
Revenue,Place,Cultural and Related Services,Open Spaces,5105654245,22.11.2017,Rights of Way Operations,Payment to Private Contractors,650.00,NIGEL EARLEY SERVICES LTD
Revenue,Resources,Central Services,Support Services,5105653245,10.11.2017,Legal Services Section,Sundry Office Expenses,59.97,OD CONSULTANCY LTD
Revenue,Place,Housing Services,Homelessness,5105654311,22.11.2017,Leaseholds by LA,Accommodation Costs - Leaseholder Payments,695.89,REDACTED PERSONAL DATA
Revenue,Place,Housing Services,Homelessness,5105654311,22.11.2017,Leaseholds by LA,Accommodation Costs - Leaseholder Payments,695.89,REDACTED PERSONAL DATA
Revenue,Place,Housing Services,Homelessness,5105654311,22.11.2017,Leaseholds by LA,Accommodation Costs - Leaseholder Payments,695.89,REDACTED PERSONAL DATA
Revenue,Place,Housing Services,Homelessness,5105654311,22.11.2017,Leaseholds by LA,Accommodation Costs - Leaseholder Payments,695.89,REDACTED PERSONAL DATA
Revenue,Place,Housing Services,Homelessness,5105654311,22.11.2017,Leaseholds by LA,Accommodation Costs - Leaseholder Payments,695.89,REDACTED PERSONAL DATA
Revenue,Childrens Services,Children's & Education Services,Children Looked After,5105654261,22.11.2017,Adoption Support Fund,Charges from Independent Providers,150.00,REDACTED PERSONAL DATA
Revenue,Childrens Services,Children's & Education Services,Children Looked After,5105654260,22.11.2017,Adoption Support Fund,Charges from Independent Providers,300.00,REDACTED PERSONAL DATA
Revenue,Childrens Services,Children's & Education Services,Children Looked After,5105651406,08.11.2017,Adoption Support Fund,Charges from Independent Providers,120.00,REDACTED PERSONAL DATA
Revenue,Regeneration,Central Services,Support Services,5105653366,10.11.2017,Ratings / Property Savings,Professional Services,"2,917.29",PRINCIPAL SURVEYORS LTD
Revenue,Regeneration,Central Services,Support Services,5105653372,10.11.2017,Ratings / Property Savings,Professional Services,"14,822.90",PRINCIPAL SURVEYORS LTD
Revenue,Regeneration,Central Services,Support Services,5105650968,08.11.2017,"Guildhall,Newport",Property Services - Planned Maintenance,195.00,R G PROPERTY SERVICES
Revenue,Place,Cultural and Related Services,Library Service,5105655209,29.11.2017,East Cowes Library,Property Services - Day to day Maintenance,978.00,REDACTED PERSONAL DATA
Revenue,Adult Services,Adult Social Care,Learning Disability Suppt-adults (18-64),5105653567,15.11.2017,Learning Disability Other LT Care 18-64,Taxis - Contract Hire,400.00,ROUNSEVELLS TAXIS
Revenue,Adult Services,Adult Social Care,Learning Disability Suppt-adults (18-64),5105652604,08.11.2017,Learning Disability Other LT Care 18-64,Taxis - Contract Hire,400.00,ROUNSEVELLS TAXIS
Revenue,Resources,Central Services,Support Services,5105650575,03.11.2017,Litigation Costs,Legal Fees - Other Parties,400.00,"COLLEGE CHAMBERS, BARRISTERS"
Revenue,Resources,Central Services,Support Services,5105652929,08.11.2017,Litigation Costs,Legal Fees - Other Parties,400.00,"COLLEGE CHAMBERS, BARRISTERS"
Revenue,Childrens Services,Children's & Education Services,Children Looked After,5105654088,17.11.2017,In-house Fostering,Support Children,168.00,SCALLYWAGS FUN CLUB
Revenue,Childrens Services,Children's & Education Services,Family Support Services,5105653518,15.11.2017,S17 Disabled Children,Support Children,164.00,SCALLYWAGS FUN CLUB
Revenue,Childrens Services,Children's & Education Services,Family Support Services,5105654451,22.11.2017,S17 Disabled Children,Support Children,33.00,SCALLYWAGS FUN CLUB
Revenue,Childrens Services,Children's & Education Services,Family Support Services,5105653523,15.11.2017,Short Breaks,Charges from Independent Providers,385.00,SCALLYWAGS FUN CLUB
Capital,Place,Capital,Capital,5105652684,03.11.2017,Cowes Floating Brdge,Payment to Contractors - Capital,"2,650.00",SHORELINE SURVEYS LIMITED
Revenue,Place,Cultural and Related Services,Culture and Heritage,5105653430,15.11.2017,Medina Theatre,Maintenance of Operational Equipment,60.00,REDACTED PERSONAL DATA
Revenue,Childrens Services,Children's & Education Services,Family Support Services,5105653688,17.11.2017,Short Breaks,Charges from Independent Providers,328.00,SPLAT MESSY PLAY LTD
Revenue,Childrens Services,Children's & Education Services,Family Support Services,5105652535,03.11.2017,Short Breaks,Charges from Independent Providers,263.00,SPLAT MESSY PLAY LTD
Revenue,Childrens Services,Adult Social Care,Information & Early Intervention,5105652279,08.11.2017,Adult Social Care - Workforce Development,Training,535.50,ST THOMAS TRAINING
Revenue,Childrens Services,Adult Social Care,Information & Early Intervention,5105654197,22.11.2017,Adult Social Care - Workforce Development,Training,535.50,ST THOMAS TRAINING
Revenue,Childrens Services,Children's & Education Services,Special Schools & Alternative Provision,5105652608,03.11.2017,Island Learning Centre,Agency staff,115.00,SUPPLY DESK LTD
Revenue,Childrens Services,Children's & Education Services,Special Schools & Alternative Provision,5105652608,03.11.2017,Island Learning Centre,Agency staff,145.00,SUPPLY DESK LTD
Revenue,Childrens Services,Children's & Education Services,Special Schools & Alternative Provision,5105652746,08.11.2017,Island Learning Centre,Agency staff,115.00,SUPPLY DESK LTD
Revenue,Childrens Services,Children's & Education Services,Special Schools & Alternative Provision,5105652746,08.11.2017,Island Learning Centre,Agency staff,145.00,SUPPLY DESK LTD
Revenue,Adult Services,Adult Social Care,Learning Disability Suppt-adults (18-64),5105655160,29.11.2017,Learning Disability Supportd Livng 18-64,Charges from Independent Providers,"1,071.45",NUMBER5NEWPORT
Revenue,Childrens Services,Children's & Education Services,Children Looked After,5105654759,29.11.2017,Leaving Care Costs,Charges from Independent Providers,"2,000.04",NUMBER5NEWPORT
Revenue,Childrens Services,Children's & Education Services,Children Looked After,5105654759,29.11.2017,Leaving Care Costs,Charges from Independent Providers,268.80,NUMBER5NEWPORT
Revenue,Childrens Services,Children's & Education Services,Children Looked After,5105654757,29.11.2017,Leaving Care Costs,Charges from Independent Providers,297.60,NUMBER5NEWPORT
Revenue,Childrens Services,Children's & Education Services,Children Looked After,5105655160,29.11.2017,Leaving Care Costs,Charges from Independent Providers,288.00,NUMBER5NEWPORT
Revenue,Childrens Services,Children's & Education Services,Children Looked After,5105654744,29.11.2017,Leaving Care Costs,Charges from Independent Providers,288.00,NUMBER5NEWPORT
Revenue,Childrens Services,Children's & Education Services,Children Looked After,5105651978,03.11.2017,Leaving Care Costs,Charges from Independent Providers,90.00,NUMBER5NEWPORT
Revenue,Childrens Services,Children's & Education Services,Children Looked After,5105654780,29.11.2017,Leaving Care Costs,Charges from Independent Providers,173.67,NUMBER5NEWPORT
Revenue,Childrens Services,Children's & Education Services,Children Looked After,5105654780,29.11.2017,Leaving Care Costs,Charges from Independent Providers,288.00,NUMBER5NEWPORT
Revenue,Childrens Services,Children's & Education Services,Children Looked After,5105654780,29.11.2017,Leaving Care Costs,Charges from Independent Providers,"2,592.93",NUMBER5NEWPORT
Revenue,Childrens Services,Children's & Education Services,Children Looked After,5105654757,29.11.2017,Purchased Residential,Charges from Independent Providers,"2,214.33",NUMBER5NEWPORT
Revenue,Childrens Services,Children's & Education Services,Children Looked After,5105655160,29.11.2017,Purchased Residential,Charges from Independent Providers,"1,071.45",NUMBER5NEWPORT
Revenue,Childrens Services,Children's & Education Services,Children Looked After,5105654744,29.11.2017,Purchased Residential,Charges from Independent Providers,"2,142.90",NUMBER5NEWPORT
Revenue,Childrens Services,Children's & Education Services,Children Looked After,5105651978,03.11.2017,Purchased Residential,Charges from Independent Providers,"2,214.33",NUMBER5NEWPORT
Revenue,Childrens Services,Children's & Education Services,Children Looked After,5105651978,03.11.2017,Purchased Residential,Charges from Independent Providers,297.60,NUMBER5NEWPORT
Revenue,Childrens Services,Children's & Education Services,Services for Young People,5105653590,15.11.2017,Youth Commissioning,Payments to Voluntary and Other Associations,"1,580.00",THE VECTIS RADIO 4PS TRAINING
Revenue,Childrens Services,Children's & Education Services,Other Education and Community Budget,5105653215,15.11.2017,Home to School Mainstream Transport,Taxis - Contract Hire,160.00,THOMPSON TAXI
Revenue,Childrens Services,Children's & Education Services,Other Education and Community Budget,5105653209,15.11.2017,Home to School Mainstream Transport,Taxis - Contract Hire,850.00,THOMPSON TAXI
Revenue,Childrens Services,Children's & Education Services,Other Education and Community Budget,5105653214,15.11.2017,Home to School SEN Transport (LA),Taxis - Contract Hire,"1,020.00",THOMPSON TAXI
Revenue,Childrens Services,Children's & Education Services,Other Education and Community Budget,5105653212,15.11.2017,Home to School SEN Transport (LA),Taxis - Contract Hire,"1,190.00",THOMPSON TAXI
Revenue,Childrens Services,Children's & Education Services,Other Education and Community Budget,5105654048,22.11.2017,Home to College Post 16 Transport,Taxis - Contract Hire,"1,120.00",TJ CAR SERVICES LTD
Revenue,Childrens Services,Children's & Education Services,Other Education and Community Budget,5105654048,22.11.2017,Home to College Post 16 Transport,Taxis - Contract Hire,352.00,TJ CAR SERVICES LTD
Revenue,Childrens Services,Children's & Education Services,Other Education and Community Budget,5105654048,22.11.2017,Home to College Post 16 Transport,Taxis - Contract Hire,594.00,TJ CAR SERVICES LTD
Revenue,Childrens Services,Children's & Education Services,Management & Support Services,5105651596,03.11.2017,Pupil Premium Managed Centrally,Professional Services,98.80,REDACTED PERSONAL DATA
Revenue,Childrens Services,Children's & Education Services,Management & Support Services,5105654493,29.11.2017,Pupil Premium Managed Centrally,Professional Services,31.60,REDACTED PERSONAL DATA
Revenue,Childrens Services,Children's & Education Services,Special Schools & Alternative Provision,5105653670,15.11.2017,Island Learning Centre,Cleaning Contracts,402.90,TOP MOPS LIMITED
Revenue,Childrens Services,Children's & Education Services,Special Schools & Alternative Provision,5105654481,24.11.2017,Island Learning Centre,Cleaning Contracts,"1,640.07",TOP MOPS LIMITED
Revenue,Childrens Services,Children's & Education Services,Special Schools & Alternative Provision,5105654457,24.11.2017,Island Learning Centre,Cleaning Contracts,959.85,TOP MOPS LIMITED
Revenue,Childrens Services,Children's & Education Services,Special Schools & Alternative Provision,5105653377,10.11.2017,Workshop Initiative Support in Education,Cleaning Contracts,177.60,TOP MOPS LIMITED
Revenue,Childrens Services,Children's & Education Services,Other Education and Community Budget,5105652121,01.11.2017,Barton Primary Sshool Disposal,Security of Buildings,192.00,VECTIS GROUP SECURITY LTD
Revenue,Childrens Services,Children's & Education Services,Other Education and Community Budget,5105652537,03.11.2017,Broadlea PS Berry Hill site (was 55909),Security of Buildings,72.00,VECTIS GROUP SECURITY LTD
Revenue,Childrens Services,Children's & Education Services,Services for Young People,5105653560,29.11.2017,Grafton Street Sandown (ex Sandown Yth),Security of Buildings,227.00,VECTIS GROUP SECURITY LTD
Revenue,Childrens Services,Children's & Education Services,Special Schools & Alternative Provision,5105653408,15.11.2017,Island Learning Centre,Security of Buildings,12.00,VECTIS GROUP SECURITY LTD
Revenue,Childrens Services,Children's & Education Services,Other Education and Community Budget,5105652232,01.11.2017,Weston Academy Closure,Security of Buildings,300.00,VECTIS GROUP SECURITY LTD
Revenue,Childrens Services,Children's & Education Services,Other Education and Community Budget,5105652232,01.11.2017,Weston Academy Closure,Security of Buildings,272.00,VECTIS GROUP SECURITY LTD
Revenue,Childrens Services,Children's & Education Services,Other Education and Community Budget,5105655490,29.11.2017,Weston Academy Closure,Security of Buildings,507.00,VECTIS GROUP SECURITY LTD
Revenue,Place,Planning services,Management & Support Services,5105653239,10.11.2017,Planning Management,Agency staff,"1,216.00",VIVID RESOURCING
Revenue,Place,Planning services,Management & Support Services,5105652728,08.11.2017,Planning Management,Agency staff,"1,520.00",VIVID RESOURCING
Revenue,Place,Planning services,Management & Support Services,5105653625,22.11.2017,Planning Management,Agency staff,595.08,VIVID RESOURCING
Revenue,Place,Planning services,Management & Support Services,5105654747,24.11.2017,Planning Management,Agency staff,"1,520.00",VIVID RESOURCING
Revenue,Childrens Services,Children's & Education Services,Other Education and Community Budget,5105653259,10.11.2017,Home to School SEN Transport (LA),Taxis - Contract Hire,"1,244.00",W W CARS OF SEAVIEW
Revenue,Childrens Services,Children's & Education Services,Other Education and Community Budget,5105653258,10.11.2017,Home to School SEN Transport (LA),Taxis - Contract Hire,680.00,W W CARS OF SEAVIEW
Revenue,Childrens Services,Children's & Education Services,Other Education and Community Budget,5105654162,17.11.2017,Home to College Post 16 Transport,Taxis - Contract Hire,182.00,HAVEN TAXIS & PRIVATE HIRE
Revenue,Childrens Services,Children's & Education Services,Other Education and Community Budget,5105654153,17.11.2017,Home to College Post 16 Transport,Taxis - Contract Hire,506.60,HAVEN TAXIS & PRIVATE HIRE
Revenue,Childrens Services,Children's & Education Services,Other Education and Community Budget,5105654154,17.11.2017,Home to School Mainstream Transport,Taxis - Contract Hire,300.00,HAVEN TAXIS & PRIVATE HIRE
Revenue,Childrens Services,Children's & Education Services,Other Education and Community Budget,5105654161,17.11.2017,Home to School Mainstream Transport,Taxis - Contract Hire,510.00,HAVEN TAXIS & PRIVATE HIRE
Revenue,Childrens Services,Children's & Education Services,Other Education and Community Budget,5105654150,17.11.2017,Home to School SEN Transport (LA),Taxis - Contract Hire,573.00,HAVEN TAXIS & PRIVATE HIRE
Revenue,Regeneration,Central Services,Support Services,5105654442,29.11.2017,17 Fairlee Road,Minor Works,260.00,WIGHT HEATING LTD
Revenue,Regeneration,Central Services,Support Services,5105653595,15.11.2017,"24 Daish Way, Newport (WISE)",Property Services - Day to day Maintenance,143.86,WIGHT HEATING LTD
Revenue,Adult Services,Adult Social Care,Central Codes (to be reallocated),5105654279,22.11.2017,Adelaide Resource Centre,Property Services - Day to day Maintenance,45.00,WIGHT HEATING LTD
Capital,Resources,Capital,Capital,5105653262,22.11.2017,Management of Asbestos,Payment to Contractors - Capital,"8,941.78",WIGHT HEATING LTD
Capital,Resources,Capital,Capital,5105652957,17.11.2017,Management of Asbestos,Payment to Contractors - Capital,"3,218.13",WIGHT HEATING LTD
Capital,Resources,Capital,Capital,5105654430,22.11.2017,Management of Asbestos,Payment to Contractors - Capital,"2,813.76",WIGHT HEATING LTD
Revenue,Childrens Services,Children's & Education Services,Children Looked After,5105652923,08.11.2017,Beaulieu House,Minor Works,140.00,WIGHT HEATING LTD
Capital,Resources,Capital,Capital,5105652660,03.11.2017,Boiler Replacement Heating Non Education,Payment to Contractors - Capital,"3,144.18",WIGHT HEATING LTD
Capital,Resources,Capital,Capital,5105652972,10.11.2017,Boiler Replacement Heating Non Education,Payment to Contractors - Capital,"9,846.87",WIGHT HEATING LTD
Revenue,Place,Fire & Rescue Services,Fire fighting and Rescue Operations,5105654092,17.11.2017,Business Support  - Fire,Property Services - Planned Maintenance,397.50,WIGHT HEATING LTD
Revenue,Place,Fire & Rescue Services,Fire fighting and Rescue Operations,5105654174,17.11.2017,Business Support  - Fire,Property Services - Planned Maintenance,110.00,WIGHT HEATING LTD
Revenue,Place,Fire & Rescue Services,Fire fighting and Rescue Operations,5105652783,08.11.2017,Business Support  - Fire,Property Services - Day to day Maintenance,"2,078.34",WIGHT HEATING LTD
Revenue,Place,Fire & Rescue Services,Fire fighting and Rescue Operations,5105654070,17.11.2017,Business Support  - Fire,Property Services - Day to day Maintenance,115.00,WIGHT HEATING LTD
Revenue,Regeneration,Central Services,Support Services,5105654809,24.11.2017,"Civic Centre,Sandown",Property Services - Day to day Maintenance,80.00,WIGHT HEATING LTD
Revenue,Adult Services,Adult Social Care,Assistive Equipment & Technology,5105653401,10.11.2017,Community Equipment Store,Fixtures and Fittings,45.00,WIGHT HEATING LTD
Revenue,Regeneration,Central Services,Support Services,5105654060,17.11.2017,"County Hall,Newport",Property Services - Planned Maintenance,115.00,WIGHT HEATING LTD
Revenue,Regeneration,Central Services,Support Services,5105653402,10.11.2017,"County Hall,Newport",Property Services - Day to day Maintenance,451.32,WIGHT HEATING LTD
Revenue,Childrens Services,Children's & Education Services,Support Service & Management Costs,5105654810,24.11.2017,Family Centres Maintenance,Minor Works,45.00,WIGHT HEATING LTD
Revenue,Adult Services,Adult Social Care,Central Codes (to be reallocated),5105651547,01.11.2017,Mental Health Day Services,Property Services - Day to day Maintenance,342.83,WIGHT HEATING LTD
Revenue,Place,Cultural and Related Services,Recreation and Sport,5105651541,01.11.2017,The Heights,Property Services - Day to day Maintenance,287.68,WIGHT HEATING LTD
Revenue,Adult Services,Adult Social Care,Learning Disab Supp (to be reallocated),5105652927,08.11.2017,The Laurels,Minor Works,105.00,WIGHT HEATING LTD
Revenue,Place,Cultural and Related Services,Library Service,5105654139,17.11.2017,Ventnor Library,Property Services - Planned Maintenance,75.00,WIGHT HEATING LTD
Revenue,Adult Services,Adult Social Care,Learning Disab Supp (to be reallocated),5105654440,22.11.2017,Westminster House,Property Services - Day to day Maintenance,160.00,WIGHT HEATING LTD
Revenue,Adult Services,Adult Social Care,Learning Disab Supp (to be reallocated),5105654172,17.11.2017,Westminster House,Property Services - Day to day Maintenance,90.00,WIGHT HEATING LTD
Revenue,Adult Services,Adult Social Care,Learning Disab Supp (to be reallocated),5105654432,22.11.2017,Westminster House,Property Services - Day to day Maintenance,487.55,WIGHT HEATING LTD
Revenue,Childrens Services,Children's & Education Services,Children Looked After,5105653554,15.11.2017,Leaving Care Costs,Payments to/Aid Provided to Clients,125.00,1-2 CALL WORKSAFE LTD
Revenue,Place,Housing Services,Homelessness,5105654326,22.11.2017,Leaseholds by LA,Accommodation Costs - Leaseholder Payments,866.67,2K PROPERTY
Revenue,Childrens Services,Children's & Education Services,Safeguarding Children/Young Peoples Svs,5105654418,22.11.2017,Court Work & Consultancy Services,Legal Fees - Other Parties,"3,300.00",3PB THE CHAMBERS OF IAN LAWRIE QC
Revenue,Childrens Services,Children's & Education Services,Special Schools & Alternative Provision,5105648622,01.11.2017,Workshop Initiative Support in Education,Cleaning Contracts,180.00,SEECLEAR
Revenue,Adult Services,Adult Social Care,Learning Disability Suppt-adults (18-64),5105655018,29.11.2017,Learning Disability Direct Pay 18-64,Payments for Self Directed Support,200.00,REDACTED PERSONAL DATA
Revenue,Adult Services,Adult Social Care,Learning Disability Suppt-adults (18-64),5105654950,29.11.2017,Learning Disability Direct Pay 18-64,Payments for Self Directed Support,"1,041.60",REDACTED PERSONAL DATA
Revenue,Adult Services,Adult Social Care,Mental Health Support - adults (18-64),5105655002,29.11.2017,Mental Health Direct Payment 18-64,Payments for Self Directed Support,380.00,REDACTED PERSONAL DATA
Revenue,Childrens Services,Children's & Education Services,Family Support Services,5105654824,24.11.2017,Direct Payments (Children & Families),Direct Payments,190.00,REDACTED PERSONAL DATA
Revenue,Childrens Services,Children's & Education Services,Family Support Services,5105654824,24.11.2017,Direct Payments (Children & Families),Direct Payments,437.00,REDACTED PERSONAL DATA
Revenue,Adult Services,Adult Social Care,Physical Support - adults (18-64),5105655038,29.11.2017,Physical Support Direct Pay 18-64,Payments for Self Directed Support,"2,450.00",REDACTED PERSONAL DATA
Revenue,Childrens Services,Children's & Education Services,Children Looked After,5105653759,17.11.2017,In-house Fostering,Boarding Out Allowances,268.02,REDACTED PERSONAL DATA
Revenue,Childrens Services,Children's & Education Services,Children Looked After,5105654564,24.11.2017,In-house Fostering,Boarding Out Allowances,234.52,REDACTED PERSONAL DATA
Revenue,Childrens Services,Children's & Education Services,Children Looked After,5105654564,24.11.2017,In-house Fostering,Boarding Out Allowances,234.52,REDACTED PERSONAL DATA
Revenue,Childrens Services,Children's & Education Services,Children Looked After,5105653759,17.11.2017,In-house Fostering,Boarding Out Allowances,268.02,REDACTED PERSONAL DATA
Revenue,Childrens Services,Children's & Education Services,Children Looked After,5105655318,29.11.2017,In-house Fostering,Boarding Out Allowances,234.52,REDACTED PERSONAL DATA
Revenue,Childrens Services,Children's & Education Services,Children Looked After,5105655318,29.11.2017,In-house Fostering,Boarding Out Allowances,234.52,REDACTED PERSONAL DATA
Revenue,Childrens Services,Children's & Education Services,Children Looked After,5105655318,29.11.2017,Special Guardianship Order Costs,Support Children,105.00,REDACTED PERSONAL DATA
Revenue,Childrens Services,Children's & Education Services,Children Looked After,5105653759,17.11.2017,Special Guardianship Order Costs,Support Children,168.39,REDACTED PERSONAL DATA
Revenue,Childrens Services,Children's & Education Services,Children Looked After,5105654564,24.11.2017,Special Guardianship Order Costs,Support Children,168.39,REDACTED PERSONAL DATA
Revenue,Childrens Services,Children's & Education Services,Children Looked After,5105655318,29.11.2017,Special Guardianship Order Costs,Support Children,168.39,REDACTED PERSONAL DATA
Revenue,Childrens Services,Children's & Education Services,Children Looked After,5105654118,17.11.2017,Special Guardianship Order Costs,Support Children,840.00,REDACTED PERSONAL DATA
Revenue,Childrens Services,Children's & Education Services,Children Looked After,5105654564,24.11.2017,Special Guardianship Order Costs,Support Children,105.00,REDACTED PERSONAL DATA
Revenue,Childrens Services,Children's & Education Services,Children Looked After,5105652365,03.11.2017,Special Guardianship Order Costs,Support Children,168.39,REDACTED PERSONAL DATA
Revenue,Childrens Services,Children's & Education Services,Children Looked After,5105653024,10.11.2017,Special Guardianship Order Costs,Support Children,168.39,REDACTED PERSONAL DATA
Revenue,Adult Services,Adult Social Care,Learning Disability Suppt-adults (18-64),5105654952,29.11.2017,Learning Disability Direct Pay 18-64,Payments for Self Directed Support,"2,714.80",REDACTED PERSONAL DATA
Revenue,Adult Services,Adult Social Care,Learning Disability Suppt-adults (18-64),5105655003,29.11.2017,Learning Disability Direct Pay 18-64,Payments for Self Directed Support,253.84,REDACTED PERSONAL DATA
Revenue,Childrens Services,Children's & Education Services,Children Looked After,5105654617,24.11.2017,Leaving Care Costs,Support Children,120.89,REDACTED PERSONAL DATA
Revenue,Childrens Services,Children's & Education Services,Children Looked After,5105655371,29.11.2017,Leaving Care Costs,Support Children,120.89,REDACTED PERSONAL DATA
Revenue,Childrens Services,Children's & Education Services,Children Looked After,5105655371,29.11.2017,Leaving Care Costs,Support Children,68.50,REDACTED PERSONAL DATA
Revenue,Childrens Services,Children's & Education Services,Children Looked After,5105654617,24.11.2017,Leaving Care Costs,Support Children,68.50,REDACTED PERSONAL DATA
Revenue,Childrens Services,Children's & Education Services,Children Looked After,5105654617,24.11.2017,Leaving Care Costs,Support Children,2.90,REDACTED PERSONAL DATA
Revenue,Childrens Services,Children's & Education Services,Children Looked After,5105655371,29.11.2017,Leaving Care Costs,Support Children,2.90,REDACTED PERSONAL DATA
Revenue,Childrens Services,Children's & Education Services,Children Looked After,5105653812,17.11.2017,Leaving Care Costs,Support Children,120.89,REDACTED PERSONAL DATA
Revenue,Childrens Services,Children's & Education Services,Children Looked After,5105653812,17.11.2017,Leaving Care Costs,Support Children,68.50,REDACTED PERSONAL DATA
Revenue,Childrens Services,Children's & Education Services,Children Looked After,5105653812,17.11.2017,Leaving Care Costs,Support Children,2.90,REDACTED PERSONAL DATA
Revenue,Childrens Services,Children's & Education Services,Children Looked After,5105652419,03.11.2017,Leaving Care Costs,Support Children,120.89,REDACTED PERSONAL DATA
Revenue,Childrens Services,Children's & Education Services,Children Looked After,5105653078,10.11.2017,Leaving Care Costs,Support Children,120.89,REDACTED PERSONAL DATA
Revenue,Childrens Services,Children's & Education Services,Children Looked After,5105653078,10.11.2017,Leaving Care Costs,Support Children,68.50,REDACTED PERSONAL DATA
Revenue,Childrens Services,Children's & Education Services,Children Looked After,5105652419,03.11.2017,Leaving Care Costs,Support Children,68.50,REDACTED PERSONAL DATA
Revenue,Childrens Services,Children's & Education Services,Children Looked After,5105653078,10.11.2017,Leaving Care Costs,Support Children,2.90,REDACTED PERSONAL DATA
Revenue,Childrens Services,Children's & Education Services,Children Looked After,5105652419,03.11.2017,Leaving Care Costs,Support Children,2.90,REDACTED PERSONAL DATA
Revenue,Place,Housing Services,Homelessness,5105654322,22.11.2017,Leaseholds by LA,Accommodation Costs - Leaseholder Payments,510.25,REDACTED PERSONAL DATA
Revenue,Place,Housing Services,Homelessness,5105654322,22.11.2017,Leaseholds by LA,Accommodation Costs - Leaseholder Payments,510.25,REDACTED PERSONAL DATA
Revenue,Place,Housing Services,Homelessness,5105654322,22.11.2017,Leaseholds by LA,Accommodation Costs - Leaseholder Payments,510.25,REDACTED PERSONAL DATA
Revenue,Place,Housing Services,Homelessness,5105654322,22.11.2017,Leaseholds by LA,Accommodation Costs - Leaseholder Payments,510.25,REDACTED PERSONAL DATA
Revenue,Place,Housing Services,Homelessness,5105654322,22.11.2017,Leaseholds by LA,Accommodation Costs - Leaseholder Payments,510.25,REDACTED PERSONAL DATA
Revenue,Place,Housing Services,Homelessness,5105654322,22.11.2017,Leaseholds by LA,Accommodation Costs - Leaseholder Payments,510.25,REDACTED PERSONAL DATA
Revenue,Childrens Services,Children's & Education Services,Children Looked After,5105655306,29.11.2017,Adoption Costs,Support Children,225.83,REDACTED PERSONAL DATA
Revenue,Childrens Services,Children's & Education Services,Children Looked After,5105654552,24.11.2017,Adoption Costs,Support Children,225.83,REDACTED PERSONAL DATA
Revenue,Childrens Services,Children's & Education Services,Children Looked After,5105653747,17.11.2017,Adoption Costs,Support Children,225.83,REDACTED PERSONAL DATA
Revenue,Childrens Services,Children's & Education Services,Children Looked After,5105652352,03.11.2017,Adoption Costs,Support Children,225.83,REDACTED PERSONAL DATA
Revenue,Childrens Services,Children's & Education Services,Children Looked After,5105653012,10.11.2017,Adoption Costs,Support Children,225.83,REDACTED PERSONAL DATA
Revenue,Childrens Services,Children's & Education Services,Children Looked After,5105655345,29.11.2017,In-house Fostering,Boarding Out Allowances,500.00,REDACTED PERSONAL DATA
Revenue,Childrens Services,Children's & Education Services,Children Looked After,5105655345,29.11.2017,In-house Fostering,Boarding Out Allowances,500.00,REDACTED PERSONAL DATA
Revenue,Childrens Services,Children's & Education Services,Children Looked After,5105654591,24.11.2017,In-house Fostering,Boarding Out Allowances,500.00,REDACTED PERSONAL DATA
Revenue,Childrens Services,Children's & Education Services,Children Looked After,5105653786,17.11.2017,In-house Fostering,Boarding Out Allowances,500.00,REDACTED PERSONAL DATA
Revenue,Childrens Services,Children's & Education Services,Children Looked After,5105654591,24.11.2017,In-house Fostering,Boarding Out Allowances,500.00,REDACTED PERSONAL DATA
Revenue,Childrens Services,Children's & Education Services,Children Looked After,5105653786,17.11.2017,In-house Fostering,Boarding Out Allowances,500.00,REDACTED PERSONAL DATA
Revenue,Childrens Services,Children's & Education Services,Children Looked After,5105653052,10.11.2017,In-house Fostering,Boarding Out Allowances,500.00,REDACTED PERSONAL DATA
Revenue,Childrens Services,Children's & Education Services,Children Looked After,5105653052,10.11.2017,In-house Fostering,Boarding Out Allowances,500.00,REDACTED PERSONAL DATA
Revenue,Childrens Services,Children's & Education Services,Children Looked After,5105652393,03.11.2017,In-house Fostering,Boarding Out Allowances,500.00,REDACTED PERSONAL DATA
Revenue,Childrens Services,Children's & Education Services,Children Looked After,5105652393,03.11.2017,In-house Fostering,Boarding Out Allowances,500.00,REDACTED PERSONAL DATA
Revenue,Place,Housing Services,Homelessness,5105654313,22.11.2017,Leaseholds by LA,Accommodation Costs - Leaseholder Payments,700.00,REDACTED PERSONAL DATA
Revenue,Place,Housing Services,Homelessness,5105654313,22.11.2017,Leaseholds by LA,Accommodation Costs - Leaseholder Payments,835.08,REDACTED PERSONAL DATA
Revenue,Place,Housing Services,Homelessness,5105654313,22.11.2017,Leaseholds by LA,Accommodation Costs - Leaseholder Payments,789.01,REDACTED PERSONAL DATA
Revenue,Place,Housing Services,Homelessness,5105654313,22.11.2017,Leaseholds by LA,Accommodation Costs - Leaseholder Payments,649.83,REDACTED PERSONAL DATA
Revenue,Place,Highways and Transport Services,Transport Planning Policy and Strategy,5105651603,22.11.2017,Sustainable Travel Transition Year LSTF,Payment to Private Contractors,"3,017.60",A TO THERE SOLUTIONS LTD
Revenue,Place,Highways and Transport Services,Transport Planning Policy and Strategy,5105654391,22.11.2017,Sustainable Travel Transition Year LSTF,Payment to Private Contractors,"3,353.70",A TO THERE SOLUTIONS LTD
Revenue,Place,Highways and Transport Services,Transport Planning Policy and Strategy,5105654389,21.11.2017,Sustainable Travel Transition Year LSTF,Payment to Private Contractors,"-3,353.70",A TO THERE SOLUTIONS LTD
Revenue,Adult Services,Adult Social Care,Learning Disability Suppt-adults (18-64),5105654962,29.11.2017,Learning Disability Direct Pay 18-64,Payments for Self Directed Support,"1,472.00",REDACTED PERSONAL DATA
Revenue,Adult Services,Adult Social Care,Learning Disability Suppt-adults (18-64),5105655041,29.11.2017,Learning Disability Direct Pay 18-64,Payments for Self Directed Support,332.00,REDACTED PERSONAL DATA
Revenue,Adult Services,Adult Social Care,Support - Memory /Cognition-older people (65+),5105655133,29.11.2017,Memory & Cognition Residential 65+,Charges from Independent Providers,"3,200.12",ABBERDALE LIMITED
Revenue,Resources,Central Services,Support Services,5105652533,03.11.2017,ICT Contracts,Consultants Fees,"4,200.00",ABSOFT LIMITED
Revenue,Resources,Central Services,Support Services,5105652533,03.11.2017,Pension Administration,Consultants Fees,"4,200.00",ABSOFT LIMITED
Revenue,Adult Services,Balance Sheet,Balance Sheet,5105654961,29.11.2017,REDACTED PERSONAL DATA,Order Settlement to Bal Sht GL,"1,862.00",ACACIA CARE HOME
Revenue,Adult Services,Adult Social Care,Social Support - Support for Carer,5105654961,29.11.2017,Carers Residential,Charges from Independent Providers,"1,950.20",ACACIA CARE HOME
Revenue,Adult Services,Adult Social Care,Support - Memory /Cognition-older people (65+),5105654961,29.11.2017,Memory & Cognition Residential 65+,Charges from Independent Providers,"1,950.20",ACACIA CARE HOME
Revenue,Adult Services,Balance Sheet,Balance Sheet,5105654961,29.11.2017,REDACTED PERSONAL DATA,Order Settlement to Bal Sht GL,"1,950.20",ACACIA CARE HOME
Revenue,Adult Services,Adult Social Care,Physical Support - adults (18-64),5105654961,29.11.2017,Physical Support Residential 18-64,Charges from Independent Providers,"1,862.00",ACACIA CARE HOME
Revenue,Adult Services,Adult Social Care,Physical Support - older people (65+),5105654961,29.11.2017,Physical Support Residential 65+,Charges from Independent Providers,"1,950.20",ACACIA CARE HOME
Revenue,Adult Services,Adult Social Care,Physical Support - older people (65+),5105653330,10.11.2017,Physical Support Residential 65+,Charges from Independent Providers,129.15,ACACIA CARE HOME
Revenue,Chief Executive,Central Services,Support Services,5105655201,29.11.2017,Media,Professional Subscriptions,"3,500.00",ACCESS INTELLIGENCE MEDIA & COMMUNICATIONS LTD
Revenue,Adult Services,Adult Social Care,Learning Disab Supp (to be reallocated),5105653210,17.11.2017,31 Carter Avenue,Recruitment Advertising,6.00,ACCESS PERSONAL CHECKING SERVICES LTD
Revenue,Adult Services,Adult Social Care,Learning Disab Supp (to be reallocated),5105653210,17.11.2017,31 Carter Avenue,Recruitment Advertising,44.00,ACCESS PERSONAL CHECKING SERVICES LTD
Revenue,Adult Services,Adult Social Care,Learning Disab Supp (to be reallocated),5105653210,17.11.2017,40 Venner Avenue,Recruitment Advertising,6.00,ACCESS PERSONAL CHECKING SERVICES LTD
Revenue,Adult Services,Adult Social Care,Learning Disab Supp (to be reallocated),5105653210,17.11.2017,40 Venner Avenue,Recruitment Advertising,44.00,ACCESS PERSONAL CHECKING SERVICES LTD
Revenue,Childrens Services,Children's & Education Services,Children Looked After,5105653210,17.11.2017,Adoption Team,Recruitment Advertising,220.00,ACCESS PERSONAL CHECKING SERVICES LTD
Revenue,Childrens Services,Children's & Education Services,Children Looked After,5105653210,17.11.2017,Adoption Team,Recruitment Advertising,30.00,ACCESS PERSONAL CHECKING SERVICES LTD
Revenue,Childrens Services,Children's & Education Services,Children Looked After,5105653210,17.11.2017,Beaulieu House,Recruitment Advertising,88.00,ACCESS PERSONAL CHECKING SERVICES LTD
Revenue,Childrens Services,Children's & Education Services,Children Looked After,5105653210,17.11.2017,Beaulieu House,Recruitment Advertising,12.00,ACCESS PERSONAL CHECKING SERVICES LTD
Revenue,Adult Services,Adult Social Care,Central Codes (to be reallocated),5105653210,17.11.2017,Community Outreach,Recruitment Advertising,24.00,ACCESS PERSONAL CHECKING SERVICES LTD
Revenue,Adult Services,Adult Social Care,Central Codes (to be reallocated),5105653210,17.11.2017,Community Outreach,Recruitment Advertising,176.00,ACCESS PERSONAL CHECKING SERVICES LTD
Revenue,Childrens Services,Children's & Education Services,Family Support Services,5105653210,17.11.2017,Direct Payments (Children & Families),Recruitment Advertising,6.00,ACCESS PERSONAL CHECKING SERVICES LTD
Revenue,Childrens Services,Children's & Education Services,Family Support Services,5105653210,17.11.2017,Direct Payments (Children & Families),Recruitment Advertising,44.00,ACCESS PERSONAL CHECKING SERVICES LTD
Revenue,Resources,Central Services,Corporate and Democratic Core,5105653210,17.11.2017,Democratic Representation & Management,Recruitment Advertising,6.00,ACCESS PERSONAL CHECKING SERVICES LTD
Revenue,Resources,Central Services,Corporate and Democratic Core,5105653210,17.11.2017,Democratic Representation & Management,Recruitment Advertising,44.00,ACCESS PERSONAL CHECKING SERVICES LTD
Revenue,Place,Cultural and Related Services,Service Management and Support Services,5105653210,17.11.2017,Duke of Edingburgh Award,Recruitment Advertising,44.00,ACCESS PERSONAL CHECKING SERVICES LTD
Revenue,Place,Cultural and Related Services,Service Management and Support Services,5105653210,17.11.2017,Duke of Edingburgh Award,Recruitment Advertising,6.00,ACCESS PERSONAL CHECKING SERVICES LTD
Revenue,Childrens Services,Children's & Education Services,Other Education and Community Budget,5105653210,17.11.2017,Education Welfare Service,Recruitment Advertising,36.00,ACCESS PERSONAL CHECKING SERVICES LTD
Revenue,Childrens Services,Children's & Education Services,Other Education and Community Budget,5105653210,17.11.2017,Education Welfare Service,Recruitment Advertising,88.00,ACCESS PERSONAL CHECKING SERVICES LTD
Revenue,Childrens Services,Children's & Education Services,Children Looked After,5105653210,17.11.2017,In-house Fostering,Recruitment Advertising,108.00,ACCESS PERSONAL CHECKING SERVICES LTD
Revenue,Childrens Services,Children's & Education Services,Children Looked After,5105653210,17.11.2017,In-house Fostering,Recruitment Advertising,792.00,ACCESS PERSONAL CHECKING SERVICES LTD
Revenue,Childrens Services,Children's & Education Services,Special Schools & Alternative Provision,5105653210,17.11.2017,Island Learning Centre,Recruitment Advertising,6.00,ACCESS PERSONAL CHECKING SERVICES LTD
Revenue,Childrens Services,Children's & Education Services,Special Schools & Alternative Provision,5105653210,17.11.2017,Island Learning Centre,Recruitment Advertising,44.00,ACCESS PERSONAL CHECKING SERVICES LTD
Revenue,Place,Environmental & Regulatory Services,Regulatory Services,5105653213,10.11.2017,Licensing Services,Professional Services,264.00,ACCESS PERSONAL CHECKING SERVICES LTD
Revenue,Place,Environmental & Regulatory Services,Regulatory Services,5105653213,10.11.2017,Licensing Services,Professional Services,36.00,ACCESS PERSONAL CHECKING SERVICES LTD
Revenue,Place,Cultural and Related Services,Recreation and Sport,5105653210,17.11.2017,Medina Leisure Centre,Recruitment Advertising,150.00,ACCESS PERSONAL CHECKING SERVICES LTD
Revenue,Place,Cultural and Related Services,Recreation and Sport,5105653210,17.11.2017,Medina Leisure Centre,Recruitment Advertising,48.00,ACCESS PERSONAL CHECKING SERVICES LTD
Revenue,Place,Cultural and Related Services,Recreation and Sport,5105653210,17.11.2017,Medina Leisure Centre,Recruitment Advertising,24.00,ACCESS PERSONAL CHECKING SERVICES LTD
Revenue,Place,Cultural and Related Services,Recreation and Sport,5105653210,17.11.2017,Medina Leisure Centre,Recruitment Advertising,176.00,ACCESS PERSONAL CHECKING SERVICES LTD
Revenue,Adult Services,Adult Social Care,Learning Disab Supp (to be reallocated),5105653210,17.11.2017,Plean Dene,Recruitment Advertising,12.00,ACCESS PERSONAL CHECKING SERVICES LTD
Revenue,Adult Services,Adult Social Care,Learning Disab Supp (to be reallocated),5105653210,17.11.2017,Plean Dene,Recruitment Advertising,88.00,ACCESS PERSONAL CHECKING SERVICES LTD
Revenue,Adult Services,Adult Social Care,Learning Disab Supp (to be reallocated),5105653210,17.11.2017,Saxonbury,Recruitment Advertising,6.00,ACCESS PERSONAL CHECKING SERVICES LTD
Revenue,Adult Services,Adult Social Care,Learning Disab Supp (to be reallocated),5105653210,17.11.2017,Saxonbury,Recruitment Advertising,44.00,ACCESS PERSONAL CHECKING SERVICES LTD
Revenue,Childrens Services,Children's & Education Services,Management & Support Services,5105653210,17.11.2017,"Speech, Language and Communication",Recruitment Advertising,44.00,ACCESS PERSONAL CHECKING SERVICES LTD
Revenue,Childrens Services,Children's & Education Services,Management & Support Services,5105653210,17.11.2017,"Speech, Language and Communication",Recruitment Advertising,6.00,ACCESS PERSONAL CHECKING SERVICES LTD
Revenue,Place,Cultural and Related Services,Recreation and Sport,5105653210,17.11.2017,The Heights,Recruitment Advertising,50.00,ACCESS PERSONAL CHECKING SERVICES LTD
Revenue,Place,Cultural and Related Services,Recreation and Sport,5105653210,17.11.2017,The Heights,Recruitment Advertising,16.00,ACCESS PERSONAL CHECKING SERVICES LTD
Revenue,Place,Cultural and Related Services,Recreation and Sport,5105653210,17.11.2017,The Heights,Recruitment Advertising,6.00,ACCESS PERSONAL CHECKING SERVICES LTD
Revenue,Place,Cultural and Related Services,Recreation and Sport,5105653210,17.11.2017,The Heights,Recruitment Advertising,44.00,ACCESS PERSONAL CHECKING SERVICES LTD
Revenue,Adult Services,Adult Social Care,Learning Disab Supp (to be reallocated),5105653210,17.11.2017,The Laurels,Recruitment Advertising,6.00,ACCESS PERSONAL CHECKING SERVICES LTD
Revenue,Adult Services,Adult Social Care,Learning Disab Supp (to be reallocated),5105653210,17.11.2017,The Laurels,Recruitment Advertising,44.00,ACCESS PERSONAL CHECKING SERVICES LTD
Revenue,Childrens Services,Children's & Education Services,Youth Justice,5105653210,17.11.2017,Youth Offending Team,Recruitment Advertising,6.00,ACCESS PERSONAL CHECKING SERVICES LTD
Revenue,Childrens Services,Children's & Education Services,Children Looked After,5105652792,08.11.2017,Purchased Fostering,Charges from Independent Providers,"1,124.82",ACTION FOR CHILDREN SERVICES LTD
Revenue,Adult Services,Adult Social Care,Learning Disability Suppt-adults (18-64),5105655016,29.11.2017,Learning Disability Direct Pay 18-64,Payments for Self Directed Support,"1,731.52",REDACTED PERSONAL DATA
Revenue,Childrens Services,Adult Social Care,Information & Early Intervention,5105652254,01.11.2017,ASC Trg Improved Better Care Fund,Postage,50.00,ADAM ROUILLY LTD
Revenue,Childrens Services,Adult Social Care,Information & Early Intervention,5105652254,01.11.2017,ASC Trg Improved Better Care Fund,General Educational Materials,"1,325.00",ADAM ROUILLY LTD
Revenue,Childrens Services,Adult Social Care,Information & Early Intervention,5105652254,01.11.2017,ASC Trg Improved Better Care Fund,General Educational Materials,"1,187.00",ADAM ROUILLY LTD
Revenue,Adult Services,Adult Social Care,Commissioning & Service Delivery,5105653643,15.11.2017,Director of Adult Social Services,Professional Subscriptions,"1,615.00",ADASS
Revenue,Adult Services,Adult Social Care,Commissioning & Service Delivery,5105653642,15.11.2017,Director of Adult Social Services,Professional Subscriptions,"1,582.00",ADASS
Revenue,Childrens Services,Children's & Education Services,Management & Support Services,5105651647,01.11.2017,Education Direct Payments,Direct Payments,107.80,A-DAY CONSULTANTS LTD
Revenue,Childrens Services,Children's & Education Services,Management & Support Services,5105652262,10.11.2017,Education Direct Payments,Direct Payments,107.80,A-DAY CONSULTANTS LTD
Revenue,Childrens Services,Children's & Education Services,Management & Support Services,5105651647,01.11.2017,Education Direct Payments,Direct Payments,215.60,A-DAY CONSULTANTS LTD
Revenue,Childrens Services,Children's & Education Services,Management & Support Services,5105654748,29.11.2017,Education Direct Payments,Direct Payments,107.80,A-DAY CONSULTANTS LTD
Revenue,Childrens Services,Children's & Education Services,Management & Support Services,5105654271,22.11.2017,Education Direct Payments,Direct Payments,107.80,A-DAY CONSULTANTS LTD
Revenue,Childrens Services,Children's & Education Services,Management & Support Services,5105653644,17.11.2017,Education Direct Payments,Direct Payments,215.60,A-DAY CONSULTANTS LTD
Revenue,Childrens Services,Children's & Education Services,Management & Support Services,5105654274,22.11.2017,Education Direct Payments,Direct Payments,107.80,A-DAY CONSULTANTS LTD
Revenue,Childrens Services,Children's & Education Services,Management & Support Services,5105653644,17.11.2017,Education Direct Payments,Charges from Independent Providers,743.20,A-DAY CONSULTANTS LTD
Revenue,Childrens Services,Children's & Education Services,Management & Support Services,5105654224,22.11.2017,Education Direct Payments,Charges from Independent Providers,110.00,A-DAY CONSULTANTS LTD
Revenue,Childrens Services,Children's & Education Services,Management & Support Services,5105654272,22.11.2017,Education Direct Payments,Charges from Independent Providers,295.80,A-DAY CONSULTANTS LTD
Revenue,Childrens Services,Children's & Education Services,Management & Support Services,5105654273,22.11.2017,Education Direct Payments,Charges from Independent Providers,330.00,A-DAY CONSULTANTS LTD
Revenue,Childrens Services,Children's & Education Services,Management & Support Services,5105654275,22.11.2017,Education Direct Payments,Charges from Independent Providers,227.40,A-DAY CONSULTANTS LTD
Revenue,Childrens Services,Children's & Education Services,Management & Support Services,5105654763,24.11.2017,Education Direct Payments,Charges from Independent Providers,151.60,A-DAY CONSULTANTS LTD
Revenue,Childrens Services,Children's & Education Services,Management & Support Services,5105654775,24.11.2017,Education Direct Payments,Charges from Independent Providers,295.80,A-DAY CONSULTANTS LTD
Revenue,Childrens Services,Children's & Education Services,Management & Support Services,5105654760,24.11.2017,Education Direct Payments,Charges from Independent Providers,110.00,A-DAY CONSULTANTS LTD
Revenue,Childrens Services,Children's & Education Services,Management & Support Services,5105654766,24.11.2017,Education Direct Payments,Charges from Independent Providers,356.80,A-DAY CONSULTANTS LTD
Revenue,Childrens Services,Children's & Education Services,Management & Support Services,5105651647,01.11.2017,Education Direct Payments,Charges from Independent Providers,963.20,A-DAY CONSULTANTS LTD
Revenue,Childrens Services,Children's & Education Services,Management & Support Services,5105652262,10.11.2017,Education Direct Payments,Charges from Independent Providers,667.40,A-DAY CONSULTANTS LTD
Revenue,Childrens Services,Children's & Education Services,Special Schools & Alternative Provision,5105653301,10.11.2017,Island Learning Centre,Agency staff,"1,410.40",A-DAY CONSULTANTS LTD
Revenue,Childrens Services,Children's & Education Services,Special Schools & Alternative Provision,5105653222,10.11.2017,Island Learning Centre,Agency staff,"1,736.20",A-DAY CONSULTANTS LTD
Revenue,Childrens Services,Children's & Education Services,Special Schools & Alternative Provision,5105653223,10.11.2017,Island Learning Centre,Agency staff,"1,564.60",A-DAY CONSULTANTS LTD
Revenue,Childrens Services,Children's & Education Services,Special Schools & Alternative Provision,5105655227,29.11.2017,Island Learning Centre,Agency staff,"3,271.20",A-DAY CONSULTANTS LTD
Revenue,Childrens Services,Children's & Education Services,Special Schools & Alternative Provision,5105654492,22.11.2017,Island Learning Centre,Agency staff,"3,045.80",A-DAY CONSULTANTS LTD
Revenue,Place,Cultural and Related Services,Recreation and Sport,5105653388,10.11.2017,Commercial Sales Team,Advertising & Publicity,"1,956.50",ADGIFTDISCOUNTS LTD
Revenue,Place,Cultural and Related Services,Culture and Heritage,5105650264,29.11.2017,Medina Theatre,Advertising & Publicity,183.74,ADLER MANUFACTURING LTD
Revenue,Place,Cultural and Related Services,Culture and Heritage,5105654308,24.11.2017,Archives,Security of Buildings,368.32,ADT FIRE AND SECURITY PLC
Revenue,Regeneration,Children's & Education Services,Services for Young People,5105654308,24.11.2017,Arctic Road (former Cowes IYWAC),Security of Buildings,582.97,ADT FIRE AND SECURITY PLC
Revenue,Regeneration,Central Services,Support Services,5105654308,24.11.2017,"Civic Centre,Sandown",Security of Buildings,651.79,ADT FIRE AND SECURITY PLC
Revenue,Regeneration,Central Services,Support Services,5105654308,24.11.2017,"Civic Centre,Sandown",Security of Buildings,463.39,ADT FIRE AND SECURITY PLC
Revenue,Place,Cultural and Related Services,Culture and Heritage,5105654308,24.11.2017,Cothey Bottom Store RYDE,Security of Buildings,"1,199.24",ADT FIRE AND SECURITY PLC
Revenue,Regeneration,Central Services,Support Services,5105654308,24.11.2017,"County Hall,Newport",Security of Buildings,"1,580.99",ADT FIRE AND SECURITY PLC
Revenue,Regeneration,Central Services,Support Services,5105654308,24.11.2017,"County Hall,Newport",Security of Buildings,398.30,ADT FIRE AND SECURITY PLC
Revenue,Regeneration,Central Services,Support Services,5105654308,24.11.2017,"County Hall,Newport",Security of Buildings,668.24,ADT FIRE AND SECURITY PLC
Revenue,Regeneration,Central Services,Support Services,5105654308,24.11.2017,"County Hall,Newport",Security of Buildings,222.87,ADT FIRE AND SECURITY PLC
Revenue,Place,Highways and Transport Services,"Airports, Harbours & Toll Facilities",5105654308,24.11.2017,Ferry Management,Security of Buildings,385.23,ADT FIRE AND SECURITY PLC
Revenue,Place,Highways and Transport Services,"Airports, Harbours & Toll Facilities",5105653928,17.11.2017,Ferry Operation,Operational Equipment,255.00,ADT FIRE AND SECURITY PLC
Revenue,Place,Cultural and Related Services,Recreation and Sport,5105654308,24.11.2017,Medina Leisure Centre,Security of Buildings,968.71,ADT FIRE AND SECURITY PLC
Revenue,Place,Cultural and Related Services,Recreation and Sport,5105654308,24.11.2017,Medina Leisure Centre,Security of Buildings,747.43,ADT FIRE AND SECURITY PLC
Revenue,Regeneration,Central Services,Support Services,5105654308,24.11.2017,"Seaclose Offices, Newport",Security of Buildings,858.32,ADT FIRE AND SECURITY PLC
Revenue,Regeneration,Central Services,Support Services,5105654308,24.11.2017,"Seaclose Offices, Newport",Security of Buildings,463.39,ADT FIRE AND SECURITY PLC
Revenue,Place,Cultural and Related Services,Recreation and Sport,5105653221,10.11.2017,The Heights,Property Services - Day to day Maintenance,53.00,ADT FIRE AND SECURITY PLC
Capital,Place,Capital,Capital,5105652969,10.11.2017,Coastal Capital Schemes,External Design and Supervision Fees,"4,926.00",AECOM
Capital,Place,Capital,Capital,5105654773,29.11.2017,Parks and Gardens Capital,Consultants Fees,"7,620.00",AECOM LTD
Revenue,Adult Services,Adult Social Care,Commissioning & Service Delivery,5105652129,01.11.2017,Handy Person Service,Payment to Private Contractors,"40,000.00",AGE CONCERN T/A AGE UK
Revenue,Regeneration,Central Services,Support Services,5105652732,08.11.2017,"County Hall,Newport",Property Services - Planned Maintenance,141.00,AIRTEK SERVICES IOW LTD
Revenue,Regeneration,Central Services,Support Services,5105653317,10.11.2017,"Enterprise House, Newport",Property Services - Planned Maintenance,141.00,AIRTEK SERVICES IOW LTD
Revenue,Adult Services,Adult Social Care,Central Codes (to be reallocated),5105653640,17.11.2017,Gouldings Resource Centre,Property Services - Day to day Maintenance,87.50,AIRTEK SERVICES IOW LTD
Revenue,Place,Cultural and Related Services,Recreation and Sport,5105653320,10.11.2017,Medina Leisure Centre,Property Services - Day to day Maintenance,900.00,AIRTEK SERVICES IOW LTD
Revenue,Childrens Services,Children's & Education Services,Management & Support Services,5105654093,17.11.2017,Specialist Service Business Admin,Minor Works,50.00,AIRTEK SERVICES IOW LTD
Revenue,Place,Cultural and Related Services,Recreation and Sport,5105653319,10.11.2017,The Heights,Property Services - Planned Maintenance,420.00,AIRTEK SERVICES IOW LTD
Revenue,Regeneration,Central Services,Support Services,5105653663,17.11.2017,"Westridge, Ryde",Property Services - Day to day Maintenance,87.50,AIRTEK SERVICES IOW LTD
Revenue,Regeneration,Central Services,Support Services,5105654805,29.11.2017,"Westridge, Ryde",Property Services - Day to day Maintenance,60.00,AIRTEK SERVICES IOW LTD
Revenue,Regeneration,Central Services,Support Services,5105654177,22.11.2017,"Westridge, Ryde",Property Services - Day to day Maintenance,294.13,AIRTEK SERVICES IOW LTD
Revenue,Regeneration,Central Services,Support Services,5105652305,08.11.2017,"Westridge, Ryde",Property Services - Planned Maintenance,540.00,AIRTEK SERVICES IOW LTD
Revenue,Adult Services,Adult Social Care,Learning Disability Suppt-adults (18-64),5105655123,29.11.2017,Learning Disability Residential 18-64,Charges from Independent Providers,"5,950.00",AITCH CARE HOMES (LONDON) LTD
Revenue,Adult Services,Adult Social Care,Assistive Equipment & Technology,5105653674,17.11.2017,Community Equipment Store,General Materials,261.40,AKW MEDI-CARE LTD
Revenue,Adult Services,Adult Social Care,Physical Support - older people (65+),5105655067,29.11.2017,Physical Support Direct Payment 65+,Payments for Self Directed Support,425.00,REDACTED PERSONAL DATA
Revenue,Public Health,Public Health,Sexual Health,5105652516,03.11.2017,Contraception,Payment to Private Contractors,370.00,ALBERT STREET PRACTICE
Revenue,Public Health,Public Health,NHS Health Check Programme,5105652516,03.11.2017,NHS Health Check Programme,Payment to Private Contractors,"1,212.50",ALBERT STREET PRACTICE
Revenue,Childrens Services,Children's & Education Services,Safeguarding Children/Young Peoples Svs,5105652747,08.11.2017,Court Work & Consultancy Services,Professional Services,221.50,ALERE TOXICOLOGY PLC
Revenue,Childrens Services,Children's & Education Services,Safeguarding Children/Young Peoples Svs,5105654878,29.11.2017,Court Work & Consultancy Services,Professional Services,-135.75,ALERE TOXICOLOGY PLC
Revenue,Childrens Services,Children's & Education Services,Safeguarding Children/Young Peoples Svs,5105654219,29.11.2017,Court Work & Consultancy Services,Professional Services,135.75,ALERE TOXICOLOGY PLC
Revenue,Childrens Services,Children's & Education Services,Safeguarding Children/Young Peoples Svs,5105654215,24.11.2017,Court Work & Consultancy Services,Professional Services,221.50,ALERE TOXICOLOGY PLC
Revenue,Childrens Services,Children's & Education Services,Safeguarding Children/Young Peoples Svs,5105654537,24.11.2017,Court Work & Consultancy Services,Professional Services,-221.50,ALERE TOXICOLOGY PLC
Revenue,Childrens Services,Children's & Education Services,Safeguarding Children/Young Peoples Svs,5105653589,15.11.2017,Court Work & Consultancy Services,Professional Services,143.25,ALERE TOXICOLOGY PLC
Revenue,Childrens Services,Children's & Education Services,Family Support Services,5105654839,24.11.2017,Direct Payments (Children & Families),Direct Payments,38.00,REDACTED PERSONAL DATA
Revenue,Childrens Services,Children's & Education Services,Family Support Services,5105654839,24.11.2017,Direct Payments (Children & Families),Direct Payments,152.00,REDACTED PERSONAL DATA
Revenue,Childrens Services,Children's & Education Services,Other Education and Community Budget,5105651471,01.11.2017,Special Educational Needs Reforms Grant,Consultants Fees,650.00,REDACTED PERSONAL DATA
Revenue,Childrens Services,Children's & Education Services,Special Schools & Alternative Provision,5105655182,29.11.2017,Island Learning Centre,Training,50.00,ALL SAINTS C E PRIMARY SCHOOL
Revenue,Childrens Services,Children's & Education Services,Primary Schools,5105652174,01.11.2017,Primary Schools,Payments to Schools,"36,806.69",ALL SAINTS C E PRIMARY SCHOOL
Revenue,Resources,Highways and Transport Services,Public Transport,5105653238,10.11.2017,Transport Fleet Administration,Vehicle Fuel Costs,"9,004.24",ALLSTAR BUSINESS SOLUTIONS LTD
Revenue,Resources,Central Services,Corporate and Democratic Core,5105655193,29.11.2017,Democratic Representation & Management,Vehicle Hire Internal,100.00,ALPHA (IOW) LTD
Revenue,Childrens Services,Children's & Education Services,Other Education and Community Budget,5105654416,22.11.2017,Home to College Post 16 Transport,Taxis - Contract Hire,200.00,ALPHA (IOW) LTD
Revenue,Childrens Services,Children's & Education Services,Other Education and Community Budget,5105654416,22.11.2017,Home to College Post 16 Transport,Taxis - Contract Hire,408.00,ALPHA (IOW) LTD
Revenue,Childrens Services,Children's & Education Services,Other Education and Community Budget,5105654416,22.11.2017,Home to College Post 16 Transport,Taxis - Contract Hire,500.00,ALPHA (IOW) LTD
Revenue,Childrens Services,Children's & Education Services,Other Education and Community Budget,5105654416,22.11.2017,Home to College Post 16 Transport,Taxis - Contract Hire,364.00,ALPHA (IOW) LTD
Revenue,Childrens Services,Children's & Education Services,Other Education and Community Budget,5105654416,22.11.2017,Home to College Post 16 Transport,Taxis - Contract Hire,560.00,ALPHA (IOW) LTD
Revenue,Childrens Services,Children's & Education Services,Other Education and Community Budget,5105654416,22.11.2017,Home to College Post 16 Transport,Taxis - Contract Hire,728.00,ALPHA (IOW) LTD
Revenue,Childrens Services,Children's & Education Services,Other Education and Community Budget,5105652040,22.11.2017,Home to School Mainstream Transport,Taxis - Contract Hire,-140.00,ALPHA (IOW) LTD
Revenue,Childrens Services,Children's & Education Services,Other Education and Community Budget,5105651474,22.11.2017,Home to School Mainstream Transport,Taxis - Contract Hire,-780.00,ALPHA (IOW) LTD
Revenue,Childrens Services,Children's & Education Services,Other Education and Community Budget,5105652845,08.11.2017,Home to School Mainstream Transport,Taxis - Contract Hire,350.00,ALPHA (IOW) LTD
Revenue,Childrens Services,Children's & Education Services,Other Education and Community Budget,5105652845,08.11.2017,Home to School Mainstream Transport,Taxis - Contract Hire,250.00,ALPHA (IOW) LTD
Revenue,Childrens Services,Children's & Education Services,Other Education and Community Budget,5105652845,08.11.2017,Home to School Mainstream Transport,Taxis - Contract Hire,140.00,ALPHA (IOW) LTD
Revenue,Childrens Services,Children's & Education Services,Other Education and Community Budget,5105652845,08.11.2017,Home to School Mainstream Transport,Taxis - Contract Hire,600.00,ALPHA (IOW) LTD
Revenue,Childrens Services,Children's & Education Services,Other Education and Community Budget,5105652845,08.11.2017,Home to School Mainstream Transport,Taxis - Contract Hire,70.00,ALPHA (IOW) LTD
Revenue,Childrens Services,Children's & Education Services,Other Education and Community Budget,5105652845,08.11.2017,Home to School Mainstream Transport,Taxis - Contract Hire,300.00,ALPHA (IOW) LTD
Revenue,Childrens Services,Children's & Education Services,Other Education and Community Budget,5105655217,29.11.2017,Home to School Mainstream Transport,Taxis - Contract Hire,600.00,ALPHA (IOW) LTD
Revenue,Childrens Services,Children's & Education Services,Other Education and Community Budget,5105654729,29.11.2017,Home to School Mainstream Transport,Taxis - Contract Hire,600.00,ALPHA (IOW) LTD
Revenue,Childrens Services,Children's & Education Services,Other Education and Community Budget,5105654729,29.11.2017,Home to School Mainstream Transport,Taxis - Contract Hire,70.00,ALPHA (IOW) LTD
Revenue,Childrens Services,Children's & Education Services,Other Education and Community Budget,5105655217,29.11.2017,Home to School Mainstream Transport,Taxis - Contract Hire,70.00,ALPHA (IOW) LTD
Revenue,Childrens Services,Children's & Education Services,Other Education and Community Budget,5105655217,29.11.2017,Home to School Mainstream Transport,Taxis - Contract Hire,250.00,ALPHA (IOW) LTD
Revenue,Childrens Services,Children's & Education Services,Other Education and Community Budget,5105654729,29.11.2017,Home to School Mainstream Transport,Taxis - Contract Hire,250.00,ALPHA (IOW) LTD
Revenue,Childrens Services,Children's & Education Services,Other Education and Community Budget,5105654729,29.11.2017,Home to School Mainstream Transport,Taxis - Contract Hire,175.00,ALPHA (IOW) LTD
Revenue,Childrens Services,Children's & Education Services,Other Education and Community Budget,5105655217,29.11.2017,Home to School Mainstream Transport,Taxis - Contract Hire,175.00,ALPHA (IOW) LTD
Revenue,Childrens Services,Children's & Education Services,Other Education and Community Budget,5105655217,29.11.2017,Home to School Mainstream Transport,Taxis - Contract Hire,300.00,ALPHA (IOW) LTD
Revenue,Childrens Services,Children's & Education Services,Other Education and Community Budget,5105654729,29.11.2017,Home to School Mainstream Transport,Taxis - Contract Hire,300.00,ALPHA (IOW) LTD
Revenue,Childrens Services,Children's & Education Services,Other Education and Community Budget,5105654729,29.11.2017,Home to School Mainstream Transport,Taxis - Contract Hire,350.00,ALPHA (IOW) LTD
Revenue,Childrens Services,Children's & Education Services,Other Education and Community Budget,5105655217,29.11.2017,Home to School Mainstream Transport,Taxis - Contract Hire,350.00,ALPHA (IOW) LTD
Revenue,Childrens Services,Children's & Education Services,Other Education and Community Budget,5105655217,29.11.2017,Home to School SEN Transport (LA),Taxis - Contract Hire,200.00,ALPHA (IOW) LTD
Revenue,Childrens Services,Children's & Education Services,Other Education and Community Budget,5105654729,29.11.2017,Home to School SEN Transport (LA),Taxis - Contract Hire,200.00,ALPHA (IOW) LTD
Revenue,Childrens Services,Children's & Education Services,Other Education and Community Budget,5105654729,29.11.2017,Home to School SEN Transport (LA),Taxis - Contract Hire,250.00,ALPHA (IOW) LTD
Revenue,Childrens Services,Children's & Education Services,Other Education and Community Budget,5105655217,29.11.2017,Home to School SEN Transport (LA),Taxis - Contract Hire,250.00,ALPHA (IOW) LTD
Revenue,Childrens Services,Children's & Education Services,Other Education and Community Budget,5105654729,29.11.2017,Home to School SEN Transport (LA),Taxis - Contract Hire,450.00,ALPHA (IOW) LTD
Revenue,Childrens Services,Children's & Education Services,Other Education and Community Budget,5105655217,29.11.2017,Home to School SEN Transport (LA),Taxis - Contract Hire,450.00,ALPHA (IOW) LTD
Revenue,Childrens Services,Children's & Education Services,Other Education and Community Budget,5105655217,29.11.2017,Home to School SEN Transport (LA),Taxis - Contract Hire,300.00,ALPHA (IOW) LTD
Revenue,Childrens Services,Children's & Education Services,Other Education and Community Budget,5105654729,29.11.2017,Home to School SEN Transport (LA),Taxis - Contract Hire,300.00,ALPHA (IOW) LTD
Revenue,Childrens Services,Children's & Education Services,Other Education and Community Budget,5105654729,29.11.2017,Home to School SEN Transport (LA),Taxis - Contract Hire,325.00,ALPHA (IOW) LTD
Revenue,Childrens Services,Children's & Education Services,Other Education and Community Budget,5105655217,29.11.2017,Home to School SEN Transport (LA),Taxis - Contract Hire,325.00,ALPHA (IOW) LTD
Revenue,Childrens Services,Children's & Education Services,Other Education and Community Budget,5105655217,29.11.2017,Home to School SEN Transport (LA),Taxis - Contract Hire,180.00,ALPHA (IOW) LTD
Revenue,Childrens Services,Children's & Education Services,Other Education and Community Budget,5105654729,29.11.2017,Home to School SEN Transport (LA),Taxis - Contract Hire,300.00,ALPHA (IOW) LTD
Revenue,Childrens Services,Children's & Education Services,Other Education and Community Budget,5105654729,29.11.2017,Home to School SEN Transport (LA),Taxis - Contract Hire,350.00,ALPHA (IOW) LTD
Revenue,Childrens Services,Children's & Education Services,Other Education and Community Budget,5105655217,29.11.2017,Home to School SEN Transport (LA),Taxis - Contract Hire,350.00,ALPHA (IOW) LTD
Revenue,Childrens Services,Children's & Education Services,Other Education and Community Budget,5105655217,29.11.2017,Home to School SEN Transport (LA),Taxis - Contract Hire,100.00,ALPHA (IOW) LTD
Revenue,Childrens Services,Children's & Education Services,Other Education and Community Budget,5105654729,29.11.2017,Home to School SEN Transport (LA),Taxis - Contract Hire,100.00,ALPHA (IOW) LTD
Revenue,Childrens Services,Children's & Education Services,Other Education and Community Budget,5105654729,29.11.2017,Home to School SEN Transport (LA),Taxis - Contract Hire,280.00,ALPHA (IOW) LTD
Revenue,Childrens Services,Children's & Education Services,Other Education and Community Budget,5105655217,29.11.2017,Home to School SEN Transport (LA),Taxis - Contract Hire,280.00,ALPHA (IOW) LTD
Revenue,Childrens Services,Children's & Education Services,Other Education and Community Budget,5105655217,29.11.2017,Home to School SEN Transport (LA),Taxis - Contract Hire,270.00,ALPHA (IOW) LTD
Revenue,Childrens Services,Children's & Education Services,Other Education and Community Budget,5105654729,29.11.2017,Home to School SEN Transport (LA),Taxis - Contract Hire,450.00,ALPHA (IOW) LTD
Revenue,Childrens Services,Children's & Education Services,Other Education and Community Budget,5105655217,29.11.2017,Home to School SEN Transport (LA),Taxis - Contract Hire,400.00,ALPHA (IOW) LTD
Revenue,Childrens Services,Children's & Education Services,Other Education and Community Budget,5105654729,29.11.2017,Home to School SEN Transport (LA),Taxis - Contract Hire,400.00,ALPHA (IOW) LTD
Revenue,Childrens Services,Children's & Education Services,Other Education and Community Budget,5105654729,29.11.2017,Home to School SEN Transport (LA),Taxis - Contract Hire,350.00,ALPHA (IOW) LTD
Revenue,Childrens Services,Children's & Education Services,Other Education and Community Budget,5105655217,29.11.2017,Home to School SEN Transport (LA),Taxis - Contract Hire,350.00,ALPHA (IOW) LTD
Revenue,Childrens Services,Children's & Education Services,Other Education and Community Budget,5105655217,29.11.2017,Home to School SEN Transport (LA),Taxis - Contract Hire,395.00,ALPHA (IOW) LTD
Revenue,Childrens Services,Children's & Education Services,Other Education and Community Budget,5105654729,29.11.2017,Home to School SEN Transport (LA),Taxis - Contract Hire,395.00,ALPHA (IOW) LTD
Revenue,Childrens Services,Children's & Education Services,Other Education and Community Budget,5105654729,29.11.2017,Home to School SEN Transport (LA),Taxis - Contract Hire,200.00,ALPHA (IOW) LTD
Revenue,Childrens Services,Children's & Education Services,Other Education and Community Budget,5105655217,29.11.2017,Home to School SEN Transport (LA),Taxis - Contract Hire,200.00,ALPHA (IOW) LTD
Revenue,Childrens Services,Children's & Education Services,Other Education and Community Budget,5105655217,29.11.2017,Home to School SEN Transport (LA),Taxis - Contract Hire,450.00,ALPHA (IOW) LTD
Revenue,Childrens Services,Children's & Education Services,Other Education and Community Budget,5105654729,29.11.2017,Home to School SEN Transport (LA),Taxis - Contract Hire,450.00,ALPHA (IOW) LTD
Revenue,Childrens Services,Children's & Education Services,Other Education and Community Budget,5105652845,08.11.2017,Home to School SEN Transport (LA),Taxis - Contract Hire,450.00,ALPHA (IOW) LTD
Revenue,Childrens Services,Children's & Education Services,Other Education and Community Budget,5105652845,08.11.2017,Home to School SEN Transport (LA),Taxis - Contract Hire,400.00,ALPHA (IOW) LTD
Revenue,Childrens Services,Children's & Education Services,Other Education and Community Budget,5105652845,08.11.2017,Home to School SEN Transport (LA),Taxis - Contract Hire,350.00,ALPHA (IOW) LTD
Revenue,Childrens Services,Children's & Education Services,Other Education and Community Budget,5105652845,08.11.2017,Home to School SEN Transport (LA),Taxis - Contract Hire,395.00,ALPHA (IOW) LTD
Revenue,Childrens Services,Children's & Education Services,Other Education and Community Budget,5105652845,08.11.2017,Home to School SEN Transport (LA),Taxis - Contract Hire,200.00,ALPHA (IOW) LTD
Revenue,Childrens Services,Children's & Education Services,Other Education and Community Budget,5105652845,08.11.2017,Home to School SEN Transport (LA),Taxis - Contract Hire,150.00,ALPHA (IOW) LTD
Revenue,Childrens Services,Children's & Education Services,Other Education and Community Budget,5105652845,08.11.2017,Home to School SEN Transport (LA),Taxis - Contract Hire,250.00,ALPHA (IOW) LTD
Revenue,Childrens Services,Children's & Education Services,Other Education and Community Budget,5105652845,08.11.2017,Home to School SEN Transport (LA),Taxis - Contract Hire,600.00,ALPHA (IOW) LTD
Revenue,Childrens Services,Children's & Education Services,Other Education and Community Budget,5105652845,08.11.2017,Home to School SEN Transport (LA),Taxis - Contract Hire,450.00,ALPHA (IOW) LTD
Revenue,Childrens Services,Children's & Education Services,Other Education and Community Budget,5105652845,08.11.2017,Home to School SEN Transport (LA),Taxis - Contract Hire,200.00,ALPHA (IOW) LTD
Revenue,Childrens Services,Children's & Education Services,Other Education and Community Budget,5105652845,08.11.2017,Home to School SEN Transport (LA),Taxis - Contract Hire,250.00,ALPHA (IOW) LTD
Revenue,Childrens Services,Children's & Education Services,Other Education and Community Budget,5105652845,08.11.2017,Home to School SEN Transport (LA),Taxis - Contract Hire,450.00,ALPHA (IOW) LTD
Revenue,Childrens Services,Children's & Education Services,Other Education and Community Budget,5105652845,08.11.2017,Home to School SEN Transport (LA),Taxis - Contract Hire,300.00,ALPHA (IOW) LTD
Revenue,Childrens Services,Children's & Education Services,Other Education and Community Budget,5105652845,08.11.2017,Home to School SEN Transport (LA),Taxis - Contract Hire,325.00,ALPHA (IOW) LTD
Revenue,Childrens Services,Children's & Education Services,Other Education and Community Budget,5105652845,08.11.2017,Home to School SEN Transport (LA),Taxis - Contract Hire,300.00,ALPHA (IOW) LTD
Revenue,Childrens Services,Children's & Education Services,Other Education and Community Budget,5105652845,08.11.2017,Home to School SEN Transport (LA),Taxis - Contract Hire,350.00,ALPHA (IOW) LTD
Revenue,Childrens Services,Children's & Education Services,Other Education and Community Budget,5105652845,08.11.2017,Home to School SEN Transport (LA),Taxis - Contract Hire,100.00,ALPHA (IOW) LTD
Revenue,Childrens Services,Children's & Education Services,Other Education and Community Budget,5105652845,08.11.2017,Home to School SEN Transport (LA),Taxis - Contract Hire,280.00,ALPHA (IOW) LTD
Revenue,Childrens Services,Children's & Education Services,Other Education and Community Budget,5105654729,29.11.2017,Home to School SEN Transport (LA),Taxis - Contract Hire,600.00,ALPHA (IOW) LTD
Revenue,Childrens Services,Children's & Education Services,Other Education and Community Budget,5105655217,29.11.2017,Home to School SEN Transport (LA),Taxis - Contract Hire,600.00,ALPHA (IOW) LTD
Revenue,Childrens Services,Children's & Education Services,Other Education and Community Budget,5105655217,29.11.2017,Home to School SEN Transport (LA),Taxis - Contract Hire,150.00,ALPHA (IOW) LTD
Revenue,Childrens Services,Children's & Education Services,Other Education and Community Budget,5105654729,29.11.2017,Home to School SEN Transport (LA),Taxis - Contract Hire,150.00,ALPHA (IOW) LTD
Revenue,Childrens Services,Children's & Education Services,Other Education and Community Budget,5105654729,29.11.2017,Home to School SEN Transport (LA),Taxis - Contract Hire,250.00,ALPHA (IOW) LTD
Revenue,Childrens Services,Children's & Education Services,Other Education and Community Budget,5105655217,29.11.2017,Home to School SEN Transport (LA),Taxis - Contract Hire,250.00,ALPHA (IOW) LTD
Revenue,Childrens Services,Children's & Education Services,Special Schools & Alternative Provision,5105654783,24.11.2017,Island Learning Centre,Training,17.20,ALPHA (IOW) LTD
Revenue,Childrens Services,Children's & Education Services,Family Support Services,5105655525,29.11.2017,S17 Disabled Children,Transport of Clients,21.45,ALPHA (IOW) LTD
Revenue,Childrens Services,Children's & Education Services,Children Looked After,5105651165,08.11.2017,Support for Looked After Children,Transport of Clients,200.00,ALPHA (IOW) LTD
Revenue,Adult Services,Adult Social Care,Learning Disability Suppt-adults (18-64),5105654924,29.11.2017,Learning Disability Residential 18-64,Charges from Independent Providers,"3,836.84",ALPHAGRANGE LTD
Revenue,Childrens Services,Children's & Education Services,Safeguarding Children/Young Peoples Svs,5105652682,03.11.2017,LSCB (Local Safeguarding Childrens Board),Training,"4,790.00",ALTEREGO CREATIVE SOLUTIONS LTD
Revenue,Childrens Services,Children's & Education Services,Safeguarding Children/Young Peoples Svs,5105652913,08.11.2017,LSCB (Local Safeguarding Childrens Board),Training,"4,790.00",ALTEREGO CREATIVE SOLUTIONS LTD
Revenue,Adult Services,Adult Social Care,Learning Disability Suppt-adults (18-64),5105655033,29.11.2017,Learning Disability Direct Pay 18-64,Payments for Self Directed Support,884.60,REDACTED PERSONAL DATA
Revenue,Place,Environmental & Regulatory Services,Service Management and Support Services,5105652154,24.11.2017,Waste Contract Management,Consultants Fees,"4,123.01",AMEC ENVIRONMENT AND INFRASTRUCTURE UK LTD
Revenue,Childrens Services,Children's & Education Services,Family Support Services,5105653597,15.11.2017,Personal Budgets (Children & Families),Direct Payments,689.00,REDACTED PERSONAL DATA
Revenue,Childrens Services,Children's & Education Services,Family Support Services,5105653598,15.11.2017,Personal Budgets (Children & Families),Direct Payments,"1,128.25",REDACTED PERSONAL DATA
Revenue,Place,Environmental & Regulatory Services,Waste Collection,5105654795,24.11.2017,Waste Collection - Amey Contract,Waste Contractors,"288,728.00",AMEY (IOW) SPV LIMITED
Revenue,Place,Environmental & Regulatory Services,Waste Collection,5105654787,24.11.2017,Waste Collection - Amey Contract,Waste Contractors,"-60,988.95",AMEY (IOW) SPV LIMITED
Revenue,Place,Environmental & Regulatory Services,Waste Disposal,5105654787,24.11.2017,Waste Disposal - Amey Contract,Waste Contractors,"-73,754.09",AMEY (IOW) SPV LIMITED
Revenue,Place,Environmental & Regulatory Services,Waste Disposal,5105654795,24.11.2017,Waste Disposal - Amey Contract,Waste Contractors,"347,264.95",AMEY (IOW) SPV LIMITED
Revenue,Place,Environmental & Regulatory Services,Recycling,5105654787,24.11.2017,Waste Recycling - Amey Contract,Waste Contractors,"-7,091.74",AMEY (IOW) SPV LIMITED
Revenue,Place,Environmental & Regulatory Services,Recycling,5105654795,24.11.2017,Waste Recycling - Amey Contract,Waste Contractors,"32,073.71",AMEY (IOW) SPV LIMITED
Revenue,Regeneration,Planning services,Economic Development,5105654267,22.11.2017,Newport Harbour Regeneration,"Refuse Collection, Disposal and Recycling Costs",105.00,AMEY LG LTD
Revenue,Regeneration,Planning services,Economic Development,5105651023,15.11.2017,Newport Harbour Regeneration,"Refuse Collection, Disposal and Recycling Costs",131.25,AMEY LG LTD
Revenue,Place,Cultural and Related Services,Library Service,5105653293,24.11.2017,Public Libraries Central,Stock Purchases,"1,000.00",AMEY LG LTD
Revenue,Place,Cultural and Related Services,Library Service,5105653548,15.11.2017,Public Libraries Central,Stock Purchases,500.00,AMEY LG LTD
Revenue,Place,Cultural and Related Services,Library Service,5105654198,22.11.2017,Public Libraries Central,Stock Purchases,600.00,AMEY LG LTD
Revenue,Adult Services,Adult Social Care,Physical Support - older people (65+),5105654926,29.11.2017,Physical Support Residential 65+,Charges from Independent Providers,614.04,ANCONA CARE HOME
Revenue,Adult Services,Adult Social Care,Physical Support - older people (65+),5105654471,22.11.2017,Physical Support Residential 65+,Charges from Independent Providers,723.69,ANCONA CARE HOME
Revenue,Adult Services,Adult Social Care,Physical Support - older people (65+),5105654926,29.11.2017,Physical Support Residential 65+,Charges from Independent Providers,"1,862.00",ANCONA CARE HOME
Revenue,Adult Services,Adult Social Care,Physical Support - older people (65+),5105653472,15.11.2017,Physical Support Residential 65+,Charges from Independent Providers,"2,194.50",ANCONA CARE HOME
Revenue,Adult Services,Adult Social Care,Physical Support - older people (65+),5105654926,29.11.2017,Physical Support Residential 65+,Charges from Independent Providers,"1,862.00",ANCONA CARE HOME
Revenue,Adult Services,Adult Social Care,Physical Support - older people (65+),5105654926,29.11.2017,Physical Support Residential 65+,Charges from Independent Providers,"1,950.20",ANCONA CARE HOME
Revenue,Adult Services,Adult Social Care,Physical Support - older people (65+),5105654926,29.11.2017,Physical Support Residential 65+,Charges from Independent Providers,"1,950.20",ANCONA CARE HOME
Revenue,Adult Services,Adult Social Care,Physical Support - older people (65+),5105654926,29.11.2017,Physical Support Residential 65+,Charges from Independent Providers,"2,292.64",ANCONA CARE HOME
Revenue,Adult Services,Adult Social Care,Physical Support - older people (65+),5105654926,29.11.2017,Physical Support Residential 65+,Charges from Independent Providers,"1,862.00",ANCONA CARE HOME
Revenue,Childrens Services,Children's & Education Services,Children Looked After,5105655466,29.11.2017,Purchased Residential,Charges from Independent Providers,"18,181.56",ANDERIDA ADOLESCENT CARE LTD
Revenue,Childrens Services,Children's & Education Services,Children Looked After,5105654467,22.11.2017,Purchased Residential,Charges from Independent Providers,"18,181.56",ANDERIDA ADOLESCENT CARE LTD
Revenue,Chief Executive,Central Services,Support Services,5105652548,03.11.2017,Print Unit,Printing Costs,99.20,ANTALIS MCNAUGHTON
Revenue,Chief Executive,Central Services,Support Services,5105652718,08.11.2017,Print Unit,Printing Costs,31.48,ANTALIS MCNAUGHTON
Revenue,Chief Executive,Central Services,Support Services,5105652548,03.11.2017,Print Unit,Printing Costs,18.60,ANTALIS MCNAUGHTON
Revenue,Chief Executive,Central Services,Support Services,5105654249,22.11.2017,Print Unit,Printing Costs,31.50,ANTALIS MCNAUGHTON
Revenue,Chief Executive,Central Services,Support Services,5105654249,22.11.2017,Print Unit,Printing Costs,67.00,ANTALIS MCNAUGHTON
Revenue,Adult Services,Adult Social Care,Learning Disability Suppt-adults (18-64),5105655151,29.11.2017,Learning Disability Direct Pay 18-64,Payments for Self Directed Support,"4,503.12",REDACTED PERSONAL DATA
Revenue,Place,Fire & Rescue Services,Fire fighting and Rescue Operations,5105652610,03.11.2017,Fire Control,Grants to External Bodies,935.88,ANTIVIRUS MARKET
Revenue,Place,Fire & Rescue Services,Fire fighting and Rescue Operations,5105652610,03.11.2017,Fire Control,Grants to External Bodies,174.65,ANTIVIRUS MARKET
Revenue,Place,Fire & Rescue Services,Fire fighting and Rescue Operations,5105652610,03.11.2017,Fire Control,Grants to External Bodies,81.48,ANTIVIRUS MARKET
Revenue,Place,Fire & Rescue Services,Fire fighting and Rescue Operations,5105652610,03.11.2017,Fire Control,Grants to External Bodies,9.99,ANTIVIRUS MARKET
Revenue,Childrens Services,Children's & Education Services,Special Schools & Alternative Provision,5105652977,10.11.2017,Island Learning Centre,Catering Equipment,102.66,AQUALICITY LTD
Revenue,Childrens Services,Children's & Education Services,Special Schools & Alternative Provision,5105654875,29.11.2017,Island Learning Centre,Catering Equipment,102.66,AQUALICITY LTD
Revenue,Place,Cultural and Related Services,Recreation and Sport,5105653436,24.11.2017,Commercial Sales Team,Operational Equipment,112.35,ARCO LTD
Revenue,Adult Services,Adult Social Care,Central Codes (to be reallocated),5105648004,15.11.2017,Community Outreach,Clothing & Laundry,21.96,ARCO LTD
Revenue,Adult Services,Adult Social Care,Central Codes (to be reallocated),5105648004,15.11.2017,Community Outreach,Clothing & Laundry,9.60,ARCO LTD
Revenue,Adult Services,Adult Social Care,Central Codes (to be reallocated),5105648004,15.11.2017,Community Outreach,Clothing & Laundry,10.98,ARCO LTD
Revenue,Place,Highways and Transport Services,"Airports, Harbours & Toll Facilities",5105654176,24.11.2017,Ferry Operation,Clothing & Laundry,46.49,ARCO LTD
Revenue,Place,Highways and Transport Services,"Airports, Harbours & Toll Facilities",5105655172,29.11.2017,Ferry Operation,Clothing & Laundry,36.54,ARCO LTD
Revenue,Place,Highways and Transport Services,"Airports, Harbours & Toll Facilities",5105655172,29.11.2017,Ferry Operation,Clothing & Laundry,44.88,ARCO LTD
Revenue,Place,Highways and Transport Services,"Airports, Harbours & Toll Facilities",5105655172,29.11.2017,Ferry Operation,Clothing & Laundry,27.00,ARCO LTD
Revenue,Place,Fire & Rescue Services,Fire fighting and Rescue Operations,5105655204,29.11.2017,Fire Technical Support,Stock Purchases,82.42,ARCO LTD
Revenue,Place,Fire & Rescue Services,Fire fighting and Rescue Operations,5105655204,29.11.2017,Fire Technical Support,Stock Purchases,46.30,ARCO LTD
Revenue,Place,Fire & Rescue Services,Fire fighting and Rescue Operations,5105655204,29.11.2017,Fire Technical Support,Stock Purchases,10.56,ARCO LTD
Revenue,Place,Fire & Rescue Services,Fire fighting and Rescue Operations,5105655204,29.11.2017,Fire Technical Support,Stock Purchases,93.75,ARCO LTD
Revenue,Place,Fire & Rescue Services,Fire fighting and Rescue Operations,5105652964,10.11.2017,Fire Technical Support,Vehicle Maintenance Costs,63.48,ARCO LTD
Revenue,Place,Cultural and Related Services,Recreation and Sport,5105651089,03.11.2017,Medina Leisure Centre,Clothing & Laundry,74.10,ARCO LTD
Revenue,Place,Cultural and Related Services,Recreation and Sport,5105651372,03.11.2017,The Heights,Clothing & Laundry,44.46,ARCO LTD
Revenue,Place,Cultural and Related Services,Recreation and Sport,5105651608,03.11.2017,The Heights,Clothing & Laundry,15.36,ARCO LTD
Revenue,Public Health,Public Health,NHS Health Check Programme,5105652594,03.11.2017,NHS Health Check Programme,Payment to Private Contractors,"1,092.50",ARGYLL HOUSE SURGERY
Revenue,Adult Services,Adult Social Care,Learning Disab Supp (to be reallocated),5105652874,07.11.2017,The Laurels,Property Services - Planned Maintenance,-376.18,ARJO MED AB LTD
Revenue,Adult Services,Adult Social Care,Central Codes (to be reallocated),5105654241,22.11.2017,Adelaide Resource Centre,Maintenance of Operational Equipment,74.00,ARJO UK LTD
Revenue,Adult Services,Adult Social Care,Central Codes (to be reallocated),5105652885,22.11.2017,Adelaide Resource Centre,Property Services - Planned Maintenance,204.00,ARJO UK LTD
Revenue,Adult Services,Adult Social Care,Central Codes (to be reallocated),5105652886,22.11.2017,Adelaide Resource Centre,Property Services - Planned Maintenance,261.00,ARJO UK LTD
Revenue,Childrens Services,Children's & Education Services,Children Looked After,5105655295,29.11.2017,Beaulieu House,Minor Works,534.00,ARJO UK LTD
Revenue,Adult Services,Adult Social Care,Learning Disab Supp (to be reallocated),5105655176,29.11.2017,Plean Dene,Minor Works,87.00,ARJO UK LTD
Revenue,Adult Services,Adult Social Care,Learning Disab Supp (to be reallocated),5105654409,29.11.2017,Saxonbury,Minor Works,74.00,ARJO UK LTD
Revenue,Adult Services,Adult Social Care,Learning Disab Supp (to be reallocated),5105650149,08.11.2017,The Laurels,Property Services - Planned Maintenance,643.18,ARJO UK LTD
Revenue,Adult Services,Adult Social Care,Learning Disab Supp (to be reallocated),5105652875,08.11.2017,The Laurels,Property Services - Planned Maintenance,376.18,ARJO UK LTD
Revenue,Childrens Services,Children's & Education Services,Primary Schools,5105652172,01.11.2017,Primary Schools,Payments to Schools,"58,353.61",ARRETON ST GEORGE SCHOOL
Revenue,Adult Services,Adult Social Care,Learning Disability Support-older people,5105655141,29.11.2017,Learning Disability Residential 65+,Charges from Independent Providers,"1,763.72",ASPENGLADE LTD
Revenue,Childrens Services,Children's & Education Services,Other Education and Community Budget,5105654073,17.11.2017,Special Educational Needs Reforms Grant,Publications,500.00,ASPIRE CHILDREN'S SERVICES LTD
Revenue,Childrens Services,Children's & Education Services,Special Schools & Alternative Provision,5105654270,22.11.2017,Island Learning Centre,Rent of Buildings and Rooms,33.00,ASPIRE RYDE
Revenue,Childrens Services,Children's & Education Services,Special Schools & Alternative Provision,5105655498,29.11.2017,Island Learning Centre,Rent of Buildings and Rooms,-11.00,ASPIRE RYDE
Revenue,Regeneration,Central Services,Support Services,5105652922,08.11.2017,"Enterprise House, Newport",Property Services - Day to day Maintenance,63.93,ASSA ABLOY ENTRANCE SYSTEMS LTD
Revenue,Place,Cultural and Related Services,Recreation and Sport,5105652322,03.11.2017,Medina Leisure Centre,Property Services - Day to day Maintenance,24.66,ASSA ABLOY ENTRANCE SYSTEMS LTD
Revenue,Place,Cultural and Related Services,Recreation and Sport,5105652306,01.11.2017,Medina Leisure Centre,Property Services - Day to day Maintenance,31.44,ASSA ABLOY ENTRANCE SYSTEMS LTD
Revenue,Childrens Services,Children's & Education Services,Other Education and Community Budget,5105652273,01.11.2017,Adult Community Learning,Licences,470.00,ASSOCIATION OF ADULT EDUCATION
Revenue,Place,Cultural and Related Services,Recreation and Sport,5105653672,22.11.2017,Play Development,Professional Services,600.00,ASSOCIATION FOR PHYSICAL EDUCATION
Revenue,Place,Cultural and Related Services,Recreation and Sport,5105653672,22.11.2017,Play Development,Professional Services,279.50,ASSOCIATION FOR PHYSICAL EDUCATION
Revenue,Adult Services,Adult Social Care,Support - Memory /Cognition-older people (65+),5105654906,29.11.2017,Memory & Cognition Residential 65+,Charges from Independent Providers,"1,950.20",AUTUMN HOUSE CARE LTD
Revenue,Adult Services,Adult Social Care,Support - Memory /Cognition-older people (65+),5105654906,29.11.2017,Memory & Cognition Residential 65+,Charges from Independent Providers,"1,950.20",AUTUMN HOUSE CARE LTD
Revenue,Adult Services,Adult Social Care,Support - Memory /Cognition-older people (65+),5105654906,29.11.2017,Memory & Cognition Residential 65+,Charges from Independent Providers,"2,292.64",AUTUMN HOUSE CARE LTD
Revenue,Adult Services,Adult Social Care,Support - Memory /Cognition-older people (65+),5105654906,29.11.2017,Memory & Cognition Residential 65+,Charges from Independent Providers,"2,292.64",AUTUMN HOUSE CARE LTD
Revenue,Adult Services,Adult Social Care,Support - Memory /Cognition-older people (65+),5105654906,29.11.2017,Memory & Cognition Residential 65+,Charges from Independent Providers,"2,292.64",AUTUMN HOUSE CARE LTD
Revenue,Adult Services,Adult Social Care,Support - Memory /Cognition-older people (65+),5105654906,29.11.2017,Memory & Cognition Residential 65+,Charges from Independent Providers,"2,292.64",AUTUMN HOUSE CARE LTD
Revenue,Adult Services,Adult Social Care,Support - Memory /Cognition-older people (65+),5105654906,29.11.2017,Memory & Cognition Residential 65+,Charges from Independent Providers,"2,292.64",AUTUMN HOUSE CARE LTD
Revenue,Adult Services,Adult Social Care,Support - Memory /Cognition-older people (65+),5105654906,29.11.2017,Memory & Cognition Residential 65+,Charges from Independent Providers,"2,292.64",AUTUMN HOUSE CARE LTD
Revenue,Adult Services,Adult Social Care,Support - Memory /Cognition-older people (65+),5105654906,29.11.2017,Memory & Cognition Residential 65+,Charges from Independent Providers,"2,292.64",AUTUMN HOUSE CARE LTD
Revenue,Adult Services,Adult Social Care,Support - Memory /Cognition-older people (65+),5105654906,29.11.2017,Memory & Cognition Residential 65+,Charges from Independent Providers,"2,292.64",AUTUMN HOUSE CARE LTD
Revenue,Adult Services,Adult Social Care,Support - Memory /Cognition-older people (65+),5105654906,29.11.2017,Memory & Cognition Residential 65+,Charges from Independent Providers,"2,292.64",AUTUMN HOUSE CARE LTD
Revenue,Adult Services,Adult Social Care,Support - Memory /Cognition-older people (65+),5105654906,29.11.2017,Memory & Cognition Residential 65+,Charges from Independent Providers,"2,292.64",AUTUMN HOUSE CARE LTD
Revenue,Adult Services,Adult Social Care,Support - Memory /Cognition-older people (65+),5105654906,29.11.2017,Memory & Cognition Residential 65+,Charges from Independent Providers,"2,292.64",AUTUMN HOUSE CARE LTD
Revenue,Adult Services,Adult Social Care,Support - Memory /Cognition-older people (65+),5105654906,29.11.2017,Memory & Cognition Residential 65+,Charges from Independent Providers,"2,292.64",AUTUMN HOUSE CARE LTD
Revenue,Adult Services,Adult Social Care,Support - Memory /Cognition-older people (65+),5105654906,29.11.2017,Memory & Cognition Residential 65+,Charges from Independent Providers,"2,292.64",AUTUMN HOUSE CARE LTD
Revenue,Adult Services,Adult Social Care,Mental Health Support-older people (65+),5105654906,29.11.2017,Mental Health Residential 65+,Charges from Independent Providers,"2,292.64",AUTUMN HOUSE CARE LTD
Revenue,Adult Services,Adult Social Care,Physical Support - older people (65+),5105655297,29.11.2017,Physical Support Residential 65+,Charges from Independent Providers,573.16,AUTUMN HOUSE CARE LTD
Revenue,Adult Services,Adult Social Care,Physical Support - older people (65+),5105653739,17.11.2017,Physical Support Residential 65+,Charges from Independent Providers,"1,228.20",AUTUMN HOUSE CARE LTD
Revenue,Adult Services,Adult Social Care,Physical Support - older people (65+),5105654906,29.11.2017,Physical Support Residential 65+,Charges from Independent Providers,"2,292.64",AUTUMN HOUSE CARE LTD
Revenue,Adult Services,Adult Social Care,Physical Support - older people (65+),5105654906,29.11.2017,Physical Support Residential 65+,Charges from Independent Providers,"2,292.64",AUTUMN HOUSE CARE LTD
Revenue,Adult Services,Adult Social Care,Physical Support - older people (65+),5105654906,29.11.2017,Physical Support Residential 65+,Charges from Independent Providers,409.40,AUTUMN HOUSE CARE LTD
Revenue,Adult Services,Adult Social Care,Physical Support - older people (65+),5105654906,29.11.2017,Physical Support Residential 65+,Charges from Independent Providers,"2,292.64",AUTUMN HOUSE CARE LTD
Revenue,Adult Services,Adult Social Care,Physical Support - older people (65+),5105654906,29.11.2017,Physical Support Residential 65+,Charges from Independent Providers,"1,950.20",AUTUMN HOUSE CARE LTD
Revenue,Adult Services,Adult Social Care,Physical Support - older people (65+),5105652896,08.11.2017,Physical Support Residential 65+,Charges from Independent Providers,"3,029.56",AUTUMN HOUSE CARE LTD
Revenue,Adult Services,Adult Social Care,Physical Support - older people (65+),5105654906,29.11.2017,Physical Support Residential 65+,Charges from Independent Providers,"1,950.20",AUTUMN HOUSE CARE LTD
Revenue,Adult Services,Adult Social Care,Physical Support - older people (65+),5105654906,29.11.2017,Physical Support Residential 65+,Charges from Independent Providers,"1,950.20",AUTUMN HOUSE CARE LTD
Revenue,Adult Services,Adult Social Care,Physical Support - older people (65+),5105654906,29.11.2017,Physical Support Residential 65+,Charges from Independent Providers,"2,292.64",AUTUMN HOUSE CARE LTD
Revenue,Adult Services,Adult Social Care,Physical Support - older people (65+),5105654906,29.11.2017,Physical Support Residential 65+,Charges from Independent Providers,"2,292.64",AUTUMN HOUSE CARE LTD
Revenue,Adult Services,Adult Social Care,Physical Support - older people (65+),5105654906,29.11.2017,Physical Support Residential 65+,Charges from Independent Providers,"2,292.64",AUTUMN HOUSE CARE LTD
Revenue,Adult Services,Adult Social Care,Physical Support - older people (65+),5105655131,29.11.2017,Physical Support Residential 65+,Charges from Independent Providers,"2,240.56",AVON PARK RESIDENTIAL HOME
Revenue,Place,Cultural and Related Services,Service Management and Support Services,5105654247,22.11.2017,Duke of Edingburgh Award,General Materials,660.00,AWARD SCHEME LTD
Revenue,Place,Cultural and Related Services,Service Management and Support Services,5105654247,22.11.2017,Duke of Edingburgh Award,General Materials,12.50,AWARD SCHEME LTD
Revenue,Place,Cultural and Related Services,Service Management and Support Services,5105654247,22.11.2017,Duke of Edingburgh Award,General Materials,2.08,AWARD SCHEME LTD
Revenue,Childrens Services,Children's & Education Services,Children Looked After,5105653905,17.11.2017,In-house Fostering,Boarding Out Allowances,706.65,REDACTED PERSONAL DATA
Revenue,Childrens Services,Children's & Education Services,Children Looked After,5105654708,24.11.2017,In-house Fostering,Boarding Out Allowances,274.81,REDACTED PERSONAL DATA
Revenue,Childrens Services,Children's & Education Services,Children Looked After,5105655464,29.11.2017,In-house Fostering,Boarding Out Allowances,274.81,REDACTED PERSONAL DATA
Revenue,Childrens Services,Children's & Education Services,Children Looked After,5105655314,29.11.2017,In-house Fostering,Boarding Out Allowances,234.52,REDACTED PERSONAL DATA
Revenue,Childrens Services,Children's & Education Services,Children Looked After,5105653020,10.11.2017,In-house Fostering,Boarding Out Allowances,234.52,REDACTED PERSONAL DATA
Revenue,Childrens Services,Children's & Education Services,Children Looked After,5105653755,17.11.2017,In-house Fostering,Boarding Out Allowances,234.52,REDACTED PERSONAL DATA
Revenue,Childrens Services,Children's & Education Services,Children Looked After,5105654560,24.11.2017,In-house Fostering,Boarding Out Allowances,234.52,REDACTED PERSONAL DATA
Revenue,Childrens Services,Children's & Education Services,Children Looked After,5105652360,03.11.2017,In-house Fostering,Boarding Out Allowances,234.52,REDACTED PERSONAL DATA
Revenue,Childrens Services,Children's & Education Services,Children Looked After,5105655314,29.11.2017,Leaving Care Costs,Support Children,50.00,REDACTED PERSONAL DATA
Revenue,Childrens Services,Children's & Education Services,Children Looked After,5105653755,17.11.2017,Leaving Care Costs,Support Children,50.00,REDACTED PERSONAL DATA
Revenue,Childrens Services,Children's & Education Services,Children Looked After,5105654560,24.11.2017,Leaving Care Costs,Support Children,50.00,REDACTED PERSONAL DATA
Revenue,Childrens Services,Children's & Education Services,Children Looked After,5105652360,03.11.2017,Leaving Care Costs,Support Children,50.00,REDACTED PERSONAL DATA
Revenue,Childrens Services,Children's & Education Services,Children Looked After,5105652212,01.11.2017,Leaving Care Costs,Support Children,500.00,REDACTED PERSONAL DATA
Revenue,Childrens Services,Children's & Education Services,Children Looked After,5105653020,10.11.2017,Leaving Care Costs,Support Children,50.00,REDACTED PERSONAL DATA
Revenue,Place,Cultural and Related Services,Open Spaces,5105652916,08.11.2017,Fort Victoria,Payment to Private Contractors,71.57,B & Q FINANCIAL SERVICES
Revenue,Adult Services,Adult Social Care,Learning Disability Suppt-adults (18-64),5105654955,29.11.2017,Learning Disability Direct Pay 18-64,Payments for Self Directed Support,"1,250.80",REDACTED PERSONAL DATA
Revenue,Resources,Central Services,Support Services,5105654376,22.11.2017,Staff Benefits,Payment to Private Contractors,100.00,REDACTED PERSONAL DATA
Revenue,Resources,Central Services,Support Services,5105654376,22.11.2017,Staff Benefits,Payment to Private Contractors,100.00,REDACTED PERSONAL DATA
Revenue,Place,Housing Services,Homelessness,5105654315,22.11.2017,Leaseholds by LA,Accommodation Costs - Leaseholder Payments,799.50,REDACTED PERSONAL DATA
Revenue,Place,Housing Services,Homelessness,5105654315,22.11.2017,Leaseholds by LA,Accommodation Costs - Leaseholder Payments,888.33,REDACTED PERSONAL DATA
Revenue,Place,Housing Services,Homelessness,5105654315,22.11.2017,Leaseholds by LA,Accommodation Costs - Leaseholder Payments,866.67,REDACTED PERSONAL DATA
Revenue,Adult Services,Adult Social Care,Physical Support - older people (65+),5105655119,29.11.2017,Physical Support Residential 65+,Order Settlement to Bal Sht GL,160.16,B&M INVESTMENTS LTD
Revenue,Adult Services,Adult Social Care,Physical Support - older people (65+),5105655119,29.11.2017,Physical Support Residential 65+,Charges from Independent Providers,"1,920.80",B&M INVESTMENTS LTD
Revenue,Adult Services,Adult Social Care,Assistive Equipment & Technology,5105652037,17.11.2017,Community Equipment Store,Operational Equipment,105.00,B.E.S REHAB LTD
Revenue,Place,Fire & Rescue Services,Fire fighting and Rescue Operations,5105652892,08.11.2017,Fire Technical Support,Vehicle Maintenance Costs,0.00,BABCOCK CRITICAL SERVICES LTD
Revenue,Place,Fire & Rescue Services,Fire fighting and Rescue Operations,5105653003,10.11.2017,Fire Technical Support,Payment to Private Contractors,"7,005.79",BALLYCLARE LTD
Revenue,Place,Fire & Rescue Services,Fire fighting and Rescue Operations,5105652678,03.11.2017,Fire Technical Support,Payment to Private Contractors,877.76,BALLYCLARE LTD
Revenue,Place,Fire & Rescue Services,Fire fighting and Rescue Operations,5105653630,15.11.2017,Fire Technical Support,Payment to Private Contractors,"7,005.79",BALLYCLARE LTD
Revenue,Adult Services,Adult Social Care,Social Care Activities,5105652546,03.11.2017,Commissioning Manager Individual Support,Consultants Fees,"3,100.00",BALTIMORE CONSULTING LIMITED
Revenue,Adult Services,Adult Social Care,Social Care Activities,5105653581,15.11.2017,Commissioning Manager Individual Support,Consultants Fees,"4,960.00",BALTIMORE CONSULTING LIMITED
Revenue,Adult Services,Adult Social Care,Central Codes (to be reallocated),5105652847,08.11.2017,Adelaide Resource Centre,Stationery,1.80,SUPPLIES TEAM LTD
Revenue,Adult Services,Adult Social Care,Central Codes (to be reallocated),5105653655,15.11.2017,Adelaide Resource Centre,Stationery,0.53,SUPPLIES TEAM LTD
Revenue,Adult Services,Adult Social Care,Central Codes (to be reallocated),5105653655,15.11.2017,Adelaide Resource Centre,Stationery,6.57,SUPPLIES TEAM LTD
Revenue,Adult Services,Adult Social Care,Central Codes (to be reallocated),5105653655,15.11.2017,Adelaide Resource Centre,Stationery,1.60,SUPPLIES TEAM LTD
Revenue,Childrens Services,Children's & Education Services,Other Education and Community Budget,5105651475,22.11.2017,Admissions/Student Finance,Stationery,9.67,SUPPLIES TEAM LTD
Revenue,Childrens Services,Children's & Education Services,Children Looked After,5105654191,22.11.2017,Adoption Team,Stationery,1.23,SUPPLIES TEAM LTD
Revenue,Childrens Services,Children's & Education Services,Children Looked After,5105653460,15.11.2017,Adoption Team,Stationery,1.80,SUPPLIES TEAM LTD
Revenue,Childrens Services,Children's & Education Services,Children Looked After,5105653460,15.11.2017,Adoption Team,Stationery,0.19,SUPPLIES TEAM LTD
Revenue,Childrens Services,Children's & Education Services,Children Looked After,5105653460,15.11.2017,Adoption Team,Stationery,2.46,SUPPLIES TEAM LTD
Revenue,Childrens Services,Children's & Education Services,Children Looked After,5105653460,15.11.2017,Adoption Team,Stationery,3.06,SUPPLIES TEAM LTD
Revenue,Childrens Services,Children's & Education Services,Children Looked After,5105653460,15.11.2017,Adoption Team,Stationery,0.33,SUPPLIES TEAM LTD
Revenue,Childrens Services,Children's & Education Services,Children Looked After,5105653460,15.11.2017,Adoption Team,Stationery,1.39,SUPPLIES TEAM LTD
Revenue,Childrens Services,Children's & Education Services,Children Looked After,5105653460,15.11.2017,Adoption Team,Stationery,3.96,SUPPLIES TEAM LTD
Revenue,Adult Services,Adult Social Care,Commissioning & Service Delivery,5105652934,08.11.2017,Adult Social Care Enterprise House,Stationery,92.63,SUPPLIES TEAM LTD
Revenue,Adult Services,Adult Social Care,Commissioning & Service Delivery,5105653251,09.11.2017,Adult Social Care Enterprise House,Stationery,-51.42,SUPPLIES TEAM LTD
Revenue,Adult Services,Adult Social Care,Commissioning & Service Delivery,5105653251,09.11.2017,Adult Social Care Enterprise House,Stationery,-4.92,SUPPLIES TEAM LTD
Revenue,Adult Services,Adult Social Care,Commissioning & Service Delivery,5105653251,09.11.2017,Adult Social Care Enterprise House,Stationery,-5.44,SUPPLIES TEAM LTD
Revenue,Adult Services,Adult Social Care,Commissioning & Service Delivery,5105653251,09.11.2017,Adult Social Care Enterprise House,Stationery,-8.98,SUPPLIES TEAM LTD
Revenue,Adult Services,Adult Social Care,Commissioning & Service Delivery,5105653251,09.11.2017,Adult Social Care Enterprise House,Stationery,-2.96,SUPPLIES TEAM LTD
Revenue,Adult Services,Adult Social Care,Commissioning & Service Delivery,5105653251,09.11.2017,Adult Social Care Enterprise House,Stationery,-1.06,SUPPLIES TEAM LTD
Revenue,Adult Services,Adult Social Care,Commissioning & Service Delivery,5105653251,09.11.2017,Adult Social Care Enterprise House,Stationery,-2.20,SUPPLIES TEAM LTD
Revenue,Adult Services,Adult Social Care,Commissioning & Service Delivery,5105653251,09.11.2017,Adult Social Care Enterprise House,Stationery,-4.92,SUPPLIES TEAM LTD
Revenue,Adult Services,Adult Social Care,Commissioning & Service Delivery,5105653251,09.11.2017,Adult Social Care Enterprise House,Stationery,-7.20,SUPPLIES TEAM LTD
Revenue,Adult Services,Adult Social Care,Commissioning & Service Delivery,5105653251,09.11.2017,Adult Social Care Enterprise House,Stationery,-0.76,SUPPLIES TEAM LTD
Revenue,Adult Services,Adult Social Care,Commissioning & Service Delivery,5105653251,09.11.2017,Adult Social Care Enterprise House,Stationery,-1.40,SUPPLIES TEAM LTD
Revenue,Adult Services,Adult Social Care,Commissioning & Service Delivery,5105654194,22.11.2017,Adult Social Care Enterprise House,Stationery,-92.63,SUPPLIES TEAM LTD
Revenue,Adult Services,Adult Social Care,Commissioning & Service Delivery,5105654188,22.11.2017,Adult Social Care Enterprise House,Stationery,-128.30,SUPPLIES TEAM LTD
Revenue,Adult Services,Adult Social Care,Commissioning & Service Delivery,5105654135,22.11.2017,Adult Social Care Enterprise House,Stationery,4.92,SUPPLIES TEAM LTD
Revenue,Adult Services,Adult Social Care,Commissioning & Service Delivery,5105654128,22.11.2017,Adult Social Care Enterprise House,Stationery,34.28,SUPPLIES TEAM LTD
Revenue,Adult Services,Adult Social Care,Commissioning & Service Delivery,5105654128,22.11.2017,Adult Social Care Enterprise House,Stationery,0.99,SUPPLIES TEAM LTD
Revenue,Adult Services,Adult Social Care,Commissioning & Service Delivery,5105654128,22.11.2017,Adult Social Care Enterprise House,Stationery,2.41,SUPPLIES TEAM LTD
Revenue,Adult Services,Adult Social Care,Commissioning & Service Delivery,5105654128,22.11.2017,Adult Social Care Enterprise House,Stationery,1.08,SUPPLIES TEAM LTD
Revenue,Adult Services,Adult Social Care,Commissioning & Service Delivery,5105654128,22.11.2017,Adult Social Care Enterprise House,Stationery,32.16,SUPPLIES TEAM LTD
Revenue,Adult Services,Adult Social Care,Commissioning & Service Delivery,5105654128,22.11.2017,Adult Social Care Enterprise House,Stationery,1.78,SUPPLIES TEAM LTD
Revenue,Adult Services,Adult Social Care,Commissioning & Service Delivery,5105653455,15.11.2017,Adult Social Care Enterprise House,Stationery,6.15,SUPPLIES TEAM LTD
Revenue,Adult Services,Adult Social Care,Commissioning & Service Delivery,5105653455,15.11.2017,Adult Social Care Enterprise House,Stationery,0.66,SUPPLIES TEAM LTD
Revenue,Adult Services,Adult Social Care,Commissioning & Service Delivery,5105653455,15.11.2017,Adult Social Care Enterprise House,Stationery,5.56,SUPPLIES TEAM LTD
Revenue,Adult Services,Adult Social Care,Commissioning & Service Delivery,5105655485,29.11.2017,Adult Social Care Enterprise House,Stationery,34.28,SUPPLIES TEAM LTD
Revenue,Adult Services,Adult Social Care,Commissioning & Service Delivery,5105655485,29.11.2017,Adult Social Care Enterprise House,Stationery,2.00,SUPPLIES TEAM LTD
Revenue,Adult Services,Adult Social Care,Commissioning & Service Delivery,5105655485,29.11.2017,Adult Social Care Enterprise House,Stationery,1.06,SUPPLIES TEAM LTD
Revenue,Adult Services,Adult Social Care,Commissioning & Service Delivery,5105655485,29.11.2017,Adult Social Care Enterprise House,Stationery,0.39,SUPPLIES TEAM LTD
Revenue,Adult Services,Adult Social Care,Commissioning & Service Delivery,5105655485,29.11.2017,Adult Social Care Enterprise House,Stationery,96.48,SUPPLIES TEAM LTD
Revenue,Adult Services,Adult Social Care,Commissioning & Service Delivery,5105652316,03.11.2017,Adult Social Care Enterprise House,Stationery,34.28,SUPPLIES TEAM LTD
Revenue,Adult Services,Adult Social Care,Commissioning & Service Delivery,5105652316,03.11.2017,Adult Social Care Enterprise House,Stationery,128.30,SUPPLIES TEAM LTD
Revenue,Adult Services,Adult Social Care,Commissioning & Service Delivery,5105652665,08.11.2017,Adult Social Care Enterprise House,Stationery,8.04,SUPPLIES TEAM LTD
Revenue,Adult Services,Adult Social Care,Commissioning & Service Delivery,5105652665,08.11.2017,Adult Social Care Enterprise House,Stationery,4.00,SUPPLIES TEAM LTD
Revenue,Adult Services,Adult Social Care,Commissioning & Service Delivery,5105652665,08.11.2017,Adult Social Care Enterprise House,Stationery,6.15,SUPPLIES TEAM LTD
Revenue,Adult Services,Adult Social Care,Commissioning & Service Delivery,5105652665,08.11.2017,Adult Social Care Enterprise House,Stationery,2.79,SUPPLIES TEAM LTD
Revenue,Childrens Services,Children's & Education Services,Children Looked After,5105652815,08.11.2017,Beaulieu House,Stationery,2.00,SUPPLIES TEAM LTD
Revenue,Childrens Services,Children's & Education Services,Children Looked After,5105652815,08.11.2017,Beaulieu House,Stationery,5.92,SUPPLIES TEAM LTD
Revenue,Childrens Services,Children's & Education Services,Children Looked After,5105652815,08.11.2017,Beaulieu House,Stationery,17.14,SUPPLIES TEAM LTD
Revenue,Childrens Services,Children's & Education Services,Children Looked After,5105652815,08.11.2017,Beaulieu House,Stationery,3.96,SUPPLIES TEAM LTD
Revenue,Childrens Services,Children's & Education Services,Children Looked After,5105652815,08.11.2017,Beaulieu House,Stationery,1.61,SUPPLIES TEAM LTD
Revenue,Childrens Services,Children's & Education Services,Children Looked After,5105652815,08.11.2017,Beaulieu House,Stationery,1.20,SUPPLIES TEAM LTD
Revenue,Childrens Services,Children's & Education Services,Children Looked After,5105652815,08.11.2017,Beaulieu House,Stationery,1.52,SUPPLIES TEAM LTD
Revenue,Childrens Services,Children's & Education Services,Children Looked After,5105652815,08.11.2017,Beaulieu House,Stationery,1.90,SUPPLIES TEAM LTD
Revenue,Childrens Services,Children's & Education Services,Children Looked After,5105652815,08.11.2017,Beaulieu House,Stationery,4.37,SUPPLIES TEAM LTD
Revenue,Childrens Services,Children's & Education Services,Other Education and Community Budget,5105652855,22.11.2017,Branstone Farm Studies Centre,Stationery,0.76,SUPPLIES TEAM LTD
Revenue,Childrens Services,Children's & Education Services,Other Education and Community Budget,5105652855,22.11.2017,Branstone Farm Studies Centre,Stationery,3.02,SUPPLIES TEAM LTD
Revenue,Childrens Services,Children's & Education Services,Other Education and Community Budget,5105652855,22.11.2017,Branstone Farm Studies Centre,Stationery,8.57,SUPPLIES TEAM LTD
Revenue,Childrens Services,Children's & Education Services,Other Education and Community Budget,5105653365,15.11.2017,Branstone Farm Studies Centre,Stationery,5.51,SUPPLIES TEAM LTD
Revenue,Place,Planning services,Building Control,5105652852,10.11.2017,Building Control,Stationery,11.16,SUPPLIES TEAM LTD
Revenue,Place,Planning services,Building Control,5105652852,10.11.2017,Building Control,Stationery,10.68,SUPPLIES TEAM LTD
Revenue,Place,Planning services,Building Control,5105652852,10.11.2017,Building Control,Stationery,0.54,SUPPLIES TEAM LTD
Revenue,Place,Planning services,Building Control,5105652852,10.11.2017,Building Control,Stationery,3.96,SUPPLIES TEAM LTD
Revenue,Place,Planning services,Building Control,5105652852,10.11.2017,Building Control,Stationery,4.02,SUPPLIES TEAM LTD
Revenue,Place,Fire & Rescue Services,Fire fighting and Rescue Operations,5105652856,08.11.2017,Business Support  - Fire,Stationery,0.53,SUPPLIES TEAM LTD
Revenue,Place,Fire & Rescue Services,Fire fighting and Rescue Operations,5105652856,08.11.2017,Business Support  - Fire,Stationery,0.70,SUPPLIES TEAM LTD
Revenue,Place,Fire & Rescue Services,Fire fighting and Rescue Operations,5105652856,08.11.2017,Business Support  - Fire,Stationery,2.46,SUPPLIES TEAM LTD
Revenue,Place,Fire & Rescue Services,Fire fighting and Rescue Operations,5105652856,08.11.2017,Business Support  - Fire,Stationery,3.60,SUPPLIES TEAM LTD
Revenue,Place,Fire & Rescue Services,Fire fighting and Rescue Operations,5105652856,08.11.2017,Business Support  - Fire,Stationery,3.32,SUPPLIES TEAM LTD
Revenue,Resources,Central Services,Support Services,5105655495,29.11.2017,County Hall Central Mail Room,Stationery,16.69,SUPPLIES TEAM LTD
Revenue,Resources,Central Services,Support Services,5105651475,22.11.2017,County Hall Central Mail Room,Stationery,12.52,SUPPLIES TEAM LTD
Revenue,Resources,Central Services,Support Services,5105654755,24.11.2017,County Hall Central Mail Room,Stationery,4.92,SUPPLIES TEAM LTD
Revenue,Resources,Central Services,Support Services,5105654755,24.11.2017,County Hall Central Mail Room,Stationery,12.52,SUPPLIES TEAM LTD
Revenue,Resources,Central Services,Support Services,5105652816,08.11.2017,Call Centre,Stationery,7.77,SUPPLIES TEAM LTD
Revenue,Chief Executive,Central Services,Support Services,5105653460,15.11.2017,Chief Executive,Stationery,2.10,SUPPLIES TEAM LTD
Revenue,Chief Executive,Central Services,Support Services,5105653460,15.11.2017,Chief Executive,Stationery,1.80,SUPPLIES TEAM LTD
Revenue,Childrens Services,Children's & Education Services,Safeguarding Children/Young Peoples Svs,5105652860,22.11.2017,Children's office costs,Stationery,25.71,SUPPLIES TEAM LTD
Revenue,Childrens Services,Children's & Education Services,Safeguarding Children/Young Peoples Svs,5105652860,22.11.2017,Children's office costs,Stationery,25.71,SUPPLIES TEAM LTD
Revenue,Childrens Services,Children's & Education Services,Safeguarding Children/Young Peoples Svs,5105653298,10.11.2017,Children's office costs,Stationery,0.78,SUPPLIES TEAM LTD
Revenue,Childrens Services,Children's & Education Services,Safeguarding Children/Young Peoples Svs,5105654756,24.11.2017,Children's office costs,Stationery,34.28,SUPPLIES TEAM LTD
Revenue,Childrens Services,Children's & Education Services,Safeguarding Children/Young Peoples Svs,5105653460,15.11.2017,Children's office costs,Stationery,12.04,SUPPLIES TEAM LTD
Revenue,Childrens Services,Children's & Education Services,Safeguarding Children/Young Peoples Svs,5105653460,15.11.2017,Children's office costs,Stationery,2.72,SUPPLIES TEAM LTD
Revenue,Childrens Services,Children's & Education Services,Safeguarding Children/Young Peoples Svs,5105653460,15.11.2017,Children's office costs,Stationery,0.81,SUPPLIES TEAM LTD
Revenue,Childrens Services,Children's & Education Services,Safeguarding Children/Young Peoples Svs,5105653460,15.11.2017,Children's office costs,Stationery,3.00,SUPPLIES TEAM LTD
Revenue,Childrens Services,Children's & Education Services,Safeguarding Children/Young Peoples Svs,5105655495,29.11.2017,Children's office costs,Stationery,34.28,SUPPLIES TEAM LTD
Revenue,Childrens Services,Children's & Education Services,Safeguarding Children/Young Peoples Svs,5105655495,29.11.2017,Children's office costs,Stationery,17.14,SUPPLIES TEAM LTD
Revenue,Childrens Services,Children's & Education Services,Safeguarding Children/Young Peoples Svs,5105655495,29.11.2017,Children's office costs,Stationery,6.26,SUPPLIES TEAM LTD
Revenue,Childrens Services,Children's & Education Services,Safeguarding Children/Young Peoples Svs,5105655495,29.11.2017,Children's office costs,Stationery,17.14,SUPPLIES TEAM LTD
Revenue,Childrens Services,Children's & Education Services,Safeguarding Children/Young Peoples Svs,5105652313,03.11.2017,Children's office costs,Stationery,1.61,SUPPLIES TEAM LTD
Revenue,Childrens Services,Children's & Education Services,Safeguarding Children/Young Peoples Svs,5105652766,08.11.2017,Children's office costs,Stationery,-9.60,SUPPLIES TEAM LTD
Revenue,Childrens Services,Children's & Education Services,Safeguarding Children/Young Peoples Svs,5105628294,08.11.2017,Children's office costs,Stationery,9.60,SUPPLIES TEAM LTD
Revenue,Childrens Services,Children's & Education Services,Safeguarding Children/Young Peoples Svs,5105651475,22.11.2017,Children's office costs,Stationery,0.46,SUPPLIES TEAM LTD
Revenue,Childrens Services,Children's & Education Services,Safeguarding Children/Young Peoples Svs,5105651475,22.11.2017,Children's office costs,Stationery,1.60,SUPPLIES TEAM LTD
Revenue,Childrens Services,Children's & Education Services,Safeguarding Children/Young Peoples Svs,5105651475,22.11.2017,Children's office costs,Stationery,4.17,SUPPLIES TEAM LTD
Revenue,Childrens Services,Children's & Education Services,Safeguarding Children/Young Peoples Svs,5105651475,22.11.2017,Children's office costs,Stationery,0.99,SUPPLIES TEAM LTD
Revenue,Childrens Services,Children's & Education Services,Safeguarding Children/Young Peoples Svs,5105651475,22.11.2017,Children's office costs,Stationery,6.26,SUPPLIES TEAM LTD
Revenue,Childrens Services,Children's & Education Services,Safeguarding Children/Young Peoples Svs,5105651475,22.11.2017,Children's office costs,Stationery,6.26,SUPPLIES TEAM LTD
Revenue,Childrens Services,Children's & Education Services,Safeguarding Children/Young Peoples Svs,5105651475,22.11.2017,Children's office costs,Stationery,25.71,SUPPLIES TEAM LTD
Revenue,Childrens Services,Children's & Education Services,Safeguarding Children/Young Peoples Svs,5105651475,22.11.2017,Children's office costs,Stationery,25.71,SUPPLIES TEAM LTD
Revenue,Resources,Central Services,Corporate and Democratic Core,5105655495,29.11.2017,Committee and Scrutiny Team,Stationery,0.17,SUPPLIES TEAM LTD
Revenue,Resources,Central Services,Corporate and Democratic Core,5105655495,29.11.2017,Committee and Scrutiny Team,Stationery,0.71,SUPPLIES TEAM LTD
Revenue,Resources,Central Services,Corporate and Democratic Core,5105655495,29.11.2017,Committee and Scrutiny Team,Stationery,1.48,SUPPLIES TEAM LTD
Revenue,Resources,Central Services,Corporate and Democratic Core,5105655495,29.11.2017,Committee and Scrutiny Team,Stationery,0.19,SUPPLIES TEAM LTD
Revenue,Resources,Central Services,Corporate and Democratic Core,5105655495,29.11.2017,Committee and Scrutiny Team,Stationery,1.61,SUPPLIES TEAM LTD
Revenue,Adult Services,Adult Social Care,Central Codes (to be reallocated),5105653655,15.11.2017,Community Outreach,Stationery,2.96,SUPPLIES TEAM LTD
Revenue,Adult Services,Adult Social Care,Assistive Equipment & Technology,5105652671,08.11.2017,Community Equipment Store,Stationery,2.46,SUPPLIES TEAM LTD
Revenue,Adult Services,Adult Social Care,Assistive Equipment & Technology,5105652671,08.11.2017,Community Equipment Store,Stationery,1.62,SUPPLIES TEAM LTD
Revenue,Adult Services,Adult Social Care,Assistive Equipment & Technology,5105652671,08.11.2017,Community Equipment Store,Stationery,3.22,SUPPLIES TEAM LTD
Revenue,Adult Services,Adult Social Care,Assistive Equipment & Technology,5105652671,08.11.2017,Community Equipment Store,Stationery,42.85,SUPPLIES TEAM LTD
Revenue,Adult Services,Adult Social Care,Assistive Equipment & Technology,5105652671,08.11.2017,Community Equipment Store,Stationery,1.35,SUPPLIES TEAM LTD
Revenue,Adult Services,Adult Social Care,Assistive Equipment & Technology,5105652671,08.11.2017,Community Equipment Store,Stationery,4.77,SUPPLIES TEAM LTD
Revenue,Adult Services,Adult Social Care,Assistive Equipment & Technology,5105652671,08.11.2017,Community Equipment Store,Stationery,6.50,SUPPLIES TEAM LTD
Revenue,Adult Services,Adult Social Care,Assistive Equipment & Technology,5105652671,08.11.2017,Community Equipment Store,Stationery,2.28,SUPPLIES TEAM LTD
Revenue,Adult Services,Adult Social Care,Assistive Equipment & Technology,5105652671,08.11.2017,Community Equipment Store,Stationery,2.14,SUPPLIES TEAM LTD
Revenue,Adult Services,Adult Social Care,Assistive Equipment & Technology,5105652671,08.11.2017,Community Equipment Store,Stationery,2.76,SUPPLIES TEAM LTD
Revenue,Adult Services,Adult Social Care,Assistive Equipment & Technology,5105652671,08.11.2017,Community Equipment Store,Stationery,1.59,SUPPLIES TEAM LTD
Revenue,Adult Services,Adult Social Care,Assistive Equipment & Technology,5105652671,08.11.2017,Community Equipment Store,Stationery,0.38,SUPPLIES TEAM LTD
Revenue,Adult Services,Adult Social Care,Assistive Equipment & Technology,5105652671,08.11.2017,Community Equipment Store,Stationery,2.72,SUPPLIES TEAM LTD
Revenue,Adult Services,Adult Social Care,Assistive Equipment & Technology,5105652671,08.11.2017,Community Equipment Store,Stationery,2.49,SUPPLIES TEAM LTD
Revenue,Adult Services,Adult Social Care,Assistive Equipment & Technology,5105652671,08.11.2017,Community Equipment Store,Stationery,0.76,SUPPLIES TEAM LTD
Revenue,Adult Services,Adult Social Care,Assistive Equipment & Technology,5105652671,08.11.2017,Community Equipment Store,Stationery,0.70,SUPPLIES TEAM LTD
Revenue,Adult Services,Adult Social Care,Assistive Equipment & Technology,5105652671,08.11.2017,Community Equipment Store,Stationery,1.02,SUPPLIES TEAM LTD
Revenue,Adult Services,Adult Social Care,Assistive Equipment & Technology,5105652671,08.11.2017,Community Equipment Store,Stationery,1.06,SUPPLIES TEAM LTD
Revenue,Place,Central Services,Central Services to the Public,5105652852,10.11.2017,Coroner,Stationery,4.30,SUPPLIES TEAM LTD
Revenue,Place,Central Services,Central Services to the Public,5105654722,24.11.2017,Coroner,Stationery,125.25,SUPPLIES TEAM LTD
Revenue,Place,Central Services,Central Services to the Public,5105654199,22.11.2017,Coroner,Stationery,19.73,SUPPLIES TEAM LTD
Revenue,Resources,Central Services,Support Services,5105652860,22.11.2017,Corproate Business Hub,Stationery,13.42,SUPPLIES TEAM LTD
Revenue,Resources,Central Services,Support Services,5105652860,22.11.2017,Corproate Business Hub,Stationery,5.22,SUPPLIES TEAM LTD
Revenue,Resources,Central Services,Support Services,5105653460,15.11.2017,Corproate Business Hub,Stationery,1.23,SUPPLIES TEAM LTD
Revenue,Resources,Central Services,Support Services,5105655495,29.11.2017,Corproate Business Hub,Stationery,1.23,SUPPLIES TEAM LTD
Revenue,Resources,Central Services,Support Services,5105655495,29.11.2017,Corproate Business Hub,Stationery,0.53,SUPPLIES TEAM LTD
Revenue,Resources,Central Services,Support Services,5105655495,29.11.2017,Corproate Business Hub,Stationery,1.90,SUPPLIES TEAM LTD
Revenue,Regeneration,Central Services,Support Services,5105652860,22.11.2017,Corporate Property Maintenance Team,Stationery,0.71,SUPPLIES TEAM LTD
Revenue,Resources,Central Services,Central Services to the Public,5105654755,24.11.2017,Council Tax,Stationery,85.70,SUPPLIES TEAM LTD
Revenue,Place,Cultural and Related Services,Library Service,5105654133,22.11.2017,Cowes Library,Stationery,49.25,SUPPLIES TEAM LTD
Revenue,Resources,Central Services,Support Services,5105652816,08.11.2017,Creditor Payments Shared Service Centre,Stationery,25.71,SUPPLIES TEAM LTD
Revenue,Resources,Central Services,Support Services,5105654755,24.11.2017,Creditor Payments Shared Service Centre,Stationery,17.14,SUPPLIES TEAM LTD
Revenue,Place,Environmental & Regulatory Services,"Cemetery, Cremation & Mortuary Services",5105652851,22.11.2017,Crematorium,Stationery,1.17,SUPPLIES TEAM LTD
Revenue,Place,Environmental & Regulatory Services,"Cemetery, Cremation & Mortuary Services",5105652851,22.11.2017,Crematorium,Stationery,3.60,SUPPLIES TEAM LTD
Revenue,Place,Environmental & Regulatory Services,"Cemetery, Cremation & Mortuary Services",5105652851,22.11.2017,Crematorium,Stationery,8.57,SUPPLIES TEAM LTD
Revenue,Place,Environmental & Regulatory Services,"Cemetery, Cremation & Mortuary Services",5105652851,22.11.2017,Crematorium,Stationery,0.34,SUPPLIES TEAM LTD
Revenue,Place,Environmental & Regulatory Services,"Cemetery, Cremation & Mortuary Services",5105652851,22.11.2017,Crematorium,Stationery,21.98,SUPPLIES TEAM LTD
Revenue,Place,Environmental & Regulatory Services,"Cemetery, Cremation & Mortuary Services",5105654190,22.11.2017,Crematorium,Stationery,-4.00,SUPPLIES TEAM LTD
Revenue,Place,Environmental & Regulatory Services,"Cemetery, Cremation & Mortuary Services",5105654495,22.11.2017,Crematorium,Stationery,-8.57,SUPPLIES TEAM LTD
Revenue,Place,Environmental & Regulatory Services,"Cemetery, Cremation & Mortuary Services",5105653583,15.11.2017,Crematorium,Stationery,1.69,SUPPLIES TEAM LTD
Revenue,Place,Environmental & Regulatory Services,"Cemetery, Cremation & Mortuary Services",5105651046,22.11.2017,Crematorium,Stationery,4.00,SUPPLIES TEAM LTD
Revenue,Resources,Central Services,Support Services,5105652816,08.11.2017,Customer Accounts Shared Service Centre,Stationery,1.06,SUPPLIES TEAM LTD
Revenue,Resources,Central Services,Support Services,5105652816,08.11.2017,Customer Accounts Shared Service Centre,Stationery,2.46,SUPPLIES TEAM LTD
Revenue,Resources,Central Services,Support Services,5105654755,24.11.2017,Customer Accounts Shared Service Centre,Stationery,17.14,SUPPLIES TEAM LTD
Revenue,Resources,Central Services,Support Services,5105654755,24.11.2017,Customer Accounts Shared Service Centre,Stationery,17.14,SUPPLIES TEAM LTD
Revenue,Childrens Services,Children's & Education Services,Family Support Services,5105631152,08.11.2017,Disabled Childrens Intervention Team,Stationery,-20.98,SUPPLIES TEAM LTD
Revenue,Childrens Services,Children's & Education Services,Family Support Services,5105629202,08.11.2017,Disabled Childrens Intervention Team,Stationery,23.79,SUPPLIES TEAM LTD
Revenue,Childrens Services,Children's & Education Services,Family Support Services,5105652765,08.11.2017,Disabled Childrens Intervention Team,Stationery,-2.81,SUPPLIES TEAM LTD
Revenue,Regeneration,Planning services,Economic Development,5105652860,22.11.2017,Director of Regeneration,Stationery,6.58,SUPPLIES TEAM LTD
Revenue,Regeneration,Planning services,Economic Development,5105652860,22.11.2017,Director of Regeneration,Stationery,0.68,SUPPLIES TEAM LTD
Revenue,Regeneration,Planning services,Economic Development,5105652860,22.11.2017,Director of Regeneration,Stationery,32.20,SUPPLIES TEAM LTD
Revenue,Regeneration,Planning services,Economic Development,5105652860,22.11.2017,Director of Regeneration,Stationery,90.00,SUPPLIES TEAM LTD
Revenue,Regeneration,Planning services,Economic Development,5105652860,22.11.2017,Director of Regeneration,Stationery,15.84,SUPPLIES TEAM LTD
Revenue,Regeneration,Planning services,Economic Development,5105652860,22.11.2017,Director of Regeneration,Stationery,7.43,SUPPLIES TEAM LTD
Revenue,Regeneration,Planning services,Economic Development,5105652983,10.11.2017,Director of Regeneration,Stationery,7.43,SUPPLIES TEAM LTD
Revenue,Regeneration,Planning services,Economic Development,5105652860,22.11.2017,Director of Regeneration,Stationery,3.87,SUPPLIES TEAM LTD
Revenue,Regeneration,Planning services,Economic Development,5105652860,22.11.2017,Director of Regeneration,Stationery,2.28,SUPPLIES TEAM LTD
Revenue,Regeneration,Planning services,Economic Development,5105652860,22.11.2017,Director of Regeneration,Stationery,1.07,SUPPLIES TEAM LTD
Revenue,Regeneration,Planning services,Economic Development,5105652860,22.11.2017,Director of Regeneration,Stationery,1.07,SUPPLIES TEAM LTD
Revenue,Regeneration,Planning services,Economic Development,5105652860,22.11.2017,Director of Regeneration,Stationery,1.07,SUPPLIES TEAM LTD
Revenue,Regeneration,Planning services,Economic Development,5105652860,22.11.2017,Director of Regeneration,Stationery,2.47,SUPPLIES TEAM LTD
Revenue,Childrens Services,Children's & Education Services,Safeguarding Children/Young Peoples Svs,5105653460,15.11.2017,Early Help Team,Stationery,1.40,SUPPLIES TEAM LTD
Revenue,Childrens Services,Children's & Education Services,Safeguarding Children/Young Peoples Svs,5105653460,15.11.2017,Early Help Team,Stationery,1.50,SUPPLIES TEAM LTD
Revenue,Childrens Services,Children's & Education Services,Safeguarding Children/Young Peoples Svs,5105653460,15.11.2017,Early Help Team,Stationery,0.66,SUPPLIES TEAM LTD
Revenue,Childrens Services,Children's & Education Services,Safeguarding Children/Young Peoples Svs,5105653460,15.11.2017,Early Help Team,Stationery,0.39,SUPPLIES TEAM LTD
Revenue,Childrens Services,Children's & Education Services,Safeguarding Children/Young Peoples Svs,5105653460,15.11.2017,Early Help Team,Stationery,8.71,SUPPLIES TEAM LTD
Revenue,Childrens Services,Children's & Education Services,Safeguarding Children/Young Peoples Svs,5105653460,15.11.2017,Early Help Team,Stationery,1.23,SUPPLIES TEAM LTD
Revenue,Childrens Services,Children's & Education Services,Safeguarding Children/Young Peoples Svs,5105653460,15.11.2017,Early Help Team,Stationery,0.81,SUPPLIES TEAM LTD
Revenue,Childrens Services,Children's & Education Services,Safeguarding Children/Young Peoples Svs,5105653460,15.11.2017,Early Help Team,Stationery,0.08,SUPPLIES TEAM LTD
Revenue,Childrens Services,Children's & Education Services,Safeguarding Children/Young Peoples Svs,5105653460,15.11.2017,Early Help Team,Stationery,0.76,SUPPLIES TEAM LTD
Revenue,Childrens Services,Children's & Education Services,Other Education and Community Budget,5105654755,24.11.2017,Education & Participation,Stationery,1.06,SUPPLIES TEAM LTD
Revenue,Childrens Services,Children's & Education Services,Other Education and Community Budget,5105653339,15.11.2017,Education Welfare Service,Stationery,2.47,SUPPLIES TEAM LTD
Revenue,Childrens Services,Children's & Education Services,Other Education and Community Budget,5105653339,15.11.2017,Education Welfare Service,Stationery,4.06,SUPPLIES TEAM LTD
Revenue,Childrens Services,Children's & Education Services,Other Education and Community Budget,5105653339,15.11.2017,Education Welfare Service,Stationery,0.54,SUPPLIES TEAM LTD
Revenue,Resources,Central Services,Central Services to the Public,5105652819,08.11.2017,Electoral Registration Office,Stationery,4.94,SUPPLIES TEAM LTD
Revenue,Resources,Central Services,Central Services to the Public,5105652819,08.11.2017,Electoral Registration Office,Stationery,0.50,SUPPLIES TEAM LTD
Revenue,Place,Cultural and Related Services,Open Spaces,5105652860,22.11.2017,Fort Victoria,Stationery,11.27,SUPPLIES TEAM LTD
Revenue,Childrens Services,Children's & Education Services,Safeguarding Children/Young Peoples Svs,5105653460,15.11.2017,Fostering Team,Stationery,6.00,SUPPLIES TEAM LTD
Revenue,Childrens Services,Children's & Education Services,Safeguarding Children/Young Peoples Svs,5105653460,15.11.2017,Fostering Team,Stationery,1.37,SUPPLIES TEAM LTD
Revenue,Childrens Services,Children's & Education Services,Safeguarding Children/Young Peoples Svs,5105653460,15.11.2017,Fostering Team,Stationery,0.80,SUPPLIES TEAM LTD
Revenue,Childrens Services,Children's & Education Services,Safeguarding Children/Young Peoples Svs,5105653460,15.11.2017,Fostering Team,Stationery,10.68,SUPPLIES TEAM LTD
Revenue,Childrens Services,Children's & Education Services,Safeguarding Children/Young Peoples Svs,5105653460,15.11.2017,Fostering Team,Stationery,0.53,SUPPLIES TEAM LTD
Revenue,Childrens Services,Children's & Education Services,Safeguarding Children/Young Peoples Svs,5105654755,24.11.2017,Fostering Team,Stationery,0.81,SUPPLIES TEAM LTD
Revenue,Place,Cultural and Related Services,Library Service,5105653340,15.11.2017,Freshwater West Wight Library,Stationery,0.27,SUPPLIES TEAM LTD
Revenue,Place,Cultural and Related Services,Library Service,5105653987,22.11.2017,Freshwater West Wight Library,Stationery,3.73,SUPPLIES TEAM LTD
Revenue,Adult Services,Adult Social Care,Central Codes (to be reallocated),5105652857,08.11.2017,Gouldings Resource Centre,Stationery,5.16,SUPPLIES TEAM LTD
Revenue,Adult Services,Adult Social Care,Central Codes (to be reallocated),5105652857,08.11.2017,Gouldings Resource Centre,Stationery,1.06,SUPPLIES TEAM LTD
Revenue,Adult Services,Adult Social Care,Central Codes (to be reallocated),5105652857,08.11.2017,Gouldings Resource Centre,Stationery,0.48,SUPPLIES TEAM LTD
Revenue,Adult Services,Adult Social Care,Central Codes (to be reallocated),5105652857,08.11.2017,Gouldings Resource Centre,Stationery,1.60,SUPPLIES TEAM LTD
Revenue,Adult Services,Adult Social Care,Central Codes (to be reallocated),5105652857,08.11.2017,Gouldings Resource Centre,Stationery,1.23,SUPPLIES TEAM LTD
Revenue,Adult Services,Adult Social Care,Central Codes (to be reallocated),5105652857,08.11.2017,Gouldings Resource Centre,Stationery,0.24,SUPPLIES TEAM LTD
Revenue,Adult Services,Adult Social Care,Central Codes (to be reallocated),5105652857,08.11.2017,Gouldings Resource Centre,Stationery,3.43,SUPPLIES TEAM LTD
Revenue,Adult Services,Adult Social Care,Central Codes (to be reallocated),5105652857,08.11.2017,Gouldings Resource Centre,Stationery,17.14,SUPPLIES TEAM LTD
Revenue,Adult Services,Adult Social Care,Commissioning & Service Delivery,5105653300,10.11.2017,Learning Disability Homes Management & Admin,Stationery,1.56,SUPPLIES TEAM LTD
Revenue,Adult Services,Adult Social Care,Commissioning & Service Delivery,5105652818,08.11.2017,Learning Disability Homes Management & Admin,Stationery,7.74,SUPPLIES TEAM LTD
Revenue,Adult Services,Adult Social Care,Commissioning & Service Delivery,5105652818,08.11.2017,Learning Disability Homes Management & Admin,Stationery,0.53,SUPPLIES TEAM LTD
Revenue,Adult Services,Adult Social Care,Commissioning & Service Delivery,5105652818,08.11.2017,Learning Disability Homes Management & Admin,Stationery,0.39,SUPPLIES TEAM LTD
Revenue,Adult Services,Adult Social Care,Commissioning & Service Delivery,5105652818,08.11.2017,Learning Disability Homes Management & Admin,Stationery,8.57,SUPPLIES TEAM LTD
Revenue,Adult Services,Adult Social Care,Commissioning & Service Delivery,5105652978,10.11.2017,Learning Disability Homes Management & Admin,Stationery,7.12,SUPPLIES TEAM LTD
Revenue,Adult Services,Adult Social Care,Commissioning & Service Delivery,5105651475,22.11.2017,Head of Adult Social Care,Stationery,25.71,SUPPLIES TEAM LTD
Revenue,Adult Services,Adult Social Care,Commissioning & Service Delivery,5105652860,22.11.2017,Head of Adult Social Care,Stationery,25.71,SUPPLIES TEAM LTD
Revenue,Adult Services,Adult Social Care,Commissioning & Service Delivery,5105654756,24.11.2017,Head of Adult Social Care,Stationery,25.71,SUPPLIES TEAM LTD
Revenue,Adult Services,Adult Social Care,Commissioning & Service Delivery,5105654755,24.11.2017,Head of Adult Social Care,Stationery,6.26,SUPPLIES TEAM LTD
Revenue,Resources,Central Services,Support Services,5105653460,15.11.2017,Help Centres Shared Service Centre,Stationery,17.14,SUPPLIES TEAM LTD
Revenue,Place,Highways and Transport Services,Management and Support Services,5105652820,08.11.2017,Highways PFI Project,Stationery,17.14,SUPPLIES TEAM LTD
Revenue,Place,Highways and Transport Services,Management and Support Services,5105652820,08.11.2017,Highways PFI Project,Stationery,4.92,SUPPLIES TEAM LTD
Revenue,Place,Highways and Transport Services,Management and Support Services,5105652820,08.11.2017,Highways PFI Project,Stationery,1.12,SUPPLIES TEAM LTD
Revenue,Place,Highways and Transport Services,Management and Support Services,5105652820,08.11.2017,Highways PFI Project,Stationery,4.40,SUPPLIES TEAM LTD
Revenue,Resources,Housing Services,Housing Benefits Administration,5105652819,08.11.2017,Housing Benefit,Stationery,6.50,SUPPLIES TEAM LTD
Revenue,Resources,Housing Services,Housing Benefits Administration,5105652819,08.11.2017,Housing Benefit,Stationery,1.23,SUPPLIES TEAM LTD
Revenue,Resources,Housing Services,Housing Benefits Administration,5105654756,24.11.2017,Housing Benefit,Stationery,8.57,SUPPLIES TEAM LTD
Revenue,Resources,Central Services,Support Services,5105652816,08.11.2017,Human Resources,Stationery,1.23,SUPPLIES TEAM LTD
Revenue,Resources,Central Services,Support Services,5105652852,10.11.2017,ICT CCR,Stationery,4.94,SUPPLIES TEAM LTD
Revenue,Resources,Central Services,Support Services,5105652852,10.11.2017,ICT CCR,Stationery,3.90,SUPPLIES TEAM LTD
Revenue,Resources,Central Services,Support Services,5105652852,10.11.2017,ICT CCR,Stationery,2.70,SUPPLIES TEAM LTD
Revenue,Resources,Central Services,Support Services,5105652852,10.11.2017,ICT CCR,Stationery,3.22,SUPPLIES TEAM LTD
Revenue,Resources,Central Services,Support Services,5105652852,10.11.2017,ICT CCR,Stationery,4.92,SUPPLIES TEAM LTD
Revenue,Resources,Central Services,Support Services,5105652852,10.11.2017,ICT CCR,Stationery,3.53,SUPPLIES TEAM LTD
Revenue,Resources,Central Services,Support Services,5105652852,10.11.2017,ICT CCR,Stationery,4.89,SUPPLIES TEAM LTD
Revenue,Childrens Services,Children's & Education Services,Special Schools & Alternative Provision,5105652850,08.11.2017,Island Learning Centre,Stationery,25.71,SUPPLIES TEAM LTD
Revenue,Childrens Services,Children's & Education Services,Special Schools & Alternative Provision,5105652850,08.11.2017,Island Learning Centre,Stationery,4.00,SUPPLIES TEAM LTD
Revenue,Childrens Services,Children's & Education Services,Special Schools & Alternative Provision,5105652850,08.11.2017,Island Learning Centre,Stationery,0.57,SUPPLIES TEAM LTD
Revenue,Childrens Services,Children's & Education Services,Special Schools & Alternative Provision,5105652850,08.11.2017,Island Learning Centre,Stationery,1.17,SUPPLIES TEAM LTD
Revenue,Childrens Services,Children's & Education Services,Special Schools & Alternative Provision,5105654141,22.11.2017,Island Learning Centre,Stationery,5.34,SUPPLIES TEAM LTD
Revenue,Childrens Services,Children's & Education Services,Special Schools & Alternative Provision,5105654141,22.11.2017,Island Learning Centre,Stationery,34.28,SUPPLIES TEAM LTD
Revenue,Childrens Services,Children's & Education Services,Other Education and Community Budget,5105652858,08.11.2017,Learning & Development Running Costs,Stationery,34.28,SUPPLIES TEAM LTD
Revenue,Childrens Services,Children's & Education Services,Other Education and Community Budget,5105652858,08.11.2017,Learning & Development Running Costs,Stationery,2.46,SUPPLIES TEAM LTD
Revenue,Childrens Services,Children's & Education Services,Other Education and Community Budget,5105652858,08.11.2017,Learning & Development Running Costs,Stationery,5.70,SUPPLIES TEAM LTD
Revenue,Childrens Services,Children's & Education Services,Other Education and Community Budget,5105652858,08.11.2017,Learning & Development Running Costs,Stationery,6.44,SUPPLIES TEAM LTD
Revenue,Childrens Services,Children's & Education Services,Other Education and Community Budget,5105652858,08.11.2017,Learning & Development Running Costs,Stationery,2.34,SUPPLIES TEAM LTD
Revenue,Childrens Services,Children's & Education Services,Other Education and Community Budget,5105653676,15.11.2017,Learning & Development Running Costs,Stationery,6.44,SUPPLIES TEAM LTD
Revenue,Childrens Services,Children's & Education Services,Other Education and Community Budget,5105653339,15.11.2017,Learning & Development Running Costs,Stationery,17.14,SUPPLIES TEAM LTD
Revenue,Childrens Services,Children's & Education Services,Other Education and Community Budget,5105653339,15.11.2017,Learning & Development Running Costs,Stationery,3.42,SUPPLIES TEAM LTD
Revenue,Childrens Services,Children's & Education Services,Other Education and Community Budget,5105653339,15.11.2017,Learning & Development Running Costs,Stationery,17.66,SUPPLIES TEAM LTD
Revenue,Resources,Central Services,Support Services,5105655495,29.11.2017,Legal Services Section,Stationery,34.28,SUPPLIES TEAM LTD
Revenue,Resources,Central Services,Support Services,5105652860,22.11.2017,Legal Services Section,Stationery,2.28,SUPPLIES TEAM LTD
Revenue,Resources,Central Services,Support Services,5105652860,22.11.2017,Legal Services Section,Stationery,0.33,SUPPLIES TEAM LTD
Revenue,Resources,Central Services,Support Services,5105652860,22.11.2017,Legal Services Section,Stationery,3.20,SUPPLIES TEAM LTD
Revenue,Resources,Central Services,Support Services,5105652860,22.11.2017,Legal Services Section,Stationery,34.28,SUPPLIES TEAM LTD
Revenue,Resources,Central Services,Support Services,5105654755,24.11.2017,Legal Services Section,Stationery,4.00,SUPPLIES TEAM LTD
Revenue,Resources,Central Services,Support Services,5105654755,24.11.2017,Legal Services Section,Stationery,4.56,SUPPLIES TEAM LTD
Revenue,Place,Cultural and Related Services,Service Management and Support Services,5105653460,15.11.2017,Leisure Management & Admin,Stationery,8.57,SUPPLIES TEAM LTD
Revenue,Place,Cultural and Related Services,Service Management and Support Services,5105653460,15.11.2017,Leisure Management & Admin,Stationery,17.14,SUPPLIES TEAM LTD
Revenue,Place,Cultural and Related Services,Service Management and Support Services,5105655495,29.11.2017,Leisure Management & Admin,Stationery,17.14,SUPPLIES TEAM LTD
Revenue,Place,Cultural and Related Services,Service Management and Support Services,5105651475,22.11.2017,Leisure Management & Admin,Stationery,0.70,SUPPLIES TEAM LTD
Revenue,Place,Cultural and Related Services,Service Management and Support Services,5105651475,22.11.2017,Leisure Management & Admin,Stationery,1.80,SUPPLIES TEAM LTD
Revenue,Place,Cultural and Related Services,Service Management and Support Services,5105651475,22.11.2017,Leisure Management & Admin,Stationery,0.19,SUPPLIES TEAM LTD
Revenue,Place,Cultural and Related Services,Service Management and Support Services,5105651475,22.11.2017,Leisure Management & Admin,Stationery,2.46,SUPPLIES TEAM LTD
Revenue,Place,Cultural and Related Services,Service Management and Support Services,5105651475,22.11.2017,Leisure Management & Admin,Stationery,1.56,SUPPLIES TEAM LTD
Revenue,Place,Cultural and Related Services,Service Management and Support Services,5105652860,22.11.2017,Leisure Management & Admin,Stationery,29.01,SUPPLIES TEAM LTD
Revenue,Place,Cultural and Related Services,Service Management and Support Services,5105654755,24.11.2017,Leisure Management & Admin,Stationery,2.40,SUPPLIES TEAM LTD
Revenue,Place,Cultural and Related Services,Service Management and Support Services,5105654755,24.11.2017,Leisure Management & Admin,Stationery,5.52,SUPPLIES TEAM LTD
Revenue,Place,Environmental & Regulatory Services,Regulatory Services,5105652854,08.11.2017,Licensing Services,Stationery,6.26,SUPPLIES TEAM LTD
Revenue,Place,Environmental & Regulatory Services,Regulatory Services,5105652854,08.11.2017,Licensing Services,Stationery,2.46,SUPPLIES TEAM LTD
Revenue,Place,Environmental & Regulatory Services,Regulatory Services,5105652854,08.11.2017,Licensing Services,Stationery,0.33,SUPPLIES TEAM LTD
Revenue,Place,Environmental & Regulatory Services,Regulatory Services,5105652854,08.11.2017,Licensing Services,Stationery,1.39,SUPPLIES TEAM LTD
Revenue,Place,Environmental & Regulatory Services,Regulatory Services,5105652854,08.11.2017,Licensing Services,Stationery,8.04,SUPPLIES TEAM LTD
Revenue,Place,Environmental & Regulatory Services,Regulatory Services,5105652981,10.11.2017,Licensing Services,Stationery,7.43,SUPPLIES TEAM LTD
Revenue,Place,Environmental & Regulatory Services,Regulatory Services,5105652854,08.11.2017,Licensing Services,Stationery,0.27,SUPPLIES TEAM LTD
Revenue,Place,Environmental & Regulatory Services,Regulatory Services,5105652854,08.11.2017,Licensing Services,Stationery,0.19,SUPPLIES TEAM LTD
Revenue,Place,Environmental & Regulatory Services,Regulatory Services,5105652854,08.11.2017,Licensing Services,Stationery,1.80,SUPPLIES TEAM LTD
Revenue,Place,Environmental & Regulatory Services,Regulatory Services,5105652854,08.11.2017,Licensing Services,Stationery,2.72,SUPPLIES TEAM LTD
Revenue,Place,Environmental & Regulatory Services,Regulatory Services,5105652854,08.11.2017,Licensing Services,Stationery,2.49,SUPPLIES TEAM LTD
Revenue,Place,Environmental & Regulatory Services,Regulatory Services,5105652854,08.11.2017,Licensing Services,Stationery,25.71,SUPPLIES TEAM LTD
Revenue,Place,Cultural and Related Services,Culture and Heritage,5105652675,08.11.2017,Local Collection,Stationery,1.60,SUPPLIES TEAM LTD
Revenue,Place,Cultural and Related Services,Recreation and Sport,5105652859,08.11.2017,Medina Leisure Centre,Stationery,25.71,SUPPLIES TEAM LTD
Revenue,Place,Cultural and Related Services,Recreation and Sport,5105652859,08.11.2017,Medina Leisure Centre,Stationery,0.34,SUPPLIES TEAM LTD
Revenue,Place,Cultural and Related Services,Recreation and Sport,5105652859,08.11.2017,Medina Leisure Centre,Stationery,0.48,SUPPLIES TEAM LTD
Revenue,Place,Cultural and Related Services,Recreation and Sport,5105652859,08.11.2017,Medina Leisure Centre,Stationery,1.56,SUPPLIES TEAM LTD
Revenue,Place,Cultural and Related Services,Recreation and Sport,5105652859,08.11.2017,Medina Leisure Centre,Stationery,4.44,SUPPLIES TEAM LTD
Revenue,Place,Cultural and Related Services,Recreation and Sport,5105652859,08.11.2017,Medina Leisure Centre,Stationery,7.92,SUPPLIES TEAM LTD
Revenue,Resources,Central Services,Central Services to the Public,5105654755,24.11.2017,National Non Domestic Rates,Stationery,17.14,SUPPLIES TEAM LTD
Revenue,Place,Highways and Transport Services,Parking Services,5105652860,22.11.2017,Parking Attendants,Stationery,1.78,SUPPLIES TEAM LTD
Revenue,Resources,Central Services,Support Services,5105652816,08.11.2017,Pension Administration,Stationery,2.46,SUPPLIES TEAM LTD
Revenue,Resources,Central Services,Support Services,5105653657,22.11.2017,Pension Administration,Stationery,2.72,SUPPLIES TEAM LTD
Revenue,Place,Planning services,Management & Support Services,5105652852,10.11.2017,Planning Management,Stationery,0.33,SUPPLIES TEAM LTD
Revenue,Place,Planning services,Management & Support Services,5105652852,10.11.2017,Planning Management,Stationery,51.42,SUPPLIES TEAM LTD
Revenue,Place,Planning services,Management & Support Services,5105652852,10.11.2017,Planning Management,Stationery,0.53,SUPPLIES TEAM LTD
Revenue,Place,Planning services,Management & Support Services,5105652852,10.11.2017,Planning Management,Stationery,1.61,SUPPLIES TEAM LTD
Revenue,Place,Planning services,Management & Support Services,5105652852,10.11.2017,Planning Management,Stationery,6.03,SUPPLIES TEAM LTD
Revenue,Place,Planning services,Management & Support Services,5105652852,10.11.2017,Planning Management,Stationery,12.52,SUPPLIES TEAM LTD
Revenue,Place,Planning services,Management & Support Services,5105652852,10.11.2017,Planning Management,Stationery,4.30,SUPPLIES TEAM LTD
Revenue,Public Health,Public Health,Miscellaneous Public Health Services,5105652854,08.11.2017,Public Health Core Non Prescribed,Stationery,25.71,SUPPLIES TEAM LTD
Revenue,Public Health,Public Health,Miscellaneous Public Health Services,5105652854,08.11.2017,Public Health Core Non Prescribed,Stationery,4.30,SUPPLIES TEAM LTD
Revenue,Public Health,Public Health,Miscellaneous Public Health Services,5105652854,08.11.2017,Public Health Core Non Prescribed,Stationery,0.50,SUPPLIES TEAM LTD
Revenue,Place,Cultural and Related Services,Library Service,5105655487,29.11.2017,Public Libraries Central,Stationery,11.13,SUPPLIES TEAM LTD
Revenue,Place,Cultural and Related Services,Library Service,5105655487,29.11.2017,Public Libraries Central,Stationery,2.46,SUPPLIES TEAM LTD
Revenue,Place,Cultural and Related Services,Library Service,5105654133,22.11.2017,Public Libraries Central,Stationery,0.23,SUPPLIES TEAM LTD
Revenue,Place,Cultural and Related Services,Library Service,5105653340,15.11.2017,Public Libraries Central,Stationery,8.57,SUPPLIES TEAM LTD
Revenue,Place,Cultural and Related Services,Library Service,5105654130,22.11.2017,Public Libraries Central,Stationery,8.57,SUPPLIES TEAM LTD
Revenue,Place,Cultural and Related Services,Library Service,5105654131,22.11.2017,Public Libraries Central,Stationery,-8.57,SUPPLIES TEAM LTD
Revenue,Place,Cultural and Related Services,Library Service,5105653340,15.11.2017,Public Libraries Central,Stationery,3.45,SUPPLIES TEAM LTD
Revenue,Place,Cultural and Related Services,Library Service,5105653340,15.11.2017,Public Libraries Central,Stationery,1.35,SUPPLIES TEAM LTD
Revenue,Place,Cultural and Related Services,Library Service,5105653340,15.11.2017,Public Libraries Central,Stationery,1.06,SUPPLIES TEAM LTD
Revenue,Place,Cultural and Related Services,Library Service,5105653340,15.11.2017,Public Libraries Central,Stationery,0.39,SUPPLIES TEAM LTD
Revenue,Place,Cultural and Related Services,Library Service,5105653340,15.11.2017,Public Libraries Central,Stationery,17.14,SUPPLIES TEAM LTD
Revenue,Place,Cultural and Related Services,Library Service,5105653340,15.11.2017,Public Libraries Central,Stationery,0.39,SUPPLIES TEAM LTD
Revenue,Childrens Services,Children's & Education Services,Other Education and Community Budget,5105653460,15.11.2017,Pupil Resources Business Support Team,Stationery,25.71,SUPPLIES TEAM LTD
Revenue,Childrens Services,Children's & Education Services,Other Education and Community Budget,5105651475,22.11.2017,Pupil Resources Business Support Team,Stationery,25.71,SUPPLIES TEAM LTD
Revenue,Resources,Central Services,Central Services to the Public,5105651475,22.11.2017,Revenues & Benefits Operational Support,Stationery,36.04,SUPPLIES TEAM LTD
Revenue,Resources,Central Services,Central Services to the Public,5105652860,22.11.2017,Revenues & Benefits Operational Support,Stationery,13.00,SUPPLIES TEAM LTD
Revenue,Resources,Central Services,Central Services to the Public,5105652860,22.11.2017,Revenues & Benefits Operational Support,Stationery,1.59,SUPPLIES TEAM LTD
Revenue,Resources,Central Services,Central Services to the Public,5105654755,24.11.2017,Revenues & Benefits Operational Support,Stationery,8.75,SUPPLIES TEAM LTD
Revenue,Resources,Central Services,Central Services to the Public,5105653678,22.11.2017,Revenues & Benefits Operational Support,Stationery,8.71,SUPPLIES TEAM LTD
Revenue,Place,Central Services,Central Services to the Public,5105652852,10.11.2017,"Registration Of Births,Deaths, Marriages",Stationery,17.14,SUPPLIES TEAM LTD
Revenue,Place,Central Services,Central Services to the Public,5105652852,10.11.2017,"Registration Of Births,Deaths, Marriages",Stationery,13.98,SUPPLIES TEAM LTD
Revenue,Place,Central Services,Central Services to the Public,5105652852,10.11.2017,"Registration Of Births,Deaths, Marriages",Stationery,4.94,SUPPLIES TEAM LTD
Revenue,Place,Central Services,Central Services to the Public,5105652852,10.11.2017,"Registration Of Births,Deaths, Marriages",Stationery,5.94,SUPPLIES TEAM LTD
Revenue,Place,Housing Services,Private Sector Housing Renewal,5105651475,22.11.2017,Renewal & Enforcement,Stationery,1.23,SUPPLIES TEAM LTD
Revenue,Place,Housing Services,Private Sector Housing Renewal,5105654755,24.11.2017,Renewal & Enforcement,Stationery,2.90,SUPPLIES TEAM LTD
Revenue,Childrens Services,Children's & Education Services,Children Looked After,5105655495,29.11.2017,Secure Accommodation (Welfare),Stationery,11.10,SUPPLIES TEAM LTD
Revenue,Childrens Services,Children's & Education Services,Other Education and Community Budget,5105628411,22.11.2017,SEND Independent Advice & Support,Stationery,-23.53,SUPPLIES TEAM LTD
Revenue,Childrens Services,Children's & Education Services,Other Education and Community Budget,5105652817,08.11.2017,SEND Independent Advice & Support,Stationery,17.14,SUPPLIES TEAM LTD
Revenue,Childrens Services,Children's & Education Services,Management & Support Services,5105652643,03.11.2017,Specialist Service Business Admin,Stationery,-2.64,SUPPLIES TEAM LTD
Revenue,Childrens Services,Children's & Education Services,Management & Support Services,5105631744,03.11.2017,Specialist Service Business Admin,Stationery,2.64,SUPPLIES TEAM LTD
Revenue,Childrens Services,Children's & Education Services,Management & Support Services,5105652975,15.11.2017,Specialist Service Business Admin,Stationery,1.38,SUPPLIES TEAM LTD
Revenue,Childrens Services,Children's & Education Services,Management & Support Services,5105652315,03.11.2017,Specialist Teacher Advisors,Stationery,37.34,SUPPLIES TEAM LTD
Revenue,Regeneration,Central Services,Support Services,5105652860,22.11.2017,Strategic Assets Team,Stationery,1.23,SUPPLIES TEAM LTD
Revenue,Regeneration,Central Services,Support Services,5105652860,22.11.2017,Strategic Assets Team,Stationery,1.23,SUPPLIES TEAM LTD
Revenue,Regeneration,Central Services,Support Services,5105652860,22.11.2017,Strategic Assets Team,Stationery,1.80,SUPPLIES TEAM LTD
Revenue,Regeneration,Central Services,Support Services,5105652860,22.11.2017,Strategic Assets Team,Stationery,0.19,SUPPLIES TEAM LTD
Revenue,Regeneration,Central Services,Support Services,5105652860,22.11.2017,Strategic Assets Team,Stationery,1.48,SUPPLIES TEAM LTD
Revenue,Regeneration,Central Services,Support Services,5105652860,22.11.2017,Strategic Assets Team,Stationery,0.50,SUPPLIES TEAM LTD
Revenue,Place,Cultural and Related Services,Recreation and Sport,5105652853,10.11.2017,The Heights,Stationery,4.31,SUPPLIES TEAM LTD
Revenue,Place,Cultural and Related Services,Recreation and Sport,5105652853,10.11.2017,The Heights,Stationery,2.38,SUPPLIES TEAM LTD
Revenue,Place,Cultural and Related Services,Recreation and Sport,5105655203,29.11.2017,The Heights,Stationery,2.65,SUPPLIES TEAM LTD
Revenue,Place,Cultural and Related Services,Recreation and Sport,5105655203,29.11.2017,The Heights,Stationery,1.23,SUPPLIES TEAM LTD
Revenue,Place,Cultural and Related Services,Recreation and Sport,5105655203,29.11.2017,The Heights,Stationery,2.28,SUPPLIES TEAM LTD
Revenue,Place,Cultural and Related Services,Recreation and Sport,5105655203,29.11.2017,The Heights,Stationery,19.96,SUPPLIES TEAM LTD
Revenue,Place,Cultural and Related Services,Recreation and Sport,5105655203,29.11.2017,The Heights,Stationery,7.52,SUPPLIES TEAM LTD
Revenue,Place,Cultural and Related Services,Recreation and Sport,5105655203,29.11.2017,The Heights,Stationery,20.76,SUPPLIES TEAM LTD
Revenue,Place,Cultural and Related Services,Recreation and Sport,5105652853,10.11.2017,The Heights,Stationery,0.57,SUPPLIES TEAM LTD
Revenue,Place,Cultural and Related Services,Recreation and Sport,5105655203,29.11.2017,Westridge Squash Courts,Stationery,8.57,SUPPLIES TEAM LTD
Revenue,Place,Cultural and Related Services,Recreation and Sport,5105655203,29.11.2017,Westridge Squash Courts,Stationery,1.90,SUPPLIES TEAM LTD
Revenue,Place,Cultural and Related Services,Recreation and Sport,5105655203,29.11.2017,Westridge Squash Courts,Stationery,1.23,SUPPLIES TEAM LTD
Revenue,Place,Cultural and Related Services,Recreation and Sport,5105655203,29.11.2017,Westridge Squash Courts,Stationery,2.28,SUPPLIES TEAM LTD
Revenue,Place,Cultural and Related Services,Recreation and Sport,5105655203,29.11.2017,Westridge Squash Courts,Stationery,0.33,SUPPLIES TEAM LTD
Revenue,Place,Cultural and Related Services,Recreation and Sport,5105655203,29.11.2017,Westridge Squash Courts,Stationery,1.60,SUPPLIES TEAM LTD
Revenue,Adult Services,Adult Social Care,Assistive Equipment & Technology,5105654128,22.11.2017,Wightcare,Stationery,2.14,SUPPLIES TEAM LTD
Revenue,Adult Services,Adult Social Care,Assistive Equipment & Technology,5105654128,22.11.2017,Wightcare,Stationery,17.14,SUPPLIES TEAM LTD
Revenue,Adult Services,Adult Social Care,Assistive Equipment & Technology,5105654128,22.11.2017,Wightcare,Stationery,0.78,SUPPLIES TEAM LTD
Revenue,Adult Services,Adult Social Care,Assistive Equipment & Technology,5105654128,22.11.2017,Wightcare,Stationery,0.70,SUPPLIES TEAM LTD
Revenue,Adult Services,Adult Social Care,Assistive Equipment & Technology,5105654128,22.11.2017,Wightcare,Stationery,0.32,SUPPLIES TEAM LTD
Revenue,Childrens Services,Children's & Education Services,Special Schools & Alternative Provision,5105652855,22.11.2017,Workshop Initiative Support in Education,Stationery,2.59,SUPPLIES TEAM LTD
Revenue,Childrens Services,Children's & Education Services,Special Schools & Alternative Provision,5105652855,22.11.2017,Workshop Initiative Support in Education,Stationery,0.80,SUPPLIES TEAM LTD
Revenue,Childrens Services,Children's & Education Services,Special Schools & Alternative Provision,5105652855,22.11.2017,Workshop Initiative Support in Education,Stationery,1.08,SUPPLIES TEAM LTD
Revenue,Childrens Services,Children's & Education Services,Special Schools & Alternative Provision,5105652855,22.11.2017,Workshop Initiative Support in Education,Stationery,0.53,SUPPLIES TEAM LTD
Revenue,Childrens Services,Children's & Education Services,Special Schools & Alternative Provision,5105652855,22.11.2017,Workshop Initiative Support in Education,Stationery,0.80,SUPPLIES TEAM LTD
Revenue,Childrens Services,Children's & Education Services,Special Schools & Alternative Provision,5105652855,22.11.2017,Workshop Initiative Support in Education,Stationery,0.39,SUPPLIES TEAM LTD
Revenue,Childrens Services,Children's & Education Services,Special Schools & Alternative Provision,5105652855,22.11.2017,Workshop Initiative Support in Education,Stationery,18.80,SUPPLIES TEAM LTD
Revenue,Childrens Services,Children's & Education Services,Special Schools & Alternative Provision,5105654129,22.11.2017,Workshop Initiative Support in Education,Stationery,19.10,SUPPLIES TEAM LTD
Revenue,Childrens Services,Children's & Education Services,Youth Justice,5105654755,24.11.2017,Youth Offending Team,Stationery,5.44,SUPPLIES TEAM LTD
Revenue,Childrens Services,Children's & Education Services,Youth Justice,5105654756,24.11.2017,Youth Offending Team,Stationery,17.14,SUPPLIES TEAM LTD
Revenue,Childrens Services,Children's & Education Services,Children Looked After,5105651652,08.11.2017,Adoption Support Fund,Charges from Independent Providers,140.00,BARNARDO'S
Revenue,Childrens Services,Children's & Education Services,Children Looked After,5105651653,17.11.2017,Adoption Support Fund,Charges from Independent Providers,120.00,BARNARDO'S
Revenue,Childrens Services,Children's & Education Services,Children Looked After,5105651656,08.11.2017,Adoption Support Fund,Charges from Independent Providers,120.00,BARNARDO'S
Revenue,Childrens Services,Children's & Education Services,Children Looked After,5105651654,08.11.2017,Adoption Support Fund,Charges from Independent Providers,280.00,BARNARDO'S
Revenue,Childrens Services,Children's & Education Services,Family Support Services,5105652294,01.11.2017,S17 Child Protection,Support Children,129.00,BARNARDO'S
Revenue,Place,Cultural and Related Services,Culture and Heritage,5105653662,15.11.2017,Medina Theatre,Payment to Private Contractors,"1,000.00",BARRY COLLINGS ENTERTAINMENTS
Revenue,Adult Services,Adult Social Care,Physical Support - adults (18-64),5105655065,29.11.2017,Physical Support Direct Pay 18-64,Payments for Self Directed Support,"1,716.00",REDACTED PERSONAL DATA
Revenue,Childrens Services,Children's & Education Services,Primary Schools,5105652213,01.11.2017,Primary Schools,Payments to Schools,"79,707.97",BARTON PRIMARY & EARLY YEARS
Revenue,Resources,Central Services,Support Services,5105654361,22.11.2017,Staff Benefits,Payment to Private Contractors,50.00,BARTON PRIMARY & EARLY YEARS
Revenue,Childrens Services,Children's & Education Services,Children Looked After,5105653285,15.11.2017,Beaulieu House,General Materials,13.69,LAKE CLEANING & CATERING SUPPLIES
Revenue,Childrens Services,Children's & Education Services,Children Looked After,5105653283,10.11.2017,Beaulieu House,General Materials,64.53,LAKE CLEANING & CATERING SUPPLIES
Revenue,Childrens Services,Children's & Education Services,Children Looked After,5105653312,10.11.2017,Beaulieu House,General Materials,89.46,LAKE CLEANING & CATERING SUPPLIES
Revenue,Place,Fire & Rescue Services,Fire fighting and Rescue Operations,5105653268,15.11.2017,Fire Technical Support,Stock Purchases,31.80,LAKE CLEANING & CATERING SUPPLIES
Revenue,Place,Fire & Rescue Services,Fire fighting and Rescue Operations,5105653268,15.11.2017,Fire Technical Support,Stock Purchases,75.00,LAKE CLEANING & CATERING SUPPLIES
Revenue,Place,Fire & Rescue Services,Fire fighting and Rescue Operations,5105653268,15.11.2017,Fire Technical Support,Stock Purchases,20.80,LAKE CLEANING & CATERING SUPPLIES
Revenue,Place,Fire & Rescue Services,Fire fighting and Rescue Operations,5105653268,15.11.2017,Fire Technical Support,Stock Purchases,48.48,LAKE CLEANING & CATERING SUPPLIES
Revenue,Place,Fire & Rescue Services,Fire fighting and Rescue Operations,5105653268,15.11.2017,Fire Technical Support,Stock Purchases,45.36,LAKE CLEANING & CATERING SUPPLIES
Revenue,Place,Fire & Rescue Services,Fire fighting and Rescue Operations,5105653277,10.11.2017,Fire Technical Support,Stock Purchases,75.00,LAKE CLEANING & CATERING SUPPLIES
Revenue,Place,Fire & Rescue Services,Fire fighting and Rescue Operations,5105653277,10.11.2017,Fire Technical Support,Stock Purchases,32.88,LAKE CLEANING & CATERING SUPPLIES
Revenue,Place,Fire & Rescue Services,Fire fighting and Rescue Operations,5105653277,10.11.2017,Fire Technical Support,Stock Purchases,80.16,LAKE CLEANING & CATERING SUPPLIES
Revenue,Place,Fire & Rescue Services,Fire fighting and Rescue Operations,5105653277,10.11.2017,Fire Technical Support,Stock Purchases,25.08,LAKE CLEANING & CATERING SUPPLIES
Revenue,Place,Fire & Rescue Services,Fire fighting and Rescue Operations,5105653277,10.11.2017,Fire Technical Support,Stock Purchases,22.36,LAKE CLEANING & CATERING SUPPLIES
Revenue,Place,Fire & Rescue Services,Fire fighting and Rescue Operations,5105653277,10.11.2017,Fire Technical Support,Stock Purchases,11.34,LAKE CLEANING & CATERING SUPPLIES
Revenue,Place,Fire & Rescue Services,Fire fighting and Rescue Operations,5105653277,10.11.2017,Fire Technical Support,Stock Purchases,31.02,LAKE CLEANING & CATERING SUPPLIES
Revenue,Place,Fire & Rescue Services,Fire fighting and Rescue Operations,5105653564,15.11.2017,Fire Technical Support,Stock Purchases,77.55,LAKE CLEANING & CATERING SUPPLIES
Revenue,Place,Cultural and Related Services,Recreation and Sport,5105653286,10.11.2017,Medina Leisure Centre,Stock Purchases,58.63,LAKE CLEANING & CATERING SUPPLIES
Revenue,Place,Cultural and Related Services,Recreation and Sport,5105652960,08.11.2017,Medina Leisure Centre,Consumable Cleaning Materials,14.56,LAKE CLEANING & CATERING SUPPLIES
Revenue,Place,Cultural and Related Services,Recreation and Sport,5105652960,08.11.2017,Medina Leisure Centre,Consumable Cleaning Materials,13.44,LAKE CLEANING & CATERING SUPPLIES
Revenue,Place,Cultural and Related Services,Recreation and Sport,5105652960,08.11.2017,Medina Leisure Centre,Consumable Cleaning Materials,20.76,LAKE CLEANING & CATERING SUPPLIES
Revenue,Place,Cultural and Related Services,Recreation and Sport,5105652960,08.11.2017,Medina Leisure Centre,Consumable Cleaning Materials,58.75,LAKE CLEANING & CATERING SUPPLIES
Revenue,Place,Cultural and Related Services,Recreation and Sport,5105652960,08.11.2017,Medina Leisure Centre,Consumable Cleaning Materials,32.88,LAKE CLEANING & CATERING SUPPLIES
Revenue,Place,Cultural and Related Services,Recreation and Sport,5105653509,15.11.2017,Medina Leisure Centre,Consumable Cleaning Materials,13.44,LAKE CLEANING & CATERING SUPPLIES
Revenue,Place,Cultural and Related Services,Recreation and Sport,5105653509,15.11.2017,Medina Leisure Centre,Consumable Cleaning Materials,20.76,LAKE CLEANING & CATERING SUPPLIES
Revenue,Place,Cultural and Related Services,Recreation and Sport,5105653509,15.11.2017,Medina Leisure Centre,Consumable Cleaning Materials,32.88,LAKE CLEANING & CATERING SUPPLIES
Revenue,Place,Cultural and Related Services,Recreation and Sport,5105653509,15.11.2017,Medina Leisure Centre,Consumable Cleaning Materials,43.68,LAKE CLEANING & CATERING SUPPLIES
Revenue,Place,Cultural and Related Services,Recreation and Sport,5105653509,15.11.2017,Medina Leisure Centre,Consumable Cleaning Materials,14.38,LAKE CLEANING & CATERING SUPPLIES
Revenue,Place,Cultural and Related Services,Recreation and Sport,5105655505,29.11.2017,Medina Leisure Centre,Consumable Cleaning Materials,25.94,LAKE CLEANING & CATERING SUPPLIES
Revenue,Place,Cultural and Related Services,Recreation and Sport,5105655505,29.11.2017,Medina Leisure Centre,Consumable Cleaning Materials,14.56,LAKE CLEANING & CATERING SUPPLIES
Revenue,Place,Cultural and Related Services,Recreation and Sport,5105655505,29.11.2017,Medina Leisure Centre,Consumable Cleaning Materials,13.44,LAKE CLEANING & CATERING SUPPLIES
Revenue,Place,Cultural and Related Services,Recreation and Sport,5105655505,29.11.2017,Medina Leisure Centre,Consumable Cleaning Materials,20.76,LAKE CLEANING & CATERING SUPPLIES
Revenue,Place,Cultural and Related Services,Recreation and Sport,5105655505,29.11.2017,Medina Leisure Centre,Consumable Cleaning Materials,117.50,LAKE CLEANING & CATERING SUPPLIES
Revenue,Place,Cultural and Related Services,Recreation and Sport,5105655505,29.11.2017,Medina Leisure Centre,Consumable Cleaning Materials,43.68,LAKE CLEANING & CATERING SUPPLIES
Revenue,Adult Services,Adult Social Care,Learning Disab Supp (to be reallocated),5105653198,10.11.2017,Plean Dene,Operational Equipment,33.14,LAKE CLEANING & CATERING SUPPLIES
Revenue,Place,Cultural and Related Services,Recreation and Sport,5105653281,15.11.2017,The Heights,Catering Equipment,103.18,LAKE CLEANING & CATERING SUPPLIES
Revenue,Place,Cultural and Related Services,Recreation and Sport,5105653208,10.11.2017,The Heights,Catering Equipment,35.25,LAKE CLEANING & CATERING SUPPLIES
Revenue,Place,Cultural and Related Services,Recreation and Sport,5105653281,15.11.2017,The Heights,Consumable Cleaning Materials,59.56,LAKE CLEANING & CATERING SUPPLIES
Revenue,Place,Cultural and Related Services,Recreation and Sport,5105653276,15.11.2017,The Heights,Consumable Cleaning Materials,108.36,LAKE CLEANING & CATERING SUPPLIES
Revenue,Place,Cultural and Related Services,Recreation and Sport,5105653282,10.11.2017,The Heights,Consumable Cleaning Materials,22.58,LAKE CLEANING & CATERING SUPPLIES
Revenue,Place,Cultural and Related Services,Recreation and Sport,5105652939,08.11.2017,The Heights,Consumable Cleaning Materials,145.52,LAKE CLEANING & CATERING SUPPLIES
Revenue,Place,Cultural and Related Services,Recreation and Sport,5105652940,08.11.2017,The Heights,Consumable Cleaning Materials,24.24,LAKE CLEANING & CATERING SUPPLIES
Revenue,Place,Cultural and Related Services,Recreation and Sport,5105652961,08.11.2017,The Heights,Consumable Cleaning Materials,56.71,LAKE CLEANING & CATERING SUPPLIES
Revenue,Place,Cultural and Related Services,Recreation and Sport,5105653208,10.11.2017,The Heights,Consumable Cleaning Materials,117.38,LAKE CLEANING & CATERING SUPPLIES
Revenue,Place,Cultural and Related Services,Recreation and Sport,5105653425,10.11.2017,The Heights,Consumable Cleaning Materials,49.50,LAKE CLEANING & CATERING SUPPLIES
Revenue,Place,Cultural and Related Services,Recreation and Sport,5105653271,15.11.2017,Westridge Squash Courts,Consumable Cleaning Materials,62.63,LAKE CLEANING & CATERING SUPPLIES
Revenue,Place,Cultural and Related Services,Recreation and Sport,5105653279,17.11.2017,Westridge Squash Courts,Consumable Cleaning Materials,68.26,LAKE CLEANING & CATERING SUPPLIES
Revenue,Adult Services,Adult Social Care,Support - Memory /Cognition-older people (65+),5105654990,29.11.2017,Memory & Cognition Nursing 65+,Charges from Independent Providers,"2,269.40",BEAUMONT LODGE LTD
Revenue,Childrens Services,Children's & Education Services,Primary Schools,5105652185,01.11.2017,Primary Schools,Payments to Schools,"62,652.27",BEMBRIDGE PRIMARY SCHOOL
Revenue,Childrens Services,Children's & Education Services,Family Support Services,5105655238,29.11.2017,Personal Budgets (Children & Families),Direct Payments,619.69,REDACTED PERSONAL DATA
Revenue,Adult Services,Adult Social Care,Learning Disability Suppt-adults (18-64),5105655025,29.11.2017,Learning Disability Direct Pay 18-64,Payments for Self Directed Support,481.52,REDACTED PERSONAL DATA
Revenue,Resources,Central Services,Support Services,5105654353,22.11.2017,Staff Benefits,Payment to Private Contractors,243.00,BERRY HILL CHILDCARE LIMITED
Revenue,Place,Housing Services,Homelessness,5105653637,15.11.2017,B&B Properties,Accommodation Costs - Bed & Breakfast,"7,756.00",BERTRAM LODGE
Revenue,Adult Services,Adult Social Care,Learning Disab Supp (to be reallocated),5105655283,29.11.2017,31 Carter Avenue,Operational Equipment,140.78,BETA PAK LTD
Revenue,Adult Services,Adult Social Care,Learning Disab Supp (to be reallocated),5105653658,22.11.2017,31 Carter Avenue,Operational Equipment,21.90,BETA PAK LTD
Revenue,Adult Services,Adult Social Care,Learning Disab Supp (to be reallocated),5105653502,15.11.2017,31 Carter Avenue,Operational Equipment,119.10,BETA PAK LTD
Revenue,Adult Services,Adult Social Care,Learning Disab Supp (to be reallocated),5105653410,22.11.2017,31 Carter Avenue,Operational Equipment,59.00,BETA PAK LTD
Revenue,Adult Services,Adult Social Care,Learning Disab Supp (to be reallocated),5105654210,22.11.2017,31 Carter Avenue,Operational Equipment,-33.00,BETA PAK LTD
Revenue,Adult Services,Adult Social Care,Learning Disab Supp (to be reallocated),5105652973,15.11.2017,40 Venner Avenue,Operational Equipment,151.28,BETA PAK LTD
Revenue,Adult Services,Adult Social Care,Learning Disab Supp (to be reallocated),5105651564,15.11.2017,40 Venner Avenue,Operational Equipment,224.64,BETA PAK LTD
Revenue,Adult Services,Adult Social Care,Learning Disab Supp (to be reallocated),5105654433,29.11.2017,40 Venner Avenue,Operational Equipment,281.49,BETA PAK LTD
Revenue,Adult Services,Adult Social Care,Central Codes (to be reallocated),5105652770,10.11.2017,Adelaide Resource Centre,Consumable Cleaning Materials,-69.42,BETA PAK LTD
Revenue,Adult Services,Adult Social Care,Central Codes (to be reallocated),5105653314,10.11.2017,Adelaide Resource Centre,Consumable Cleaning Materials,318.57,BETA PAK LTD
Revenue,Adult Services,Adult Social Care,Central Codes (to be reallocated),5105654860,24.11.2017,Adelaide Resource Centre,Consumable Cleaning Materials,442.01,BETA PAK LTD
Revenue,Adult Services,Adult Social Care,Central Codes (to be reallocated),5105650821,10.11.2017,Gouldings Resource Centre,Consumable Cleaning Materials,77.62,BETA PAK LTD
Revenue,Adult Services,Adult Social Care,Central Codes (to be reallocated),5105650819,03.11.2017,Gouldings Resource Centre,Consumable Cleaning Materials,11.70,BETA PAK LTD
Revenue,Adult Services,Adult Social Care,Central Codes (to be reallocated),5105653533,15.11.2017,Gouldings Resource Centre,Consumable Cleaning Materials,158.56,BETA PAK LTD
Revenue,Adult Services,Adult Social Care,Central Codes (to be reallocated),5105654164,22.11.2017,Gouldings Resource Centre,Consumable Cleaning Materials,3.71,BETA PAK LTD
Revenue,Adult Services,Adult Social Care,Central Codes (to be reallocated),5105654085,17.11.2017,Gouldings Resource Centre,Consumable Cleaning Materials,33.39,BETA PAK LTD
Revenue,Adult Services,Adult Social Care,Central Codes (to be reallocated),5105655492,29.11.2017,Gouldings Resource Centre,Consumable Cleaning Materials,57.10,BETA PAK LTD
Revenue,Adult Services,Adult Social Care,Learning Disab Supp (to be reallocated),5105652291,10.11.2017,Overbrook,Operational Equipment,37.25,BETA PAK LTD
Revenue,Adult Services,Adult Social Care,Learning Disab Supp (to be reallocated),5105652150,10.11.2017,Overbrook,Operational Equipment,1.97,BETA PAK LTD
Revenue,Adult Services,Adult Social Care,Learning Disab Supp (to be reallocated),5105650557,01.11.2017,Plean Dene,Operational Equipment,38.04,BETA PAK LTD
Revenue,Adult Services,Adult Social Care,Learning Disab Supp (to be reallocated),5105652114,10.11.2017,Plean Dene,Operational Equipment,97.61,BETA PAK LTD
Revenue,Adult Services,Adult Social Care,Learning Disab Supp (to be reallocated),5105652114,10.11.2017,Plean Dene,Operational Equipment,45.96,BETA PAK LTD
Revenue,Adult Services,Adult Social Care,Learning Disab Supp (to be reallocated),5105652613,15.11.2017,Plean Dene,Operational Equipment,6.20,BETA PAK LTD
Revenue,Adult Services,Adult Social Care,Learning Disab Supp (to be reallocated),5105654853,24.11.2017,Plean Dene,Operational Equipment,-30.54,BETA PAK LTD
Revenue,Adult Services,Adult Social Care,Learning Disab Supp (to be reallocated),5105655271,29.11.2017,Plean Dene,Operational Equipment,-30.54,BETA PAK LTD
Revenue,Adult Services,Adult Social Care,Learning Disab Supp (to be reallocated),5105655273,29.11.2017,Plean Dene,Operational Equipment,30.54,BETA PAK LTD
Revenue,Adult Services,Adult Social Care,Learning Disab Supp (to be reallocated),5105654074,17.11.2017,Plean Dene,Operational Equipment,52.47,BETA PAK LTD
Revenue,Adult Services,Adult Social Care,Learning Disab Supp (to be reallocated),5105654526,24.11.2017,Plean Dene,Operational Equipment,35.00,BETA PAK LTD
Revenue,Adult Services,Adult Social Care,Learning Disab Supp (to be reallocated),5105654063,17.11.2017,Plean Dene,Operational Equipment,52.47,BETA PAK LTD
Revenue,Adult Services,Adult Social Care,Learning Disab Supp (to be reallocated),5105652822,10.11.2017,Saxonbury,Operational Equipment,6.96,BETA PAK LTD
Revenue,Adult Services,Adult Social Care,Learning Disab Supp (to be reallocated),5105651661,10.11.2017,Saxonbury,Operational Equipment,16.80,BETA PAK LTD
Revenue,Adult Services,Adult Social Care,Learning Disab Supp (to be reallocated),5105652615,03.11.2017,Saxonbury,Operational Equipment,210.74,BETA PAK LTD
Revenue,Adult Services,Adult Social Care,Learning Disab Supp (to be reallocated),5105653535,17.11.2017,Saxonbury,Operational Equipment,180.82,BETA PAK LTD
Revenue,Adult Services,Adult Social Care,Learning Disab Supp (to be reallocated),5105653501,17.11.2017,Saxonbury,Operational Equipment,2.66,BETA PAK LTD
Revenue,Adult Services,Adult Social Care,Learning Disab Supp (to be reallocated),5105653369,10.11.2017,Saxonbury,Operational Equipment,13.30,BETA PAK LTD
Revenue,Adult Services,Adult Social Care,Learning Disab Supp (to be reallocated),5105654434,22.11.2017,Saxonbury,Operational Equipment,243.05,BETA PAK LTD
Revenue,Adult Services,Adult Social Care,Learning Disab Supp (to be reallocated),5105654453,22.11.2017,Saxonbury,Operational Equipment,2.80,BETA PAK LTD
Revenue,Adult Services,Adult Social Care,Learning Disab Supp (to be reallocated),5105654854,24.11.2017,Saxonbury,Operational Equipment,-66.72,BETA PAK LTD
Revenue,Adult Services,Adult Social Care,Learning Disab Supp (to be reallocated),5105655491,29.11.2017,Saxonbury,Operational Equipment,6.99,BETA PAK LTD
Revenue,Adult Services,Adult Social Care,Learning Disab Supp (to be reallocated),5105652614,03.11.2017,Seagulls,Operational Equipment,90.46,BETA PAK LTD
Revenue,Adult Services,Adult Social Care,Learning Disab Supp (to be reallocated),5105652803,10.11.2017,The Laurels,Operational Equipment,46.80,BETA PAK LTD
Revenue,Adult Services,Adult Social Care,Learning Disab Supp (to be reallocated),5105652244,10.11.2017,The Laurels,Operational Equipment,386.68,BETA PAK LTD
Revenue,Adult Services,Adult Social Care,Learning Disab Supp (to be reallocated),5105654861,24.11.2017,The Laurels,Operational Equipment,2.28,BETA PAK LTD
Revenue,Adult Services,Adult Social Care,Learning Disab Supp (to be reallocated),5105652314,10.11.2017,Westminster House,Operational Equipment,86.04,BETA PAK LTD
Revenue,Adult Services,Adult Social Care,Learning Disab Supp (to be reallocated),5105652662,10.11.2017,Westminster House,Operational Equipment,8.31,BETA PAK LTD
Revenue,Adult Services,Adult Social Care,Learning Disab Supp (to be reallocated),5105654452,22.11.2017,Westminster House,Operational Equipment,111.26,BETA PAK LTD
Revenue,Adult Services,Adult Social Care,Central Codes (to be reallocated),5105652904,17.11.2017,Adelaide Resource Centre,Catering Purchases,94.14,3663 (BFS GROUP LTD)
Revenue,Adult Services,Adult Social Care,Central Codes (to be reallocated),5105652904,17.11.2017,Adelaide Resource Centre,Catering Purchases,12.54,3663 (BFS GROUP LTD)
Revenue,Adult Services,Adult Social Care,Central Codes (to be reallocated),5105652903,08.11.2017,Adelaide Resource Centre,Catering Purchases,340.42,3663 (BFS GROUP LTD)
Revenue,Adult Services,Adult Social Care,Central Codes (to be reallocated),5105652903,08.11.2017,Adelaide Resource Centre,Catering Purchases,6.99,3663 (BFS GROUP LTD)
Revenue,Adult Services,Adult Social Care,Central Codes (to be reallocated),5105654179,17.11.2017,Adelaide Resource Centre,Catering Purchases,-6.35,3663 (BFS GROUP LTD)
Revenue,Adult Services,Adult Social Care,Central Codes (to be reallocated),5105654175,17.11.2017,Adelaide Resource Centre,Catering Purchases,-6.46,3663 (BFS GROUP LTD)
Revenue,Adult Services,Adult Social Care,Central Codes (to be reallocated),5105654879,29.11.2017,Adelaide Resource Centre,Catering Purchases,143.32,3663 (BFS GROUP LTD)
Revenue,Adult Services,Adult Social Care,Central Codes (to be reallocated),5105654876,29.11.2017,Adelaide Resource Centre,Catering Purchases,65.42,3663 (BFS GROUP LTD)
Revenue,Adult Services,Adult Social Care,Central Codes (to be reallocated),5105654880,29.11.2017,Adelaide Resource Centre,Catering Purchases,310.17,3663 (BFS GROUP LTD)
Revenue,Adult Services,Adult Social Care,Central Codes (to be reallocated),5105654873,29.11.2017,Adelaide Resource Centre,Catering Purchases,243.72,3663 (BFS GROUP LTD)
Revenue,Adult Services,Adult Social Care,Central Codes (to be reallocated),5105654873,29.11.2017,Adelaide Resource Centre,Catering Purchases,8.00,3663 (BFS GROUP LTD)
Revenue,Adult Services,Adult Social Care,Central Codes (to be reallocated),5105654880,29.11.2017,Adelaide Resource Centre,Catering Purchases,20.69,3663 (BFS GROUP LTD)
Revenue,Adult Services,Adult Social Care,Central Codes (to be reallocated),5105654876,29.11.2017,Adelaide Resource Centre,Catering Purchases,9.36,3663 (BFS GROUP LTD)
Revenue,Adult Services,Adult Social Care,Central Codes (to be reallocated),5105654879,29.11.2017,Adelaide Resource Centre,Catering Purchases,5.84,3663 (BFS GROUP LTD)
Revenue,Adult Services,Adult Social Care,Central Codes (to be reallocated),5105652553,03.11.2017,Adelaide Resource Centre,Catering Purchases,298.57,3663 (BFS GROUP LTD)
Revenue,Adult Services,Adult Social Care,Central Codes (to be reallocated),5105652553,03.11.2017,Adelaide Resource Centre,Catering Purchases,13.85,3663 (BFS GROUP LTD)
Revenue,Adult Services,Adult Social Care,Central Codes (to be reallocated),5105652230,01.11.2017,Adelaide Resource Centre,Catering Purchases,6.86,3663 (BFS GROUP LTD)
Revenue,Adult Services,Adult Social Care,Central Codes (to be reallocated),5105652231,01.11.2017,Adelaide Resource Centre,Catering Purchases,11.68,3663 (BFS GROUP LTD)
Revenue,Adult Services,Adult Social Care,Central Codes (to be reallocated),5105652235,01.11.2017,Adelaide Resource Centre,Catering Purchases,57.45,3663 (BFS GROUP LTD)
Revenue,Adult Services,Adult Social Care,Central Codes (to be reallocated),5105652234,01.11.2017,Adelaide Resource Centre,Catering Purchases,15.11,3663 (BFS GROUP LTD)
Revenue,Adult Services,Adult Social Care,Central Codes (to be reallocated),5105652231,01.11.2017,Adelaide Resource Centre,Catering Purchases,148.41,3663 (BFS GROUP LTD)
Revenue,Adult Services,Adult Social Care,Central Codes (to be reallocated),5105652237,01.11.2017,Adelaide Resource Centre,Catering Purchases,198.90,3663 (BFS GROUP LTD)
Revenue,Adult Services,Adult Social Care,Central Codes (to be reallocated),5105652230,01.11.2017,Adelaide Resource Centre,Catering Purchases,319.34,3663 (BFS GROUP LTD)
Revenue,Adult Services,Adult Social Care,Central Codes (to be reallocated),5105652234,01.11.2017,Adelaide Resource Centre,Catering Purchases,121.63,3663 (BFS GROUP LTD)
Revenue,Adult Services,Adult Social Care,Central Codes (to be reallocated),5105652235,01.11.2017,Adelaide Resource Centre,Catering Purchases,346.09,3663 (BFS GROUP LTD)
Revenue,Adult Services,Adult Social Care,Central Codes (to be reallocated),5105652736,08.11.2017,Gouldings Resource Centre,Catering Purchases,257.84,3663 (BFS GROUP LTD)
Revenue,Adult Services,Adult Social Care,Central Codes (to be reallocated),5105652736,08.11.2017,Gouldings Resource Centre,Catering Purchases,0.14,3663 (BFS GROUP LTD)
Revenue,Adult Services,Adult Social Care,Central Codes (to be reallocated),5105654257,22.11.2017,Gouldings Resource Centre,Catering Purchases,228.78,3663 (BFS GROUP LTD)
Revenue,Adult Services,Adult Social Care,Central Codes (to be reallocated),5105653550,15.11.2017,Gouldings Resource Centre,Catering Purchases,383.35,3663 (BFS GROUP LTD)
Revenue,Adult Services,Adult Social Care,Central Codes (to be reallocated),5105653550,15.11.2017,Gouldings Resource Centre,Catering Purchases,11.43,3663 (BFS GROUP LTD)
Revenue,Adult Services,Adult Social Care,Central Codes (to be reallocated),5105654257,22.11.2017,Gouldings Resource Centre,Catering Purchases,17.29,3663 (BFS GROUP LTD)
Revenue,Adult Services,Adult Social Care,Central Codes (to be reallocated),5105652618,03.11.2017,Gouldings Resource Centre,Catering Purchases,319.10,3663 (BFS GROUP LTD)
Revenue,Adult Services,Adult Social Care,Central Codes (to be reallocated),5105652625,03.11.2017,Gouldings Resource Centre,Catering Purchases,84.28,3663 (BFS GROUP LTD)
Revenue,Adult Services,Adult Social Care,Central Codes (to be reallocated),5105652618,03.11.2017,Gouldings Resource Centre,Catering Purchases,18.68,3663 (BFS GROUP LTD)
Revenue,Place,Cultural and Related Services,Recreation and Sport,5105652256,01.11.2017,The Heights,Stock Purchases,315.39,3663 (BFS GROUP LTD)
